Workbook

Sheet Methodology & Notes
A1: Salary Comparison of Excel Users From 107 Countries
A2: Challenges to comparison:
A3: Comparing Salaries in different currencies doesn’t make sense if we just converted all currencies into a single currency such as USD
A5: 1. We have to account for PPP. I have used the IMF data by dividing PPP GDP by Nominal GDP to get the PPP value.
A6: 2. This conversion should only be done for currencies other than the currency chosen to view the data in.
A7: 3. So the column 'Chosen Currency' returns the 'Cleaned Salary' in original currency if its the Chosen currency.
A8: So if INR is chosen as the currency, the original INR data point will be retained as PPP is calcluated relative to this currency for all other currencies.
A9: In this dashboard, you can view the data in any chosen currency from the drop-down menu.
A11: Few more thngs to keep in mind when looking at the data
A12: 1. Though PPP helps provide a pretty good way to adjust for and compare purchasing power of currencies in various countries, there are factors such as tiered taxation which are difficult to factor in.
A13: 2. For example, Singapore just has 10% tax, India has 30% taxes and so earning the same amount in SGD could be more profitable as they can save more.
A14: 3. Of course Taxes in some countries depend on marriage status and other demographic and social markers.
A15: 4. Also one big assumption in PPP is whats called 'basket of goods' which used for calculations (cost of utilities, food, transportation). These are assumed to be same for Excel users which is not true in reality.
A16: For example, 2 Excel users in India one of whom buys a lof of products in USD online vs someone just who buys local made products, the former will be impacted more.
A17: 5. Correlation doesn't mean causality. Often there are multiple variables at play as all Excel Ninjas know!
A18: 6. As fun as Excel is, its still a tool and compensation depends on how best we use it and what other skills a person may have.
A20: There are questions that this Dashboard tries to answer.
A21: 1. Comparison of various job titles and pay.
A22: 2. Comparison of how much people use Excel and how they are paid.
A23: 3. Where are the Excel Power users?
A24: 4. Which job functions use Excel the most?
A25: 5. How much time do most Excel users use Excel per day?
A27: For all salary averages, I've used the median instead of arithmetic mean to prevent outliers from skewing the data.
A28: All charts are based off the data in the sheet 'Data'
A29: You can ignore all sheets except 'Dashboard'. They are just caculation sheets which I retained for your reference.

Sheet Dashboard
D1: Salary Comparison of Excel Users From 107 Countries
J5: United States dollar | U5: United States dollar
U6: Chinese yuan
U7: Japanese yen
U8: Euro
U9: Brazilian real
U10: British pound[C]
B11: Who Gets the Top Salary? Where do they Live? How much is their Excel Usage? | U11: Canadian dollar
U12: Indian rupee
B13: Salary | C13: Currency | D13: Job Title | E13: Resides in | F13: Uses Excel | G13: No of years | U13: Australian dollar
B14: =LARGE(Data!$G$13:$G$1888,1) -> 988057.754 | C14: =INDEX(Sheet3!$A$2:$A$31,MATCH(Dashboard!$J$5,Sheet3!$B$2:$B$31,0)) -> USD | D14: =VLOOKUP(B14,Data!$G$13:$L$1888,3,FALSE) -> Accountant | E14: =VLOOKUP(B14,Data!$G$13:$L$1888,4,FALSE) -> Canada | F14: =VLOOKUP(B14,Data!$G$13:$L$1888,5,FALSE) -> 4 to 6 hours a day | G14: =VLOOKUP(B14,Data!$G$13:$L$1888,6,FALSE) -> Data Not Avaliable | U14: Mexican peso
B15: =LARGE(Data!$G$13:$G$1888,2) -> 497290.7347 | C15: =INDEX(Sheet3!$A$2:$A$31,MATCH(Dashboard!$J$5,Sheet3!$B$2:$B$31,0)) -> USD | D15: =VLOOKUP(B15,Data!$G$13:$L$1888,3,FALSE) -> Manager | E15: =VLOOKUP(B15,Data!$G$13:$L$1888,4,FALSE) -> India | F15: =VLOOKUP(B15,Data!$G$13:$L$1888,5,FALSE) -> 2 to 3 hours per day | G15: =VLOOKUP(B15,Data!$G$13:$L$1888,6,FALSE) -> 10 | U15: Indonesian rupiah
B16: =LARGE(Data!$G$13:$G$1888,3) -> 426249.2011 | C16: =INDEX(Sheet3!$A$2:$A$31,MATCH(Dashboard!$J$5,Sheet3!$B$2:$B$31,0)) -> USD | D16: =VLOOKUP(B16,Data!$G$13:$L$1888,3,FALSE) -> Analyst | E16: =VLOOKUP(B16,Data!$G$13:$L$1888,4,FALSE) -> India | F16: =VLOOKUP(B16,Data!$G$13:$L$1888,5,FALSE) -> 4 to 6 hours a day | G16: =VLOOKUP(B16,Data!$G$13:$L$1888,6,FALSE) -> Data Not Avaliable | U16: Swiss franc
B17: =LARGE(Data!$G$13:$G$1888,4) -> 400000 | C17: =INDEX(Sheet3!$A$2:$A$31,MATCH(Dashboard!$J$5,Sheet3!$B$2:$B$31,0)) -> USD | D17: =VLOOKUP(B17,Data!$G$13:$L$1888,3,FALSE) -> Manager | E17: =VLOOKUP(B17,Data!$G$13:$L$1888,4,FALSE) -> USA | F17: =VLOOKUP(B17,Data!$G$13:$L$1888,5,FALSE) -> 1 or 2 hours a day | G17: =VLOOKUP(B17,Data!$G$13:$L$1888,6,FALSE) -> Data Not Avaliable | U17: Saudi riyal
B18: =LARGE(Data!$G$13:$G$1888,5) -> 400000 | C18: =INDEX(Sheet3!$A$2:$A$31,MATCH(Dashboard!$J$5,Sheet3!$B$2:$B$31,0)) -> USD | D18: =VLOOKUP(B18,Data!$G$13:$L$1888,3,FALSE) -> Manager | E18: =VLOOKUP(B18,Data!$G$13:$L$1888,4,FALSE) -> USA | F18: =VLOOKUP(B18,Data!$G$13:$L$1888,5,FALSE) -> 1 or 2 hours a day | G18: =(VLOOKUP(B18,Data!$G$13:$L$1888,6,FALSE)) -> Data Not Avaliable | U18: Swedish krona
B19: =LARGE(Data!$G$13:$G$1888,6) -> 300000 | C19: =INDEX(Sheet3!$A$2:$A$31,MATCH(Dashboard!$J$5,Sheet3!$B$2:$B$31,0)) -> USD | D19: =VLOOKUP(B19,Data!$G$13:$L$1888,3,FALSE) -> CXO or Top Mgmt. | E19: =VLOOKUP(B19,Data!$G$13:$L$1888,4,FALSE) -> USA | F19: =VLOOKUP(B19,Data!$G$13:$L$1888,5) -> 4 to 6 hours a day | G19: =(VLOOKUP(B19,Data!$G$13:$L$1888,6,FALSE)) -> 30 | U19: Polish złoty
U20: Norwegian krone
B21: How do the Various Job Titles Stack Up in terms of Median Salary? | G21: Over 70% of the Respondents were Either an Analyst or a Manager | U21: South African rand
U22: United Arab Emirates dirham
U23: Danish krone
U24: Malaysian ringgit
U25: Philippine peso
U26: Pakistani rupee
U27: Romanian leu
U28: New Zealand dollar
U29: Bangladeshi taka
U30: Moroccan dirham
U31: Sri Lankan rupee
U32: Dominican peso
U33: Ethiopian birr
U34: Mauritian rupee
A42: Interesting Insights
B44: Most Excel Users use Excel about | E44: =INDEX(Data!$K$13:$K$1888,(MODE(MATCH(Data!$K$13:$K$1888,Data!$K$13:$K$1888,0)))) -> 4 to 6 hours a day
B45: Most Survey respondents are from | E45: =INDEX(Data!$J$13:$J$1888,(MODE(MATCH(Data!$J$13:$J$1888,Data!$J$13:$J$1888,0)))) -> USA
B46: Most common Job Title | E46: =INDEX(Data!$I$13:$I$1888,(MODE(MATCH(Data!$I$13:$I$1888,Data!$I$13:$I$1888,0)))) -> Analyst
B47: Median Salary (PPP Adjusted) | E47: =MEDIAN(Data!G13:G1888) -> 44996.48562 | F47: =$C$14 -> USD
B48: "Excel is my Life" Power Users - Use All Day! | E48: =456/1876 -> 0.2430703625 | F48: - Indians top this list!
B49: But - Using Excel 8 Hours a day may not make you rich! | F49: See Below!
E53: Comparison of Pay and Excel Usage

Sheet Sheet1
A2: Nominal GDP | B2: in $Millions | F2: PPP GDP | G2: in $Millions | K2: PPP Table | M2: PPP Value | N2: Currency | O2: Currency Name | P2: Exhange Rate | Q2: PPP Value
C3: Nom GDP | H3: PPP GDP
A4: 1 | B4: United States | C4: 15094025 | F4: 1 | G4: United States | H4: 15094025 | K4: 1 | L4: United States | M4: 1 | N4: USD | O4: United States dollar | P4: 1 | Q4: 1
A5: 2 | B5: China | C5: 72981472 | F5: 2 | G5: China | H5: 11299967 | K5: 2 | L5: China | M5: 0.1548333665 | N5: CNY | O5: Chinese yuan | P5: 0.1572102105 | Q5: 0.1548333665
A6: 3 | B6: Japan | C6: 5869471 | F6: 3 | G6: India | H6: 4457784 | K6: 3 | L6: Japan | M6: 0.7565206473 | N6: JPY | O6: Japanese yen | P6: 0.01267358053 | Q6: 0.7565206473
A7: 4 | B7: Germany | C7: 3577031 | F7: 4 | G7: Japan | H7: 4440376 | K7: 4 | L7: Germany | M7: 0.8663833218 | N7: EUR | O7: Euro | P7: 1.270399439 | Q7: 0.8663833218
A8: 5 | B8: France | C8: 2776324 | F8: 5 | G8: Germany | H8: 3099080 | K8: 5 | L8: France | M8: 0.7988620925 | N8: EUR | O8: Euro | P8: 1.270399439 | Q8: 0.7988620925
A9: 6 | B9: Brazil | C9: 2492908 | F9: 6 | G9: Russia | H9: 2383402 | K9: 6 | L9: Brazil | M9: 0.9201920007 | N9: BRL | O9: Brazilian real | P9: 0.4942811669 | Q9: 0.9201920007
A10: 7 | B10: United Kingdom | C10: 2417570 | F10: 7 | G10: Brazil | H10: 2293954 | K10: 7 | L10: United Kingdom | M10: 0.9351551351 | N10: GBP | O10: British pound[C] | P10: 1.576178272 | Q10: 0.9351551351
A11: 8 | B11: Italy | C11: 2198730 | F11: 8 | G11: United Kingdom | H11: 2260803 | K11: 8 | L11: Italy | M11: 0.8400076408 | N11: EUR | O11: Euro | P11: 1.270399439 | Q11: 0.8400076408
A12: 9 | B12: Russia | C12: 1850401 | F12: 9 | G12: France | H12: 2217900 | K12: 9 | L12: Russia | M12: 1.288046213 | N12: RUB | O12: Russian ruble | Q12: 1.288046213
A13: 10 | B13: Canada | C13: 1736869 | F13: 10 | G13: Italy | H13: 1846950 | K13: 10 | L13: Canada | M13: 0.803820553 | N13: CAD | O13: Canadian dollar | P13: 0.983361523 | Q13: 0.803820553
A14: 11 | B14: India | C14: 1676143 | F14: 11 | G14: Mexico | H14: 1661640 | K14: 11 | L14: India | M14: 2.659548738 | N14: INR | O14: Indian rupee | P14: 0.01780791669 | Q14: 2.659548738
A15: 12 | B15: Spain | C15: 1493513 | F15: 12 | G15: South Korea | H15: 1554149 | K15: 12 | L15: Spain | M15: 0.9464048857 | N15: EUR | O15: Euro | P15: 1.270399439 | Q15: 0.9464048857
A16: 13 | B16: Australia | C16: 1488221 | F16: 13 | G16: Spain | H16: 1413468 | K16: 13 | L16: Australia | M16: 0.6144799731 | N16: AUD | O16: Australian dollar | P16: 1.019909656 | Q16: 0.6144799731
A17: 14 | B17: Mexico | C17: 1154784 | F17: 14 | G17: Canada | H17: 1396131 | K17: 14 | L17: Mexico | M17: 1.438918447 | N17: MXN | O17: Mexican peso | P17: 0.07304655257 | Q17: 1.438918447
A18: 15 | B18: South Korea | C18: 1116247 | F18: 15 | G18: Indonesia | H18: 1124649 | K18: 15 | L18: South Korea | M18: 1.392298479 | N18: KRW | O18: South Korean won | Q18: 1.392298479
A19: 16 | B19: Indonesia | C19: 845680 | F19: 16 | G19: Turkey | H19: 1073565 | K19: 16 | L19: Indonesia | M19: 1.329875367 | N19: IDR | O19: Indonesian rupiah | P19: 0.0001058894662 | Q19: 1.329875367
A20: 17 | B20: Netherlands | C20: 840433 | F20: 17 | G20: Iran | H20: 990219 | K20: 17 | L20: Netherlands | M20: 0.8377038979 | N20: EUR | O20: Euro[I] | P20: 1.270399439 | Q20: 0.8377038979
A21: 18 | B21: Turkey | C21: 778089 | F21: 18 | G21: Australia | H21: 914482 | K21: 18 | L21: Turkey | M21: 1.379745762 | N21: TRY | O21: Turkish lira | Q21: 1.379745762
A22: 19 | B22: Switzerland | C22: 636059 | F22: 19 | G22: Taiwan | H22: 876035 | K22: 19 | L22: Switzerland | M22: 0.5343686671 | N22: CHF | O22: Swiss franc | P22: 1.057873062 | Q22: 0.5343686671
A23: 20 | B23: Saudi Arabia | C23: 577595 | F23: 20 | G23: Poland | H23: 771658 | K23: 20 | L23: Saudi Arabia | M23: 1.182061825 | N23: SAR | O23: Saudi riyal | P23: 0.2666666667 | Q23: 1.182061825
A24: 21 | B24: Sweden | C24: 538237 | F24: 21 | G24: Argentina | H24: 716419 | K24: 21 | L24: Sweden | M24: 0.7092024517 | N24: SEK | O24: Swedish krona | P24: 0.1436552504 | Q24: 0.7092024517
A25: 22 | B25: Poland | C25: 513821 | F25: 22 | G25: Netherlands | H25: 704034 | K25: 22 | L25: Poland | M25: 1.501803157 | N25: PLN | O25: Polish złoty | P25: 0.3003147298 | Q25: 1.501803157
A26: 23 | B26: Belgium | C26: 513396 | F26: 23 | G26: Saudi Arabia | H26: 682753 | K26: 23 | L26: Belgium | M26: 0.8049945851 | N26: EUR | O26: Euro | P26: 1.270399439 | Q26: 0.8049945851
A27: 24 | B27: Norway | C27: 483650 | F27: 24 | G27: Thailand | H27: 602074 | K27: 24 | L27: Norway | M27: 0.5498004756 | N27: NOK | O27: Norwegian krone | P27: 0.1692511314 | Q27: 0.5498004756
A28: 25 | B28: Iran | C28: 482445 | F28: 25 | G28: South Africa | H28: 555134 | K28: 25 | L28: Iran | M28: 2.052501321 | N28: IRR | O28: Iranian rial | Q28: 2.052501321
A29: 26 | B29: Taiwan | C29: 466832 | F29: 26 | G29: Egypt | H29: 518976 | K29: 26 | L29: Taiwan | M29: 1.876553021 | N29: TWD | O29: New Taiwan dollar | Q29: 1.876553021
A30: 27 | B30: Argentina | C30: 447644 | F30: 27 | G30: Pakistan | H30: 488580 | K30: 27 | L30: Argentina | M30: 1.600421317 | N30: ARS | O30: Argentine peso | Q30: 1.600421317
A31: 28 | B31: Austria | C31: 419243 | F31: 28 | G31: Colombia | H31: 471964 | K31: 28 | L31: Austria | M31: 0.8396443113 | N31: EUR | O31: Euro | P31: 1.270399439 | Q31: 0.8396443113
A32: 29 | B32: South Africa | C32: 408074 | F32: 29 | G32: Malaysia | H32: 447279 | K32: 29 | L32: South Africa | M32: 1.360375814 | N32: ZAR | O32: South African rand | P32: 0.1219217799 | Q32: 1.360375814
A33: 30 | B33: United Arab Emirates | C33: 360136 | F33: 30 | G33: Nigeria | H33: 413402 | K33: 30 | L33: United Arab Emirates | M33: 0.7186868294 | N33: AED | O33: United Arab Emirates dirham | P33: 0.2722192127 | Q33: 0.7186868294
A34: 31 | B34: Thailand | C34: 345649 | F34: 31 | G34: Belgium | H34: 413281 | K34: 31 | L34: Thailand | M34: 1.741865303 | N34: THB | O34: Thai baht | Q34: 1.741865303
A35: 32 | B35: Denmark | C35: 333238 | F35: 32 | G35: Philippines | H35: 390408 | K35: 32 | L35: Denmark | M35: 0.6199353015 | N35: DKK | O35: Danish krone | P35: 0.1709042372 | Q35: 0.6199353015
A36: 33 | B36: Colombia | C36: 328422 | F36: 33 | G36: Sweden | H36: 381719 | K36: 33 | L36: Colombia | M36: 1.437065726 | N36: COP | O36: Colombian peso | Q36: 1.437065726
A37: 34 | B37: Venezuela | C37: 315841 | F37: 34 | G37: Venezuela | H37: 374111 | K37: 34 | L37: Venezuela | M37: 1.184491564 | N37: VEF | O37: Venezuelan bolívar | Q37: 1.184491564
A38: 35 | B38: Greece | C38: 303065 | F38: 35 | G38: Austria | H38: 352015 | K38: 35 | L38: Greece | M38: 0.9712074967 | N38: EUR | O38: Euro | P38: 1.270399439 | Q38: 0.9712074967
A39: 36 | B39: Malaysia | C39: 278680 | F39: 36 | G39: Switzerland | H39: 339890 | K39: 36 | L39: Malaysia | M39: 1.604991388 | N39: MYR | O39: Malaysian ringgit | P39: 0.3168005677 | Q39: 1.604991388
A40: 37 | B40: Finland | C40: 266553 | F40: 37 | G40: Ukraine | H40: 329497 | K40: 37 | L40: Finland | M40: 0.7342742344 | N40: EUR | O40: Euro | P40: 1.270399439 | Q40: 0.7342742344
A41: 38 | B41: Singapore | C41: 259849 | F41: 38 | G41: Singapore | H41: 314911 | K41: 38 | L41: Singapore | M41: 1.211899988 | N41: BND | O41: Brunei dollar | Q41: 1.211899988
A42: 39 | B42: Chile | C42: 248411 | F42: 39 | G42: Peru | H42: 301967 | K42: 39 | L42: Chile | M42: 1.206194573 | N42: CLP | O42: Chilean peso | Q42: 1.206194573
B43: Hong Kong | C43: 243302 | F43: 40 | G43: Vietnam | H43: 299985 | K43: 40 | L43: Hong Kong | M43: 1.443140624 | N43: HKD | O43: Hong Kong dollar | Q43: 1.443140624
A44: 40 | B44: Israel | C44: 242897 | F44: 41 | G44: Chile | H44: 299632 | K44: 41 | L44: Israel | M44: 0.9684022446 | N44: ILS | O44: Israeli new shekel | Q44: 0.9684022446
A45: 41 | B45: Nigeria | C45: 238920 | F45: 42 | G45: Greece | H45: 294339 | K45: 42 | L45: Nigeria | M45: 1.730294659 | N45: NGN | O45: Nigerian naira | Q45: 1.730294659
A46: 42 | B46: Portugal | C46: 238880 | F46: 43 | G46: Czech Republic | H46: 284952 | K46: 43 | L46: Portugal | M46: 1.042284829 | N46: EUR | O46: Euro | P46: 1.270399439 | Q46: 1.042284829
A47: 43 | B47: Egypt | C47: 235719 | F47: 44 | G47: Bangladesh | H47: 282229 | K47: 44 | L47: Egypt | M47: 2.20167233 | N47: EGP | O47: Egyptian pound | Q47: 2.20167233
A48: 44 | B48: Ireland | C48: 217669 | F48: 45 | G48: Romania | H48: 267151 | K48: 45 | L48: Ireland | M48: 0.8342713018 | N48: EUR | O48: Euro | P48: 1.270399439 | Q48: 0.8342713018
A49: 45 | B49: Czech Republic | C49: 215265 | F49: 46 | G49: Norway | H49: 265911 | K49: 46 | L49: Czech Republic | M49: 1.32372657 | N49: CZK | O49: Czech koruna | Q49: 1.32372657
A50: 46 | B50: Philippines | C50: 213129 | F50: 47 | G50: Algeria | H50: 263661 | K50: 47 | L50: Philippines | M50: 1.831792013 | N50: PHP | O50: Philippine peso | P50: 0.02370505226 | Q50: 1.831792013
A51: 47 | B51: Pakistan | C51: 210566 | F51: 48 | G51: United Arab Emirates | H51: 258825 | K51: 48 | L51: Pakistan | M51: 2.32031762 | N51: PKR | O51: Pakistani rupee | P51: 0.01061408872 | Q51: 2.32031762
A52: 48 | B52: Algeria | C52: 190709 | F52: 49 | G52: Portugal | H52: 248981 | K52: 49 | L52: Algeria | M52: 1.382530452 | N52: DZD | O52: Algerian dinar | Q52: 1.382530452
A53: 49 | B53: Romania | C53: 189776 | F53: 50 | G53: Israel | H53: 235222 | K53: 50 | L53: Romania | M53: 1.40771752 | N53: RON | O53: Romanian leu | P53: 0.2846132391 | Q53: 1.40771752
A54: 50 | B54: Kazakhstan | C54: 178312 | F54: 51 | G54: Kazakhstan | H54: 216785 | K54: 51 | L54: Kazakhstan | M54: 1.215762259 | N54: KZT | O54: Kazakhstani tenge | Q54: 1.215762259
A55: 51 | B55: Kuwait | C55: 176667 | F55: 52 | G55: Denmark | H55: 206586 | K55: 52 | L55: Kuwait | M55: 0.8688719455 | N55: KWD | O55: Kuwaiti dinar | Q55: 0.8688719455
A56: 52 | B56: Qatar | C56: 173847 | F56: 53 | G56: Finland | H56: 195723 | K56: 53 | L56: Qatar | M56: 1.046920568 | N56: QAR | O56: Qatari riyal | Q56: 1.046920568
A57: 53 | B57: Peru | C57: 173502 | F57: 54 | G57: Hungary | H57: 195640 | K57: 54 | L57: Peru | M57: 1.740423742 | N57: PEN | O57: Peruvian nuevo sol | Q57: 1.740423742
A58: 54 | B58: Ukraine | C58: 164960 | F58: 55 | G58: Qatar | H58: 182004 | K58: 55 | L58: Ukraine | M58: 1.997435742 | N58: UAH | O58: Ukrainian hryvnia | Q58: 1.997435742
A59: 55 | B59: New Zealand | C59: 161851 | F59: 56 | G59: Ireland | H59: 181595 | K59: 56 | L59: New Zealand | M59: 0.7549721658 | N59: NZD | O59: New Zealand dollar | P59: 0.7975880936 | Q59: 0.7549721658
A60: 56 | B60: Hungary | C60: 140303 | F60: 57 | G60: Morocco | H60: 162617 | K60: 57 | L60: Hungary | M60: 1.394410668 | N60: HUF | O60: Hungarian forint | Q60: 1.394410668
A61: 57 | B61: Vietnam | C61: 122722 | F61: 58 | G61: Kuwait | H61: 153501 | K61: 58 | L61: Vietnam | M61: 2.444427242 | N61: VND | O61: Vietnamese đồng | Q61: 2.444427242
A62: 58 | B62: Iraq | C62: 115388 | F62: 59 | G62: Belarus | H62: 141771 | K62: 59 | L62: Iraq | M62: 1.106102888 | N62: IQD | O62: Iraqi dinar | Q62: 1.106102888
A63: 59 | B63: Bangladesh | C63: 113032 | F63: 60 | G63: Iraq | H63: 127631 | K63: 60 | L63: Bangladesh | M63: 2.496894685 | N63: BDT | O63: Bangladeshi taka | P63: 0.01222084534 | Q63: 2.496894685
A64: 60 | B64: Angola | C64: 100948 | F64: 61 | G64: Ecuador | H64: 127426 | K64: 61 | L64: Angola | M64: 1.145926616 | N64: AOA | O64: Angolan kwanza | Q64: 1.145926616
A65: 61 | B65: Morocco | C65: 99241 | F65: 62 | G65: Slovak Republic | H65: 126916 | K65: 62 | L65: Morocco | M65: 1.638607027 | N65: MAD | O65: Moroccan dirham | P65: 0.1145475372 | Q65: 1.638607027
A66: 62 | B66: Slovakia | C66: 96089 | F66: 63 | G66: New Zealand | H66: 122193 | K66: 63 | L66: Slovakia | N66: EUR | O66: Euro | P66: 1.270399439
A67: 63 | B67: Oman | C67: 71888 | F67: 64 | G67: Sri Lanka | H67: 116541 | K67: 64 | L67: Oman | M67: 1.137422101 | N67: OMR | O67: Omani rial | Q67: 1.137422101
A68: 64 | B68: Ecuador | C68: 66381 | F68: 65 | G68: Angola | H68: 115679 | K68: 65 | L68: Ecuador | M68: 1.919615553 | N68: USD | O68: United States dollar | P68: 1 | Q68: 1.919615553
A69: 65 | B69: Sudan + South Sudan | C69: 64750 | F69: 66 | G69: Bulgaria | H69: 101036 | K69: 66 | L69: Sudan + South Sudan | M69: 1.375258687 | N69: SSP | O69: South Sudanese pound | Q69: 1.375258687
A70: 66 | B70: Croatia | C70: 63842 | F70: 67 | G70: Tunisia | H70: 100979 | K70: 67 | L70: Croatia | M70: 1.25832524 | N70: HRK | O70: Croatian kuna | Q70: 1.25832524
A71: 67 | B71: Azerbaijan | C71: 62321 | F71: 68 | G71: Uzbekistan | H71: 95239 | K71: 68 | L71: Azerbaijan | M71: 1.4931564 | N71: AZN | O71: Azerbaijani manat | Q71: 1.4931564
A72: 68 | B72: Sri Lanka | C72: 59095 | F72: 69 | G72: Ethiopia | H72: 94878 | K72: 69 | L72: Sri Lanka | M72: 1.972095778 | N72: LKR | O72: Sri Lankan rupee | P72: 0.007524058176 | Q72: 1.972095778
A73: 69 | B73: Luxembourg | C73: 58412 | F73: 70 | G73: Dominican Republic | H73: 93383 | K73: 70 | L73: Luxembourg | M73: 0.7056940355 | N73: EUR | O73: Euro | P73: 1.270399439 | Q73: 0.7056940355
A74: 70 | B74: Dominican Republic | C74: 56700 | F74: 71 | G74: Azerbaijan | H74: 93055 | K74: 71 | L74: Dominican Republic | M74: 1.64696649 | N74: DOP | O74: Dominican peso | P74: 0.02567394095 | Q74: 1.64696649
A75: 71 | B75: Belarus | C75: 55483 | F75: 72 | G75: Sudan + South Sudan | H75: 89048 | K75: 72 | L75: Belarus | M75: 2.555215111 | N75: BYR | O75: Belarusian ruble | Q75: 2.555215111
A76: 72 | B76: Bulgaria | C76: 53514 | F76: 73 | G76: Myanmar | H76: 82679 | K76: 73 | L76: Bulgaria | M76: 1.888029301 | N76: BGN | O76: Bulgarian lev | Q76: 1.888029301
A77: 73 | B77: Burma | C77: 51925 | F77: 74 | G77: Oman | H77: 81767 | K77: 74 | L77: Burma | N77: MMK | O77: Burmese kyat
A78: 74 | B78: Slovenia | C78: 49588 | F78: 75 | G78: Croatia | H78: 80334 | K78: 75 | L78: Slovenia | M78: 1.167459869 | N78: EUR | O78: Euro | P78: 1.270399439 | Q78: 1.167459869
A79: 75 | B79: Guatemala | C79: 46897 | F79: 76 | G79: Serbia | H79: 78869 | K79: 76 | L79: Guatemala | M79: 1.593044331 | N79: GTQ | O79: Guatemalan quetzal | Q79: 1.593044331
A80: 76 | B80: Uruguay | C80: 46872 | F80: 77 | G80: Ghana | H80: 74937 | K80: 77 | L80: Uruguay | M80: 1.086106844 | N80: UYU | O80: Uruguayan peso | Q80: 1.086106844
A81: 77 | B81: Tunisia | C81: 46360 | F81: 78 | G81: Guatemala | H81: 74709 | K81: 78 | L81: Tunisia | M81: 2.178149267 | N81: TND | O81: Tunisian dinar | Q81: 2.178149267
A82: 78 | B82: Uzbekistan | C82: 45353 | F82: 79 | G82: Kenya | H82: 71427 | K82: 79 | L82: Uzbekistan | M82: 2.099949287 | N82: UZS | O82: Uzbekistani som | Q82: 2.099949287
A83: 79 | B83: Serbia | C83: 45064 | F83: 80 | G83: Tanzania | H83: 63892 | K83: 80 | L83: Serbia | M83: 1.750155335 | N83: RSD | O83: Serbian dinar | Q83: 1.750155335
A84: 80 | B84: Lithuania | C84: 42718 | F84: 81 | G84: Lithuania | H84: 61605 | K84: 81 | L84: Lithuania | M84: 1.442132122 | N84: LTL | O84: Lithuanian litas | Q84: 1.442132122
A85: 81 | B85: Costa Rica | C85: 40947 | F85: 82 | G85: Lebanon | H85: 61444 | K85: 82 | L85: Costa Rica | M85: 1.343712604 | N85: CRC | O85: Costa Rican colón | Q85: 1.343712604
A86: 82 | B86: Lebanon | C86: 39039 | F86: 83 | G86: Yemen | H86: 57966 | K86: 83 | L86: Lebanon | M86: 1.573913266 | N86: LBP | O86: Lebanese pound | Q86: 1.573913266
A87: 83 | B87: Ghana | C87: 37158 | F87: 84 | G87: Slovenia | H87: 57892 | K87: 84 | L87: Ghana | M87: 2.016712417 | N87: GHS | O87: Ghana cedi | Q87: 2.016712417
A88: 84 | B88: Libya | C88: 36874 | F88: 85 | G88: Costa Rica | H88: 55021 | K88: 85 | L88: Libya | M88: 1.016759777 | N88: LYD | O88: Libyan dinar | Q88: 1.016759777
A89: 85 | B89: Kenya | C89: 34796 | F89: 86 | G89: Uruguay | H89: 50908 | K89: 86 | L89: Kenya | M89: 2.052735947 | N89: KES | O89: Kenyan shilling | Q89: 2.052735947
A90: 86 | B90: Yemen | C90: 33675 | F90: 87 | G90: Bolivia | H90: 50904 | K90: 87 | L90: Yemen | M90: 1.721336303 | N90: YER | O90: Yemeni rial | Q90: 1.721336303
A91: 87 | B91: Ethiopia | C91: 31256 | F91: 88 | G91: Panama | H91: 50612 | K91: 88 | L91: Ethiopia | M91: 3.035513181 | N91: ETB | O91: Ethiopian birr | P91: 0.05656108597 | Q91: 3.035513181
A92: 88 | B92: Panama | C92: 30569 | F92: 89 | G92: Cameroon | H92: 47251 | K92: 89 | L92: Panama | M92: 1.655664235 | N92: PAB | O92: Panamanian balboa | Q92: 1.655664235
A93: 89 | B93: Jordan | C93: 29233 | F93: 90 | G93: Uganda | H93: 46368 | K93: 90 | L93: Jordan | M93: 1.262032634 | N93: JOD | O93: Jordanian dinar | Q93: 1.262032634
A94: 90 | B94: Latvia | C94: 28252 | F94: 91 | G94: El Salvador | H94: 44576 | K94: 91 | L94: Latvia | M94: 1.236054085 | N94: LVL | O94: Latvian lats | Q94: 1.236054085
A95: 91 | B95: Bahrain | C95: 26108 | F95: 92 | G95: Turkmenistan | H95: 43359 | K95: 92 | L95: Bahrain | M95: 1.191244063 | N95: BHD | O95: Bahraini dinar | Q95: 1.191244063
A96: 92 | B96: Cameroon | C96: 25759 | F96: 93 | G96: Luxembourg | H96: 41221 | K96: 93 | L96: Cameroon | M96: 1.83434916 | N96: XAF | O96: Central African CFA franc | Q96: 1.83434916
A97: 93 | B97: Turkmenistan | C97: 25742 | F97: 94 | G97: Nepal | H97: 37795 | K97: 94 | L97: Turkmenistan | M97: 1.684367959 | N97: TMT | O97: Turkmenistan manat | Q97: 1.684367959
A98: 94 | B98: Cyprus | C98: 24949 | F98: 95 | G98: Libya | H98: 37492 | K98: 95 | L98: Cyprus | M98: 0.9510601627 | N98: EUR | O98: Euro | P98: 1.270399439 | Q98: 0.9510601627
A99: 95 | B99: Bolivia | C99: 24604 | F99: 96 | G99: Jordan | H99: 36893 | K99: 96 | L99: Bolivia | M99: 2.068931881 | N99: BOB | O99: Bolivian boliviano | Q99: 2.068931881
A100: 96 | B100: Côte d'Ivoire | C100: 24096 | F100: 97 | G100: Côte d'Ivoire | H100: 36068 | K100: 97 | L100: Côte d'Ivoire | M100: 1.49684595 | N100: XOF | O100: West African CFA franc | Q100: 1.49684595
A101: 97 | B101: Tanzania | C101: 23333 | F101: 98 | G101: Honduras | H101: 35697 | K101: 98 | L101: Tanzania | M101: 2.73826769 | N101: TZS | O101: Tanzanian shilling | Q101: 2.73826769
A102: 98 | B102: El Salvador | C102: 22761 | F102: 99 | G102: Paraguay | H102: 35346 | K102: 99 | L102: El Salvador | M102: 1.958437678 | N102: SVC | O102: Salvadoran colón | Q102: 1.958437678
A103: 99 | B103: Trinidad and Tobago | C103: 22707 | F103: 100 | G103: Latvia | H103: 34921 | K103: 100 | L103: Trinidad and Tobago | M103: 1.168714493 | N103: TTD | O103: Trinidad and Tobago dollar | Q103: 1.168714493
A104: 100 | B104: Estonia | C104: 22225 | F104: 101 | G104: Cambodia | H104: 33463 | K104: 101 | L104: Estonia | M104: 1.228931384 | N104: EUR | O104: Euro | P104: 1.270399439 | Q104: 1.228931384
A105: 101 | B105: Paraguay | C105: 21236 | F105: 102 | G105: Bosnia and Herzegovina | H105: 31638 | K105: 102 | L105: Paraguay | M105: 1.664437747 | N105: PYG | O105: Paraguayan guaraní | Q105: 1.664437747
A106: 102 | B106: Equatorial Guinea | C106: 19805 | F106: 103 | G106: Bahrain | H106: 31101 | K106: 103 | L106: Equatorial Guinea | M106: 1.320222166 | N106: XAF | O106: Central African CFA franc | Q106: 1.320222166
A107: 103 | B107: Zambia | C107: 19206 | F107: 104 | G107: Afghanistan | H107: 29731 | K107: 104 | L107: Zambia | M107: 1.139331459 | N107: ZMK | O107: Zambian kwacha | Q107: 1.139331459
A108: 104 | B108: Nepal | C108: 18580 | F108: 105 | G108: Botswana | H108: 29707 | K108: 105 | L108: Nepal | M108: 2.034176534 | N108: NPR | O108: Nepalese rupee | Q108: 2.034176534
A109: 105 | B109: Afghanistan | C109: 18181 | F109: 106 | G109: Estonia | H109: 27313 | K109: 106 | L109: Afghanistan | M109: 1.635278588 | N109: AFN | O109: Afghan afghani | Q109: 1.635278588
A110: 106 | B110: Bosnia and Herzegovina | C110: 17965 | F110: 107 | G110: Trinidad and Tobago | H110: 26538 | K110: 107 | L110: Bosnia and Herzegovina | M110: 1.76109101 | N110: BAM | O110: Bosnia and Herzegovina convertible mark | Q110: 1.76109101
A111: 107 | B111: Botswana | C111: 17570 | F111: 108 | G111: Equatorial Guinea | H111: 26147 | K111: 108 | L111: Botswana | M111: 1.690779738 | N111: BWP | O111: Botswana pula | Q111: 1.690779738
A112: 108 | B112: Honduras | C112: 17381 | F112: 109 | G112: Congo, Democratic Republic of the | H112: 25262 | K112: 109 | L112: Honduras | M112: 2.053794373 | N112: HNL | O112: Honduran lempira | Q112: 2.053794373
A113: 109 | B113: Uganda | C113: 16810 | F113: 110 | G113: Senegal | H113: 25152 | K113: 110 | L113: Uganda | M113: 2.75835812 | N113: UGX | O113: Ugandan shilling | Q113: 2.75835812
A114: 110 | B114: Gabon | C114: 16176 | F114: 111 | G114: Albania | H114: 24910 | K114: 111 | L114: Gabon | M114: 1.518978734 | N114: XAF | O114: Central African CFA franc | Q114: 1.518978734
A115: 111 | B115: Congo, Democratic Republic of the | C115: 15668 | F115: 112 | G115: Jamaica | H115: 24750 | K115: 112 | L115: Congo, Democratic Republic of the | M115: 1.612330865 | N115: CDF | O115: Congolese franc | Q115: 1.612330865
A116: 112 | B116: Brunei | C116: 15533 | F116: 113 | G116: Gabon | H116: 24571 | K116: 113 | L116: Brunei | M116: 1.349964592 | N116: BND | O116: Brunei dollar | Q116: 1.349964592
A117: 113 | B117: Jamaica | C117: 14807 | F117: 114 | G117: Georgia | H117: 24541 | K117: 114 | L117: Jamaica | M117: 1.67150672 | N117: JMD | O117: Jamaican dollar | Q117: 1.67150672
A118: 114 | B118: Congo, Republic of the | C118: 14769 | F118: 115 | G118: Mozambique | H118: 23886 | K118: 115 | L118: Congo, Republic of the | M118: 1.235696391 | N118: XAF | O118: Central African CFA franc | Q118: 1.235696391
A119: 115 | B119: Senegal | C119: 14461 | F119: 116 | G119: Cyprus | H119: 23728 | K119: 116 | L119: Senegal | M119: 1.739298804 | N119: XOF | O119: West African CFA franc | Q119: 1.739298804
A120: 116 | B120: Georgia | C120: 14347 | F120: 117 | G120: Burkina Faso | H120: 22042 | K120: 117 | L120: Georgia | M120: 1.710531818 | N120: GEL | O120: Georgian lari | Q120: 1.710531818
A121: 117 | B121: Iceland | C121: 14048 | F121: 118 | G121: Zambia | H121: 21882 | K121: 118 | L121: Iceland | M121: 0.8833285877 | N121: ISK | O121: Icelandic króna | Q121: 0.8833285877
A122: 118 | B122: Cambodia | C122: 12861 | F122: 119 | G122: Macedonia | H122: 21345 | K122: 119 | L122: Cambodia | M122: 2.601897209 | N122: KHR | O122: Cambodian riel | Q122: 2.601897209
A123: 119 | B123: Albania | C123: 12847 | F123: 120 | G123: Brunei | H123: 20969 | K123: 120 | L123: Albania | M123: 1.93897408 | N123: ALL | O123: Albanian lek | Q123: 1.93897408
A124: 120 | B124: Mozambique | C124: 12827 | F124: 121 | G124: Madagascar | H124: 20400 | K124: 121 | L124: Mozambique | M124: 1.862165744 | N124: MZN | O124: Mozambican metical | Q124: 1.862165744
A125: 121 | B125: Papua New Guinea | C125: 12655 | F125: 122 | G125: Chad | H125: 19543 | K125: 122 | L125: Papua New Guinea | M125: 1.332516792 | N125: PGK | O125: Papua New Guinean kina | Q125: 1.332516792
A126: 122 | B126: Namibia | C126: 12461 | F126: 123 | G126: Mauritius | H126: 19276 | K126: 123 | L126: Namibia | M126: 1.263381751 | N126: NAD | O126: Namibian dollar | Q126: 1.263381751
A127: 123 | B127: Mauritius | C127: 11313 | F127: 124 | G127: Nicaragua | H127: 18878 | K127: 124 | L127: Mauritius | M127: 1.703880491 | N127: MUR | O127: Mauritian rupee | P127: 0.03255642843 | Q127: 1.703880491
A128: 124 | B128: Mali | C128: 10600 | F128: 125 | G128: Congo, Republic of the | H128: 18250 | K128: 125 | L128: Mali | M128: 1.686037736 | N128: XOF | O128: West African CFA franc | Q128: 1.686037736
A129: 125 | B129: Macedonia | C129: 10327 | F129: 126 | G129: Armenia | H129: 17941 | K129: 126 | L129: Macedonia | M129: 2.066911978 | N129: MKD | O129: Macedonian denar | Q129: 2.066911978
A130: 126 | B130: Armenia | C130: 10106 | F130: 127 | G130: Mali | H130: 17872 | K130: 127 | L130: Armenia | M130: 1.775282011 | N130: AMD | O130: Armenian dram | Q130: 1.775282011
A131: 127 | B131: Madagascar | C131: 10025 | F131: 128 | G131: Laos | H131: 17433 | K131: 128 | L131: Madagascar | M131: 2.034912718 | N131: MGA | O131: Malagasy ariary | Q131: 2.034912718
A132: 128 | B132: Burkina Faso | C132: 9981 | F132: 129 | G132: Papua New Guinea | H132: 16863 | K132: 129 | L132: Burkina Faso | M132: 2.208395952 | N132: XOF | O132: West African CFA franc | Q132: 2.208395952
A133: 129 | B133: Chad | C133: 9344 | F133: 130 | G133: Tajikistan | H133: 16221 | K133: 130 | L133: Chad | M133: 2.091502568 | N133: XAF | O133: Central African CFA franc | Q133: 2.091502568
A134: 130 | B134: Zimbabwe | C134: 9323 | F134: 131 | G134: Namibia | H134: 15743 | K134: 131 | L134: Zimbabwe | M134: 0.657191891 | N134: BWP | O134: Botswana pula | Q134: 0.657191891
A135: 131 | B135: Malta | C135: 8896 | F135: 132 | G135: Benin | H135: 14683 | K135: 132 | L135: Malta | M135: 1.209195144 | N135: EUR | O135: Euro | P135: 1.270399439 | Q135: 1.209195144
A136: 132 | B136: Mongolia | C136: 8506 | F136: 133 | G136: Malawi | H136: 13901 | K136: 133 | L136: Mongolia | M136: 1.559369857 | N136: MNT | O136: Mongolian tögrög | Q136: 1.559369857
A137: 133 | B137: Bahamas, The | C137: 8074 | F137: 134 | G137: Rwanda | H137: 13684 | K137: 134 | L137: Bahamas, The | M137: 1.335769135 | N137: BSD | O137: Bahamian dollar | Q137: 1.335769135
A138: 134 | B138: Laos | C138: 7891 | F138: 135 | G138: Mongolia | H138: 13264 | K138: 135 | L138: Laos | M138: 2.2092257 | N138: LAK | O138: Lao kip | Q138: 2.2092257
A139: 135 | B139: Haiti | C139: 7388 | F139: 136 | G139: Kyrgyzstan | H139: 13125 | K139: 136 | L139: Haiti | M139: 1.673659989 | N139: HTG | O139: Haitian gourde | Q139: 1.673659989
A140: 136 | B140: Benin | C140: 7306 | F140: 137 | G140: Kosovo | H140: 12859 | K140: 137 | L140: Benin | M140: 2.00971804 | N140: XOF | O140: West African CFA franc | Q140: 2.00971804
A141: 137 | B141: Nicaragua | C141: 7297 | F141: 138 | G141: Iceland | H141: 12409 | K141: 138 | L141: Nicaragua | M141: 2.587090585 | N141: NIO | O141: Nicaraguan córdoba | Q141: 2.587090585
A142: 138 | B142: Moldova | C142: 7003 | F142: 139 | G142: Haiti | H142: 12365 | K142: 139 | L142: Moldova | M142: 1.713265743 | N142: MDL | O142: Moldovan leu | Q142: 1.713265743
A143: 139 | B143: Tajikistan | C143: 6523 | F143: 140 | G143: Moldova | H143: 11998 | K143: 140 | L143: Tajikistan | M143: 2.48673923 | N143: TJS | O143: Tajikistani somoni | Q143: 2.48673923
A144: 140 | B144: Kosovo | C144: 6452 | F144: 141 | G144: Niger | H144: 11632 | K144: 141 | L144: Kosovo | M144: 1.993025418 | N144: EUR | O144: Euro | P144: 1.270399439 | Q144: 1.993025418
A145: 141 | B145: Rwanda | C145: 6179 | F145: 142 | G145: Guinea | H145: 11464 | K145: 142 | L145: Rwanda | M145: 2.214597831 | N145: RWF | O145: Rwandan franc | Q145: 2.214597831
A146: 142 | B146: Niger | C146: 6022 | F146: 143 | G146: Bahamas, The | H146: 10785 | K146: 143 | L146: Niger | M146: 1.931584191 | N146: XOF | O146: West African CFA franc | Q146: 1.931584191
A147: 143 | B147: Kyrgyzstan | C147: 5920 | F147: 144 | G147: Malta | H147: 10757 | K147: 144 | L147: Kyrgyzstan | M147: 2.217060811 | N147: KGS | O147: Kyrgyzstani som | Q147: 2.217060811
A148: 144 | B148: Malawi | C148: 5673 | F148: 145 | G148: Timor-Leste | H148: 9507 | K148: 145 | L148: Malawi | M148: 2.450378988 | N148: MWK | O148: Malawian kwacha | Q148: 2.450378988
A149: 145 | B149: Guinea | C149: 5212 | F149: 146 | G149: Montenegro | H149: 7157 | K149: 146 | L149: Guinea | M149: 2.199539524 | N149: GNF | O149: Guinean franc | Q149: 2.199539524
A150: 146 | B150: Montenegro | C150: 4536 | F150: 147 | G150: Mauritania | H150: 7093 | K150: 147 | L150: Montenegro | M150: 1.577821869 | N150: EUR | O150: Euro | P150: 1.270399439 | Q150: 1.577821869
A151: 147 | B151: Barbados | C151: 4478 | F151: 148 | G151: Barbados | H151: 6493 | K151: 148 | L151: Barbados | M151: 1.449977669 | N151: BBD | O151: Barbadian dollar | Q151: 1.449977669
A152: 148 | B152: Timor-Leste | C152: 4315 | F152: 149 | G152: Togo | H152: 6415 | K152: 149 | L152: Timor-Leste | M152: 2.203244496 | N152: USD | O152: United States dollar | P152: 1 | Q152: 2.203244496
A153: 149 | B153: Mauritania | C153: 4200 | F153: 150 | G153: Swaziland | H153: 6233 | K153: 150 | L153: Mauritania | M153: 1.688809524 | N153: MRO | O153: Mauritanian ouguiya | Q153: 1.688809524
A154: 150 | B154: Swaziland | C154: 3947 | F154: 151 | G154: Zimbabwe | H154: 6127 | K154: 151 | L154: Swaziland | M154: 1.579174056 | N154: SZL | O154: Swazi lilangeni | Q154: 1.579174056
A155: 151 | B155: Suriname | C155: 3790 | F155: 152 | G155: Guyana | H155: 5783 | K155: 152 | L155: Suriname | M155: 1.335092348 | N155: SRD | O155: Surinamese dollar | Q155: 1.335092348
A156: 152 | B156: Togo | C156: 3611 | F156: 153 | G156: Burundi | H156: 5184 | K156: 153 | L156: Togo | M156: 1.7765162 | N156: XOF | O156: West African CFA franc | Q156: 1.7765162
A157: 153 | B157: Fiji | C157: 3546 | F157: 154 | G157: Sierra Leone | H157: 5093 | K157: 154 | L157: Fiji | M157: 1.165538635 | N157: FJD | O157: Fijian dollar | Q157: 1.165538635
A158: 154 | B158: Eritrea | C158: 2609 | F158: 155 | G158: Suriname | H158: 5060 | K158: 155 | L158: Eritrea | M158: 1.547336144 | N158: ERN | O158: Eritrean nakfa | Q158: 1.547336144
A159: 155 | B159: Guyana | C159: 2480 | F159: 156 | G159: Bhutan | H159: 4287 | K159: 156 | L159: Guyana | M159: 2.331854839 | N159: GYD | O159: Guyanese dollar | Q159: 2.331854839
A160: 156 | B160: Lesotho | C160: 2453 | F160: 157 | G160: Fiji | H160: 4133 | K160: 157 | L160: Lesotho | M160: 1.550754179 | N160: LSL | O160: Lesotho loti | Q160: 1.550754179
A161: 157 | B161: Burundi | C161: 2356 | F161: 158 | G161: Eritrea | H161: 4037 | K161: 158 | L161: Burundi | M161: 2.200339559 | N161: BIF | O161: Burundian franc | Q161: 2.200339559
A162: 158 | B162: Sierra Leone | C162: 2196 | F162: 159 | G162: Lesotho | H162: 3804 | K162: 159 | L162: Sierra Leone | M162: 2.319216758 | N162: SLL | O162: Sierra Leonean leone | Q162: 2.319216758
A163: 159 | B163: Central African Republic | C163: 2165 | F163: 160 | G163: Central African Republic | H163: 3641 | K163: 160 | L163: Central African Republic | M163: 1.681755196 | N163: XAF | O163: Central African CFA franc | Q163: 1.681755196
A164: 160 | B164: Maldives | C164: 1944 | F164: 161 | G164: Gambia, The | H164: 3496 | K164: 161 | L164: Maldives | M164: 1.461419753 | N164: MVR | O164: Maldivian rufiyaa | Q164: 1.461419753
A165: 161 | B165: Cape Verde | C165: 1903 | F165: 162 | G165: Maldives | H165: 2841 | K165: 162 | L165: Cape Verde | M165: 1.078297425 | N165: CVE | O165: Cape Verdean escudo | Q165: 1.078297425
A166: 162 | B166: Bhutan | C166: 1488 | F166: 163 | G166: Belize | H166: 2800 | K166: 163 | L166: Bhutan | M166: 2.881048387 | N166: BTN | O166: Bhutanese ngultrum | Q166: 2.881048387
A167: 163 | B167: Belize | C167: 1474 | F167: 164 | G167: Seychelles | H167: 2245 | K167: 164 | L167: Belize | M167: 1.899592944 | N167: BZD | O167: Belize dollar | Q167: 1.899592944
A168: 164 | B168: Djibouti | C168: 1239 | F168: 165 | G168: Djibouti | H168: 2231 | K168: 165 | L168: Djibouti | M168: 1.800645682 | N168: DJF | O168: Djiboutian franc | Q168: 1.800645682
A169: 165 | B169: Saint Lucia | C169: 1239 | F169: 166 | G169: Saint Lucia | H169: 2101 | K169: 166 | L169: Saint Lucia | M169: 1.695722357 | N169: XCD | O169: East Caribbean dollar | Q169: 1.695722357
A170: 166 | B170: Antigua and Barbuda | C170: 1187 | F170: 167 | G170: Cape Verde | H170: 2052 | K170: 167 | L170: Antigua and Barbuda | M170: 1.326874473 | N170: XCD | O170: East Caribbean dollar | Q170: 1.326874473
A171: 167 | B171: Liberia | C171: 1154 | F171: 168 | G171: Guinea-Bissau | H171: 1925 | K171: 168 | L171: Liberia | M171: 1.532928943 | N171: LRD | O171: Liberian dollar | Q171: 1.532928943
A172: 168 | B172: Seychelles | C172: 1014 | F172: 169 | G172: Liberia | H172: 1769 | K172: 169 | L172: Seychelles | M172: 2.214003945 | N172: SCR | O172: Seychellois rupee | Q172: 2.214003945
A173: 169 | B173: Gambia, The | C173: 977 | F173: 170 | G173: Solomon Islands | H173: 1725 | K173: 170 | L173: Gambia, The | M173: 3.578300921 | N173: GMD | O173: Gambian dalasi | Q173: 3.578300921
A174: 170 | B174: Guinea-Bissau | C174: 969 | F174: 171 | G174: Antigua and Barbuda | H174: 1575 | K174: 171 | L174: Guinea-Bissau | M174: 1.986584107 | N174: XOF | O174: West African CFA franc | Q174: 1.986584107
A175: 171 | B175: Solomon Islands | C175: 840 | F175: 172 | G175: Grenada | H175: 1449 | K175: 172 | L175: Solomon Islands | M175: 2.053571429 | N175: SBD | O175: Solomon Islands dollar | Q175: 2.053571429
A176: 172 | B176: Grenada | C176: 822 | F176: 173 | G176: Saint Vincent and the Grenadines | H176: 1259 | K176: 173 | L176: Grenada | M176: 1.762773723 | N176: XCD | O176: East Caribbean dollar | Q176: 1.762773723
A177: 173 | B177: Vanuatu | C177: 743 | F177: 174 | G177: Vanuatu | H177: 1204 | K177: 174 | L177: Vanuatu | M177: 1.620457604 | N177: VUV | O177: Vanuatu vatu | Q177: 1.620457604
A178: 174 | B178: Saint Kitts and Nevis | C178: 715 | F178: 175 | G178: Samoa | H178: 1090 | K178: 175 | L178: Saint Kitts and Nevis | M178: 1.223776224 | N178: XCD | O178: East Caribbean dollar | Q178: 1.223776224
A179: 175 | B179: Saint Vincent and the Grenadines | C179: 695 | F179: 176 | G179: Dominica | H179: 977 | K179: 176 | L179: Saint Vincent and the Grenadines | M179: 1.811510791 | N179: XCD | O179: East Caribbean dollar | Q179: 1.811510791
A180: 176 | B180: Samoa | C180: 630 | F180: 177 | G180: Saint Kitts and Nevis | H180: 875 | K180: 177 | L180: Samoa | M180: 1.73015873 | N180: WST | O180: Samoan tālā | Q180: 1.73015873
A181: 177 | B181: Comoros | C181: 614 | F181: 178 | G181: Comoros | H181: 837 | K181: 178 | L181: Comoros | M181: 1.363192182 | N181: KMF | O181: Comorian franc | Q181: 1.363192182
A182: 178 | B182: Dominica | C182: 489 | F182: 179 | G182: Tonga | H182: 763 | K182: 179 | L182: Dominica | M182: 1.99795501 | N182: XCD | O182: East Caribbean dollar | Q182: 1.99795501
A183: 179 | B183: Tonga | C183: 439 | F183: 180 | G183: Kiribati | H183: 599 | K183: 180 | L183: Tonga | M183: 1.738041002 | N183: TOP | O183: Tongan paʻanga | Q183: 1.738041002
A184: 180 | B184: São Tomé and Príncipe | C184: 248 | F184: 181 | G184: São Tomé and Príncipe | H184: 379 | K184: 181 | L184: São Tomé and Príncipe | M184: 1.528225806 | N184: STD | O184: São Tomé and Príncipe dobra | Q184: 1.528225806
A185: 181 | B185: Kiribati | C185: 167 | F185: 182 | G185: Tuvalu | H185: 37 | K185: 182 | L185: Kiribati | M185: 3.586826347 | N185: AUD | O185: Australian dollar | P185: 1.019909656 | Q185: 3.586826347
A186: 182 | B186: Tuvalu | C186: 35 | G186: Hong Kong | H186: 351119 | K186: 183 | L186: Tuvalu | M186: 1.057142857 | N186: AUD | O186: Australian dollar | P186: 1.019909656 | Q186: 1.057142857

Sheet Sheet2
A1: Abkhazia | B1: None | C1: None
B2: Russian ruble | C2: RUB
A3: Afghanistan | B3: Afghan afghani | C3: AFN
A4: Akrotiri and Dhekelia | B4: Euro | C4: EUR
A5: Albania | B5: Albanian lek | C5: ALL
A6: Alderney | B6: Alderney pound[A] | C6: None
B7: British pound[C] | C7: GBP
B8: Guernsey pound | C8: None
A9: Algeria | B9: Algerian dinar | C9: DZD
A10: Andorra | B10: Euro | C10: EUR
A11: Angola | B11: Angolan kwanza | C11: AOA
A12: Anguilla | B12: East Caribbean dollar | C12: XCD
A13: Antigua and Barbuda | B13: East Caribbean dollar | C13: XCD
A14: Argentina | B14: Argentine peso | C14: ARS
A15: Armenia | B15: Armenian dram | C15: AMD
A16: Aruba | B16: Aruban florin | C16: AWG
A17: United Kingdom Ascension Island | B17: Ascension pound[A] | C17: None
B18: Saint Helena pound | C18: SHP
A19: Australia | B19: Australian dollar | C19: AUD
A20: Austria | B20: Euro | C20: EUR
A21: Azerbaijan | B21: Azerbaijani manat | C21: AZN
A22: Bahamas, The | B22: Bahamian dollar | C22: BSD
A23: Bahrain | B23: Bahraini dinar | C23: BHD
A24: Bangladesh | B24: Bangladeshi taka | C24: BDT
A25: Barbados | B25: Barbadian dollar | C25: BBD
A26: Belarus | B26: Belarusian ruble | C26: BYR
A27: Belgium | B27: Euro | C27: EUR
A28: Belize | B28: Belize dollar | C28: BZD
A29: Benin | B29: West African CFA franc | C29: XOF
A30: Bermuda | B30: Bermudian dollar | C30: BMD
A31: Bhutan | B31: Bhutanese ngultrum | C31: BTN
B32: Indian rupee | C32: INR
A33: Bolivia | B33: Bolivian boliviano | C33: BOB
A34: Bonaire | B34: United States dollar | C34: USD
A35: Bosnia and Herzegovina | B35: Bosnia and Herzegovina convertible mark | C35: BAM
A36: Botswana | B36: Botswana pula | C36: BWP
A37: Brazil | B37: Brazilian real | C37: BRL
A38: British Indian Ocean Territory | B38: United States dollar | C38: USD
A39: British Virgin Islands | B39: British Virgin Islands dollar[A] | C39: None
B40: United States dollar | C40: USD
A41: Brunei | B41: Brunei dollar | C41: BND
B42: Singapore dollar | C42: SGD
A43: Bulgaria | B43: Bulgarian lev | C43: BGN
A44: Burkina Faso | B44: West African CFA franc | C44: XOF
A45: Burma | B45: Burmese kyat | C45: MMK
A46: Burundi | B46: Burundian franc | C46: BIF
A47: Cambodia | B47: Cambodian riel | C47: KHR
A48: Cameroon | B48: Central African CFA franc | C48: XAF
A49: Canada | B49: Canadian dollar | C49: CAD
A50: Cape Verde | B50: Cape Verdean escudo | C50: CVE
A51: Cayman Islands | B51: Cayman Islands dollar | C51: KYD
A52: Central African Republic | B52: Central African CFA franc | C52: XAF
A53: Chad | B53: Central African CFA franc | C53: XAF
A54: Chile | B54: Chilean peso | C54: CLP
A55: China | B55: Chinese yuan | C55: CNY
A56: Cocos (Keeling) Islands | B56: Australian dollar | C56: AUD
B57: Cocos (Keeling) Islands dollar[A] | C57: None
A58: Colombia | B58: Colombian peso | C58: COP
A59: Comoros | B59: Comorian franc | C59: KMF
A60: Congo, Democratic Republic of the | B60: Congolese franc | C60: CDF
A61: Congo, Republic of the | B61: Central African CFA franc | C61: XAF
A62: Cook Islands | B62: New Zealand dollar | C62: NZD
B63: Cook Islands dollar | C63: None
A64: Costa Rica | B64: Costa Rican colón | C64: CRC
A65: Côte d'Ivoire | B65: West African CFA franc | C65: XOF
A66: Croatia | B66: Croatian kuna | C66: HRK
A67: Cuba | B67: Cuban convertible peso | C67: CUC
B68: Cuban peso | C68: CUP
A69: Curaçao | B69: Netherlands Antillean guilder | C69: ANG
A70: Cyprus | B70: Euro | C70: EUR
A71: Czech Republic | B71: Czech koruna | C71: CZK
A72: Denmark | B72: Danish krone | C72: DKK
A73: Djibouti | B73: Djiboutian franc | C73: DJF
A74: Dominica | B74: East Caribbean dollar | C74: XCD
A75: Dominican Republic | B75: Dominican peso | C75: DOP
A76: Timor-Leste | B76: United States dollar | C76: USD
B77: None | C77: None
A78: Ecuador | B78: United States dollar | C78: USD
B79: None | C79: None
A80: Egypt | B80: Egyptian pound | C80: EGP
A81: El Salvador | B81: Salvadoran colón | C81: SVC
B82: United States dollar | C82: USD
A83: Equatorial Guinea | B83: Central African CFA franc | C83: XAF
A84: Eritrea | B84: Eritrean nakfa | C84: ERN
A85: Estonia | B85: Euro | C85: EUR
A86: Ethiopia | B86: Ethiopian birr | C86: ETB
A87: Falkland Islands | B87: Falkland Islands pound | C87: FKP
A88: Faroe Islands | B88: Danish krone | C88: DKK
B89: Faroese króna | C89: None
A90: Fiji | B90: Fijian dollar | C90: FJD
A91: Finland | B91: Euro | C91: EUR
A92: France | B92: Euro | C92: EUR
A93: French Polynesia | B93: CFP franc | C93: XPF
A94: Gabon | B94: Central African CFA franc | C94: XAF
A95: Gambia, The | B95: Gambian dalasi | C95: GMD
A96: Georgia | B96: Georgian lari | C96: GEL
A97: Germany | B97: Euro | C97: EUR
A98: Ghana | B98: Ghana cedi | C98: GHS
A99: Gibraltar | B99: Gibraltar pound | C99: GIP
A100: Greece | B100: Euro | C100: EUR
A101: Grenada | B101: East Caribbean dollar | C101: XCD
A102: Guatemala | B102: Guatemalan quetzal | C102: GTQ
A103: Guernsey | B103: British pound[C] | C103: GBP
B104: Guernsey pound | C104: None
A105: Guinea | B105: Guinean franc | C105: GNF
A106: Guinea-Bissau | B106: West African CFA franc | C106: XOF
A107: Guyana | B107: Guyanese dollar | C107: GYD
A108: Haiti | B108: Haitian gourde | C108: HTG
A109: Honduras | B109: Honduran lempira | C109: HNL
A110: Hong Kong | B110: Hong Kong dollar | C110: HKD
A111: Hungary | B111: Hungarian forint | C111: HUF
A112: Iceland | B112: Icelandic króna | C112: ISK
A113: India | B113: Indian rupee | C113: INR
A114: Indonesia | B114: Indonesian rupiah | C114: IDR
A115: Iran | B115: Iranian rial | C115: IRR
A116: Iraq | B116: Iraqi dinar | C116: IQD
A117: Ireland | B117: Euro | C117: EUR
A118: Isle of Man | B118: British pound[C] | C118: GBP
B119: Manx pound | C119: None
A120: Israel | B120: Israeli new shekel | C120: ILS
A121: Italy | B121: Euro | C121: EUR
A122: Jamaica | B122: Jamaican dollar | C122: JMD
A123: Japan | B123: Japanese yen | C123: JPY
A124: Jersey | B124: British pound[C] | C124: GBP
B125: Jersey pound | C125: None
A126: Jordan | B126: Jordanian dinar | C126: JOD
A127: Kazakhstan | B127: Kazakhstani tenge | C127: KZT
A128: Kenya | B128: Kenyan shilling | C128: KES
A129: Kiribati | B129: Australian dollar | C129: AUD
B130: Kiribati dollar[A] | C130: None
A131: North Korea | B131: North Korean won | C131: KPW
A132: South Korea | B132: South Korean won | C132: KRW
A133: Kosovo | B133: Euro | C133: EUR
A134: Kuwait | B134: Kuwaiti dinar | C134: KWD
A135: Kyrgyzstan | B135: Kyrgyzstani som | C135: KGS
A136: Laos | B136: Lao kip | C136: LAK
A137: Latvia | B137: Latvian lats | C137: LVL
A138: Lebanon | B138: Lebanese pound | C138: LBP
A139: Lesotho | B139: Lesotho loti | C139: LSL
B140: South African rand | C140: ZAR
A141: Liberia | B141: Liberian dollar | C141: LRD
A142: Libya | B142: Libyan dinar | C142: LYD
A143: Liechtenstein | B143: Swiss franc | C143: CHF
A144: Lithuania | B144: Lithuanian litas | C144: LTL
A145: Luxembourg | B145: Euro | C145: EUR
A146: Macau | B146: Macanese pataca | C146: MOP
A147: Macedonia | B147: Macedonian denar | C147: MKD
A148: Madagascar | B148: Malagasy ariary | C148: MGA
A149: Malawi | B149: Malawian kwacha | C149: MWK
A150: Malaysia | B150: Malaysian ringgit | C150: MYR
A151: Maldives | B151: Maldivian rufiyaa | C151: MVR
A152: Mali | B152: West African CFA franc | C152: XOF
A153: Malta | B153: Euro | C153: EUR
A154: Marshall Islands | B154: United States dollar | C154: USD
A155: Mauritania | B155: Mauritanian ouguiya | C155: MRO
A156: Mauritius | B156: Mauritian rupee | C156: MUR
A157: Mexico | B157: Mexican peso | C157: MXN
A158: Micronesia | B158: Micronesian dollar[A] | C158: None
B159: United States dollar | C159: USD
A160: Moldova | B160: Moldovan leu | C160: MDL
A161: Monaco | B161: Euro | C161: EUR
A162: Mongolia | B162: Mongolian tögrög | C162: MNT
A163: Montenegro | B163: Euro | C163: EUR
A164: Montserrat | B164: East Caribbean dollar | C164: XCD
A165: Morocco | B165: Moroccan dirham | C165: MAD
A166: Mozambique | B166: Mozambican metical | C166: MZN
A167: Nagorno-Karabakh Republic | B167: Armenian dram | C167: AMD
B168: Nagorno-Karabakh dram[A] | C168: None
A169: Namibia | B169: Namibian dollar | C169: NAD
B170: South African rand | C170: ZAR
A171: Nauru | B171: Australian dollar | C171: AUD
B172: Nauruan dollar[A] | C172: None
A173: Nepal | B173: Nepalese rupee | C173: NPR
A174: Netherlands | B174: Euro[I] | C174: EUR
A175: New Caledonia | B175: CFP franc | C175: XPF
A176: New Zealand | B176: New Zealand dollar | C176: NZD
A177: Nicaragua | B177: Nicaraguan córdoba | C177: NIO
A178: Niger | B178: West African CFA franc | C178: XOF
A179: Nigeria | B179: Nigerian naira | C179: NGN
A180: Niue | B180: New Zealand dollar | C180: NZD
B181: Niuean dollar[A] | C181: None
A182: Northern Cyprus | B182: Turkish lira | C182: TRY
A183: Norway | B183: Norwegian krone | C183: NOK
A184: Oman | B184: Omani rial | C184: OMR
A185: Pakistan | B185: Pakistani rupee | C185: PKR
A186: Palau | B186: Palauan dollar[A] | C186: None
B187: United States dollar | C187: USD
A188: Palestinian territories | B188: Israeli new shekel | C188: ILS
B189: Jordanian dinar | C189: JOD
A190: Panama | B190: Panamanian balboa | C190: PAB
B191: United States dollar | C191: USD
A192: Papua New Guinea | B192: Papua New Guinean kina | C192: PGK
A193: Paraguay | B193: Paraguayan guaraní | C193: PYG
A194: Peru | B194: Peruvian nuevo sol | C194: PEN
A195: Philippines | B195: Philippine peso | C195: PHP
A196: Pitcairn Islands | B196: New Zealand dollar | C196: NZD
B197: Pitcairn Islands dollar[A] | C197: None
A198: Poland | B198: Polish złoty | C198: PLN
A199: Portugal | B199: Euro | C199: EUR
A200: Qatar | B200: Qatari riyal | C200: QAR
... 78 more rows

Sheet Sheet3
A1: Currency | B1: Currency Name | C1: Exhange Rate
A2: USD | B2: United States dollar | C2: 1
A3: CNY | B3: Chinese yuan | C3: 0.1572102105
A4: JPY | B4: Japanese yen | C4: 0.01267358053
A5: EUR | B5: Euro | C5: 1.270399439
A6: BRL | B6: Brazilian real | C6: 0.4942811669
A7: GBP | B7: British pound[C] | C7: 1.576178272
A8: CAD | B8: Canadian dollar | C8: 0.983361523
A9: INR | B9: Indian rupee | C9: 0.01780791669
A10: AUD | B10: Australian dollar | C10: 1.019909656
A11: MXN | B11: Mexican peso | C11: 0.07304655257
A12: IDR | B12: Indonesian rupiah | C12: 0.0001058894662
A13: CHF | B13: Swiss franc | C13: 1.057873062
A14: SAR | B14: Saudi riyal | C14: 0.2666666667
A15: SEK | B15: Swedish krona | C15: 0.1436552504
A16: PLN | B16: Polish złoty | C16: 0.3003147298
A17: NOK | B17: Norwegian krone | C17: 0.1692511314
A18: ZAR | B18: South African rand | C18: 0.1219217799
A19: AED | B19: United Arab Emirates dirham | C19: 0.2722192127
A20: DKK | B20: Danish krone | C20: 0.1709042372
A21: MYR | B21: Malaysian ringgit | C21: 0.3168005677
A22: PHP | B22: Philippine peso | C22: 0.02370505226
A23: PKR | B23: Pakistani rupee | C23: 0.01061408872
A24: RON | B24: Romanian leu | C24: 0.2846132391
A25: NZD | B25: New Zealand dollar | C25: 0.7975880936
A26: BDT | B26: Bangladeshi taka | C26: 0.01222084534
A27: MAD | B27: Moroccan dirham | C27: 0.1145475372
A28: LKR | B28: Sri Lankan rupee | C28: 0.007524058176
A29: DOP | B29: Dominican peso | C29: 0.02567394095
A30: ETB | B30: Ethiopian birr | C30: 0.05656108597
A31: MUR | B31: Mauritian rupee | C31: 0.03255642843

Sheet Pivot
A4: Country
A5: Albania
A6: arabian Gulf
A7: Argentina
A8: Armenia
A9: Aruba
A10: Asia
A11: Australia
A12: Austria
A13: Azerbaijan
A14: Baltic
A15: Bangladesh
A16: Belgium
A17: Bermuda
A18: Bhutan
A19: Bolivia
A20: Brasil
A21: Brazil
A22: Bulgaria
A23: Cambodia
A24: Canada
A25: CEE
A26: Central America
A27: china
A28: Colombia
A29: Costa Rica
A30: Croatia
A31: Czech Republic
A32: Denmark
A33: Dominican Republic
A34: Dubai
A35: Egypt
A36: Estonia
A37: Ethiopia
A38: Europe
A39: Finland
A40: France
A41: Germany
A42: Ghana
A43: Greece
A44: Guyana
A45: Hong Kong
A46: Hungary
A47: Iceland
A48: India
A49: Indonesia
A50: iran
A51: Ireland
A52: Israel
A53: italy
A54: Japan
A55: Kenya
A56: Kuwait
A57: Kuwait
A58: Latin America
A59: Lesotho
A60: Libya
A61: Lithuania
A62: malaysia
A63: Mauritius
A64: Mexico
A65: Mongolia
A66: Montenegro
A67: Morocco
A68: mozambique
A69: Myanmar
A70: MYS
A71: Netherlands
A72: New Zealand
A73: Nigeria
A74: Norway
A75: Oman
A76: Pakistan
A77: Panama
A78: Paraguay
A79: Peru
A80: Philippines
A81: Poland
A82: Portugal
A83: Qatar
A84: Republic of Georgia
A85: Republica Dominicana
A86: Romania
A87: Russia
A88: Saudi Arabia
A89: self-employed
A90: Singapore
A91: Slovakia
A92: Slovenia
A93: Somalia
A94: South Africa
A95: Spain
A96: Sri Lanka
A97: Sweden
A98: Switzerland
A99: Thailand
A100: Tunisia
A101: Turkey
A102: UAE
A103: Uganda
A104: UK
A105: Ukraine
A106: Uruguay
A107: USA
A108: Viet Nam
A109: Vietnam
A110: Zambia
A111: Zimbabwe
A112: Grand Total

Sheet Data
B1: Excel Salary Survey Data | E1: 12
G2: Chosen Currency | H2: =Curr -> USD
B3: Note: Experience data is not available for first few hundred rows.
B5: Unique ID | C5: clean Salary (in local currency) | D5: Currency | E5: Salary in USD | F5: PPP Adjusted USD | G5: Chosen Currency | H5: Your Job Title | I5: Job Type | J5: Country | K5: How many hours of a day you work on Excel | L5: Years of Experience
B6: ID0412 | C6: 14000000 | D6: COSTARICAN | E6: 28109.62755 | F6: =(tblSalaries[[#This Row],[clean Salary (in local currency)]])*(VLOOKUP(tblSalaries[[#This Row],[Currency]],Sheet3!$A$2:$C$31,3,FALSE))*(VLOOKUP(tblSalaries[[#This Row],[Currency]],Sheet1!$N$4:$Q$186,4,FALSE)) ->  | G6: =IF(Dashboard!$J$5=VLOOKUP(tblSalaries[[#This Row],[Currency]],Sheet3!$A$2:$B$31,2,FALSE),tblSalaries[[#This Row],[clean Salary (in local currency)]],(tblSalaries[[#This Row],[PPP Adjusted USD]]/VLOOKUP(Dashboard!$J$5,Sheet3!$B$2:$C$31,2,FALSE))) ->  | H6: Businees Adminstratot | I6: Analyst | J6: Costa Rica | K6: All the 8 hours baby, all the 8!
B7: ID0740 | C7: 120000 | D7: EGYPT | E7: 19831.43282 | F7: =(tblSalaries[[#This Row],[clean Salary (in local currency)]])*(VLOOKUP(tblSalaries[[#This Row],[Currency]],Sheet3!$A$2:$C$31,3,FALSE))*(VLOOKUP(tblSalaries[[#This Row],[Currency]],Sheet1!$N$4:$Q$186,4,FALSE)) ->  | G7: =IF(Dashboard!$J$5=VLOOKUP(tblSalaries[[#This Row],[Currency]],Sheet3!$A$2:$B$31,2,FALSE),tblSalaries[[#This Row],[clean Salary (in local currency)]],(tblSalaries[[#This Row],[PPP Adjusted USD]]/VLOOKUP(Dashboard!$J$5,Sheet3!$B$2:$C$31,2,FALSE))) ->  | H7: Estimator | I7: Analyst | J7: Egypt | K7: All the 8 hours baby, all the 8! | L7: 5
B8: ID0759 | C8: 1488000 | D8: NAIRA | E8: 9171.032357 | F8: =(tblSalaries[[#This Row],[clean Salary (in local currency)]])*(VLOOKUP(tblSalaries[[#This Row],[Currency]],Sheet3!$A$2:$C$31,3,FALSE))*(VLOOKUP(tblSalaries[[#This Row],[Currency]],Sheet1!$N$4:$Q$186,4,FALSE)) ->  | G8: =IF(Dashboard!$J$5=VLOOKUP(tblSalaries[[#This Row],[Currency]],Sheet3!$A$2:$B$31,2,FALSE),tblSalaries[[#This Row],[clean Salary (in local currency)]],(tblSalaries[[#This Row],[PPP Adjusted USD]]/VLOOKUP(Dashboard!$J$5,Sheet3!$B$2:$C$31,2,FALSE))) ->  | H8: Company Systems Integration Manager | I8: Manager | J8: Nigeria | K8: 2 to 3 hours per day | L8: 5
B9: ID0958 | C9: 2000000 | D9: NAIRA | E9: 12326.65639 | F9: =(tblSalaries[[#This Row],[clean Salary (in local currency)]])*(VLOOKUP(tblSalaries[[#This Row],[Currency]],Sheet3!$A$2:$C$31,3,FALSE))*(VLOOKUP(tblSalaries[[#This Row],[Currency]],Sheet1!$N$4:$Q$186,4,FALSE)) ->  | G9: =IF(Dashboard!$J$5=VLOOKUP(tblSalaries[[#This Row],[Currency]],Sheet3!$A$2:$B$31,2,FALSE),tblSalaries[[#This Row],[clean Salary (in local currency)]],(tblSalaries[[#This Row],[PPP Adjusted USD]]/VLOOKUP(Dashboard!$J$5,Sheet3!$B$2:$C$31,2,FALSE))) ->  | H9: Head Business Advisory | I9: Manager | J9: Nigeria | K9: 4 to 6 hours a day | L9: 5
B10: ID1021 | C10: 92000 | D10: SGD | E10: 72571.8027 | F10: =(tblSalaries[[#This Row],[clean Salary (in local currency)]])*(VLOOKUP(tblSalaries[[#This Row],[Currency]],Sheet3!$A$2:$C$31,3,FALSE))*(VLOOKUP(tblSalaries[[#This Row],[Currency]],Sheet1!$N$4:$Q$186,4,FALSE)) ->  | G10: =IF(Dashboard!$J$5=VLOOKUP(tblSalaries[[#This Row],[Currency]],Sheet3!$A$2:$B$31,2,FALSE),tblSalaries[[#This Row],[clean Salary (in local currency)]],(tblSalaries[[#This Row],[PPP Adjusted USD]]/VLOOKUP(Dashboard!$J$5,Sheet3!$B$2:$C$31,2,FALSE))) ->  | H10: Finance Manager | I10: Manager | J10: Singapore | K10: All the 8 hours baby, all the 8! | L10: 15
B11: ID1196 | C11: 4300000 | D11: KENYA | E11: 51497.00599 | F11: =(tblSalaries[[#This Row],[clean Salary (in local currency)]])*(VLOOKUP(tblSalaries[[#This Row],[Currency]],Sheet3!$A$2:$C$31,3,FALSE))*(VLOOKUP(tblSalaries[[#This Row],[Currency]],Sheet1!$N$4:$Q$186,4,FALSE)) ->  | G11: =IF(Dashboard!$J$5=VLOOKUP(tblSalaries[[#This Row],[Currency]],Sheet3!$A$2:$B$31,2,FALSE),tblSalaries[[#This Row],[clean Salary (in local currency)]],(tblSalaries[[#This Row],[PPP Adjusted USD]]/VLOOKUP(Dashboard!$J$5,Sheet3!$B$2:$C$31,2,FALSE))) ->  | H11: Finance Manager | I11: Manager | J11: Kenya | K11: 4 to 6 hours a day | L11: 9
B12: ID1260 | C12: 9600000 | D12: MONGOLIAN | E12: 7261.72466 | F12: =(tblSalaries[[#This Row],[clean Salary (in local currency)]])*(VLOOKUP(tblSalaries[[#This Row],[Currency]],Sheet3!$A$2:$C$31,3,FALSE))*(VLOOKUP(tblSalaries[[#This Row],[Currency]],Sheet1!$N$4:$Q$186,4,FALSE)) ->  | G12: =IF(Dashboard!$J$5=VLOOKUP(tblSalaries[[#This Row],[Currency]],Sheet3!$A$2:$B$31,2,FALSE),tblSalaries[[#This Row],[clean Salary (in local currency)]],(tblSalaries[[#This Row],[PPP Adjusted USD]]/VLOOKUP(Dashboard!$J$5,Sheet3!$B$2:$C$31,2,FALSE))) ->  | H12: Analyst | I12: Analyst | J12: Mongolia | K12: All the 8 hours baby, all the 8! | L12: 2
B13: ID0477 | C13: 1250000 | D13: CAD | E13: 1229201.904 | F13: =(tblSalaries[[#This Row],[clean Salary (in local currency)]])*(VLOOKUP(tblSalaries[[#This Row],[Currency]],Sheet3!$A$2:$C$31,3,FALSE))*(VLOOKUP(tblSalaries[[#This Row],[Currency]],Sheet1!$N$4:$Q$186,4,FALSE)) -> 988057.754 | G13: =IF(Dashboard!$J$5=VLOOKUP(tblSalaries[[#This Row],[Currency]],Sheet3!$A$2:$B$31,2,FALSE),tblSalaries[[#This Row],[clean Salary (in local currency)]],(tblSalaries[[#This Row],[PPP Adjusted USD]]/VLOOKUP(Dashboard!$J$5,Sheet3!$B$2:$C$31,2,FALSE))) -> 988057.754 | H13: Account Executive | I13: Accountant | J13: Canada | K13: 4 to 6 hours a day | L13: Data Not Avaliable
B14: ID0655 | C14: 10500000 | D14: INR | E14: 186983.1252 | F14: =(tblSalaries[[#This Row],[clean Salary (in local currency)]])*(VLOOKUP(tblSalaries[[#This Row],[Currency]],Sheet3!$A$2:$C$31,3,FALSE))*(VLOOKUP(tblSalaries[[#This Row],[Currency]],Sheet1!$N$4:$Q$186,4,FALSE)) -> 497290.7347 | G14: =IF(Dashboard!$J$5=VLOOKUP(tblSalaries[[#This Row],[Currency]],Sheet3!$A$2:$B$31,2,FALSE),tblSalaries[[#This Row],[clean Salary (in local currency)]],(tblSalaries[[#This Row],[PPP Adjusted USD]]/VLOOKUP(Dashboard!$J$5,Sheet3!$B$2:$C$31,2,FALSE))) -> 497290.7347 | H14: MANAGER | I14: Manager | J14: India | K14: 2 to 3 hours per day | L14: 10
B15: ID0376 | C15: 9000000 | D15: INR | E15: 160271.2502 | F15: =(tblSalaries[[#This Row],[clean Salary (in local currency)]])*(VLOOKUP(tblSalaries[[#This Row],[Currency]],Sheet3!$A$2:$C$31,3,FALSE))*(VLOOKUP(tblSalaries[[#This Row],[Currency]],Sheet1!$N$4:$Q$186,4,FALSE)) -> 426249.2011 | G15: =IF(Dashboard!$J$5=VLOOKUP(tblSalaries[[#This Row],[Currency]],Sheet3!$A$2:$B$31,2,FALSE),tblSalaries[[#This Row],[clean Salary (in local currency)]],(tblSalaries[[#This Row],[PPP Adjusted USD]]/VLOOKUP(Dashboard!$J$5,Sheet3!$B$2:$C$31,2,FALSE))) -> 426249.2011 | H15: Financial Analyst | I15: Analyst | J15: India | K15: 4 to 6 hours a day | L15: Data Not Avaliable
B16: ID0211 | C16: 400000 | D16: USD | E16: 400000 | F16: =(tblSalaries[[#This Row],[clean Salary (in local currency)]])*(VLOOKUP(tblSalaries[[#This Row],[Currency]],Sheet3!$A$2:$C$31,3,FALSE))*(VLOOKUP(tblSalaries[[#This Row],[Currency]],Sheet1!$N$4:$Q$186,4,FALSE)) -> 400000 | G16: =IF(Dashboard!$J$5=VLOOKUP(tblSalaries[[#This Row],[Currency]],Sheet3!$A$2:$B$31,2,FALSE),tblSalaries[[#This Row],[clean Salary (in local currency)]],(tblSalaries[[#This Row],[PPP Adjusted USD]]/VLOOKUP(Dashboard!$J$5,Sheet3!$B$2:$C$31,2,FALSE))) -> 400000 | H16: program manager | I16: Manager | J16: USA | K16: 1 or 2 hours a day | L16: Data Not Avaliable
B17: ID0318 | C17: 400000 | D17: USD | E17: 400000 | F17: =(tblSalaries[[#This Row],[clean Salary (in local currency)]])*(VLOOKUP(tblSalaries[[#This Row],[Currency]],Sheet3!$A$2:$C$31,3,FALSE))*(VLOOKUP(tblSalaries[[#This Row],[Currency]],Sheet1!$N$4:$Q$186,4,FALSE)) -> 400000 | G17: =IF(Dashboard!$J$5=VLOOKUP(tblSalaries[[#This Row],[Currency]],Sheet3!$A$2:$B$31,2,FALSE),tblSalaries[[#This Row],[clean Salary (in local currency)]],(tblSalaries[[#This Row],[PPP Adjusted USD]]/VLOOKUP(Dashboard!$J$5,Sheet3!$B$2:$C$31,2,FALSE))) -> 400000 | H17: Financial Specialist | I17: Specialist | J17: USA | K17: All the 8 hours baby, all the 8! | L17: Data Not Avaliable
B18: ID0584 | C18: 300000 | D18: USD | E18: 300000 | F18: =(tblSalaries[[#This Row],[clean Salary (in local currency)]])*(VLOOKUP(tblSalaries[[#This Row],[Currency]],Sheet3!$A$2:$C$31,3,FALSE))*(VLOOKUP(tblSalaries[[#This Row],[Currency]],Sheet1!$N$4:$Q$186,4,FALSE)) -> 300000 | G18: =IF(Dashboard!$J$5=VLOOKUP(tblSalaries[[#This Row],[Currency]],Sheet3!$A$2:$B$31,2,FALSE),tblSalaries[[#This Row],[clean Salary (in local currency)]],(tblSalaries[[#This Row],[PPP Adjusted USD]]/VLOOKUP(Dashboard!$J$5,Sheet3!$B$2:$C$31,2,FALSE))) -> 300000 | H18: CEO | I18: CXO or Top Mgmt. | J18: USA | K18: 2 to 3 hours per day | L18: 30
B19: ID0493 | C19: 190000 | D19: GBP | E19: 299473.8717 | F19: =(tblSalaries[[#This Row],[clean Salary (in local currency)]])*(VLOOKUP(tblSalaries[[#This Row],[Currency]],Sheet3!$A$2:$C$31,3,FALSE))*(VLOOKUP(tblSalaries[[#This Row],[Currency]],Sheet1!$N$4:$Q$186,4,FALSE)) -> 280054.5289 | G19: =IF(Dashboard!$J$5=VLOOKUP(tblSalaries[[#This Row],[Currency]],Sheet3!$A$2:$B$31,2,FALSE),tblSalaries[[#This Row],[clean Salary (in local currency)]],(tblSalaries[[#This Row],[PPP Adjusted USD]]/VLOOKUP(Dashboard!$J$5,Sheet3!$B$2:$C$31,2,FALSE))) -> 280054.5289 | H19: Managing Partner | I19: CXO or Top Mgmt. | J19: UK | K19: 4 to 6 hours a day | L19: Data Not Avaliable
B20: ID1585 | C20: 5650000 | D20: INR | E20: 100614.7293 | F20: =(tblSalaries[[#This Row],[clean Salary (in local currency)]])*(VLOOKUP(tblSalaries[[#This Row],[Currency]],Sheet3!$A$2:$C$31,3,FALSE))*(VLOOKUP(tblSalaries[[#This Row],[Currency]],Sheet1!$N$4:$Q$186,4,FALSE)) -> 267589.7763 | G20: =IF(Dashboard!$J$5=VLOOKUP(tblSalaries[[#This Row],[Currency]],Sheet3!$A$2:$B$31,2,FALSE),tblSalaries[[#This Row],[clean Salary (in local currency)]],(tblSalaries[[#This Row],[PPP Adjusted USD]]/VLOOKUP(Dashboard!$J$5,Sheet3!$B$2:$C$31,2,FALSE))) -> 267589.7763 | H20: MIS | I20: Reporting | J20: India | K20: 2 to 3 hours per day | L20: 6
B21: ID0981 | C21: 260000 | D21: USD | E21: 260000 | F21: =(tblSalaries[[#This Row],[clean Salary (in local currency)]])*(VLOOKUP(tblSalaries[[#This Row],[Currency]],Sheet3!$A$2:$C$31,3,FALSE))*(VLOOKUP(tblSalaries[[#This Row],[Currency]],Sheet1!$N$4:$Q$186,4,FALSE)) -> 260000 | G21: =IF(Dashboard!$J$5=VLOOKUP(tblSalaries[[#This Row],[Currency]],Sheet3!$A$2:$B$31,2,FALSE),tblSalaries[[#This Row],[clean Salary (in local currency)]],(tblSalaries[[#This Row],[PPP Adjusted USD]]/VLOOKUP(Dashboard!$J$5,Sheet3!$B$2:$C$31,2,FALSE))) -> 260000 | H21: CFO | I21: CXO or Top Mgmt. | J21: USA | K21: 2 to 3 hours per day | L21: 10
B22: ID0425 | C22: 250000 | D22: USD | E22: 250000 | F22: =(tblSalaries[[#This Row],[clean Salary (in local currency)]])*(VLOOKUP(tblSalaries[[#This Row],[Currency]],Sheet3!$A$2:$C$31,3,FALSE))*(VLOOKUP(tblSalaries[[#This Row],[Currency]],Sheet1!$N$4:$Q$186,4,FALSE)) -> 250000 | G22: =IF(Dashboard!$J$5=VLOOKUP(tblSalaries[[#This Row],[Currency]],Sheet3!$A$2:$B$31,2,FALSE),tblSalaries[[#This Row],[clean Salary (in local currency)]],(tblSalaries[[#This Row],[PPP Adjusted USD]]/VLOOKUP(Dashboard!$J$5,Sheet3!$B$2:$C$31,2,FALSE))) -> 250000 | H22: consultant | I22: Consultant | J22: USA | K22: All the 8 hours baby, all the 8! | L22: Data Not Avaliable
B23: ID1516 | C23: 250000 | D23: USD | E23: 250000 | F23: =(tblSalaries[[#This Row],[clean Salary (in local currency)]])*(VLOOKUP(tblSalaries[[#This Row],[Currency]],Sheet3!$A$2:$C$31,3,FALSE))*(VLOOKUP(tblSalaries[[#This Row],[Currency]],Sheet1!$N$4:$Q$186,4,FALSE)) -> 250000 | G23: =IF(Dashboard!$J$5=VLOOKUP(tblSalaries[[#This Row],[Currency]],Sheet3!$A$2:$B$31,2,FALSE),tblSalaries[[#This Row],[clean Salary (in local currency)]],(tblSalaries[[#This Row],[PPP Adjusted USD]]/VLOOKUP(Dashboard!$J$5,Sheet3!$B$2:$C$31,2,FALSE))) -> 250000 | H23: consultant | I23: Consultant | J23: USA | K23: All the 8 hours baby, all the 8! | L23: 20
B24: ID1656 | C24: 225000 | D24: USD | E24: 225000 | F24: =(tblSalaries[[#This Row],[clean Salary (in local currency)]])*(VLOOKUP(tblSalaries[[#This Row],[Currency]],Sheet3!$A$2:$C$31,3,FALSE))*(VLOOKUP(tblSalaries[[#This Row],[Currency]],Sheet1!$N$4:$Q$186,4,FALSE)) -> 225000 | G24: =IF(Dashboard!$J$5=VLOOKUP(tblSalaries[[#This Row],[Currency]],Sheet3!$A$2:$B$31,2,FALSE),tblSalaries[[#This Row],[clean Salary (in local currency)]],(tblSalaries[[#This Row],[PPP Adjusted USD]]/VLOOKUP(Dashboard!$J$5,Sheet3!$B$2:$C$31,2,FALSE))) -> 225000 | H24: SVP of Acquisitions | I24: CXO or Top Mgmt. | J24: USA | K24: 4 to 6 hours a day | L24: 15
B25: ID0374 | C25: 220700 | D25: USD | E25: 220700 | F25: =(tblSalaries[[#This Row],[clean Salary (in local currency)]])*(VLOOKUP(tblSalaries[[#This Row],[Currency]],Sheet3!$A$2:$C$31,3,FALSE))*(VLOOKUP(tblSalaries[[#This Row],[Currency]],Sheet1!$N$4:$Q$186,4,FALSE)) -> 220700 | G25: =IF(Dashboard!$J$5=VLOOKUP(tblSalaries[[#This Row],[Currency]],Sheet3!$A$2:$B$31,2,FALSE),tblSalaries[[#This Row],[clean Salary (in local currency)]],(tblSalaries[[#This Row],[PPP Adjusted USD]]/VLOOKUP(Dashboard!$J$5,Sheet3!$B$2:$C$31,2,FALSE))) -> 220700 | H25: Consultant | I25: Consultant | J25: Brazil | K25: All the 8 hours baby, all the 8! | L25: Data Not Avaliable
B26: ID0309 | C26: 200000 | D26: EUR | E26: 254079.8878 | F26: =(tblSalaries[[#This Row],[clean Salary (in local currency)]])*(VLOOKUP(tblSalaries[[#This Row],[Currency]],Sheet3!$A$2:$C$31,3,FALSE))*(VLOOKUP(tblSalaries[[#This Row],[Currency]],Sheet1!$N$4:$Q$186,4,FALSE)) -> 220130.5772 | G26: =IF(Dashboard!$J$5=VLOOKUP(tblSalaries[[#This Row],[Currency]],Sheet3!$A$2:$B$31,2,FALSE),tblSalaries[[#This Row],[clean Salary (in local currency)]],(tblSalaries[[#This Row],[PPP Adjusted USD]]/VLOOKUP(Dashboard!$J$5,Sheet3!$B$2:$C$31,2,FALSE))) -> 220130.5772 | H26: consultant bi | I26: Reporting | J26: Netherlands | K26: All the 8 hours baby, all the 8! | L26: Data Not Avaliable
B27: ID1489 | C27: 146633 | D27: GBP | E27: 231119.7486 | F27: =(tblSalaries[[#This Row],[clean Salary (in local currency)]])*(VLOOKUP(tblSalaries[[#This Row],[Currency]],Sheet3!$A$2:$C$31,3,FALSE))*(VLOOKUP(tblSalaries[[#This Row],[Currency]],Sheet1!$N$4:$Q$186,4,FALSE)) -> 216132.8197 | G27: =IF(Dashboard!$J$5=VLOOKUP(tblSalaries[[#This Row],[Currency]],Sheet3!$A$2:$B$31,2,FALSE),tblSalaries[[#This Row],[clean Salary (in local currency)]],(tblSalaries[[#This Row],[PPP Adjusted USD]]/VLOOKUP(Dashboard!$J$5,Sheet3!$B$2:$C$31,2,FALSE))) -> 216132.8197 | H27: Senior Planning Engineer | I27: Engineer | J27: UK | K27: 2 to 3 hours per day | L27: 10
B28: ID1825 | C28: 214000 | D28: USD | E28: 214000 | F28: =(tblSalaries[[#This Row],[clean Salary (in local currency)]])*(VLOOKUP(tblSalaries[[#This Row],[Currency]],Sheet3!$A$2:$C$31,3,FALSE))*(VLOOKUP(tblSalaries[[#This Row],[Currency]],Sheet1!$N$4:$Q$186,4,FALSE)) -> 214000 | G28: =IF(Dashboard!$J$5=VLOOKUP(tblSalaries[[#This Row],[Currency]],Sheet3!$A$2:$B$31,2,FALSE),tblSalaries[[#This Row],[clean Salary (in local currency)]],(tblSalaries[[#This Row],[PPP Adjusted USD]]/VLOOKUP(Dashboard!$J$5,Sheet3!$B$2:$C$31,2,FALSE))) -> 214000 | H28: Assistant Corporate Controller | I28: Controller | J28: USA | K28: All the 8 hours baby, all the 8! | L28: 20
B29: ID0641 | C29: 4500000 | D29: INR | E29: 80135.62509 | F29: =(tblSalaries[[#This Row],[clean Salary (in local currency)]])*(VLOOKUP(tblSalaries[[#This Row],[Currency]],Sheet3!$A$2:$C$31,3,FALSE))*(VLOOKUP(tblSalaries[[#This Row],[Currency]],Sheet1!$N$4:$Q$186,4,FALSE)) -> 213124.6006 | G29: =IF(Dashboard!$J$5=VLOOKUP(tblSalaries[[#This Row],[Currency]],Sheet3!$A$2:$B$31,2,FALSE),tblSalaries[[#This Row],[clean Salary (in local currency)]],(tblSalaries[[#This Row],[PPP Adjusted USD]]/VLOOKUP(Dashboard!$J$5,Sheet3!$B$2:$C$31,2,FALSE))) -> 213124.6006 | H29: cmo | I29: CXO or Top Mgmt. | J29: India | K29: 1 or 2 hours a day | L29: 6
B30: ID0532 | C30: 140000 | D30: GBP | E30: 220664.9581 | F30: =(tblSalaries[[#This Row],[clean Salary (in local currency)]])*(VLOOKUP(tblSalaries[[#This Row],[Currency]],Sheet3!$A$2:$C$31,3,FALSE))*(VLOOKUP(tblSalaries[[#This Row],[Currency]],Sheet1!$N$4:$Q$186,4,FALSE)) -> 206355.9687 | G30: =IF(Dashboard!$J$5=VLOOKUP(tblSalaries[[#This Row],[Currency]],Sheet3!$A$2:$B$31,2,FALSE),tblSalaries[[#This Row],[clean Salary (in local currency)]],(tblSalaries[[#This Row],[PPP Adjusted USD]]/VLOOKUP(Dashboard!$J$5,Sheet3!$B$2:$C$31,2,FALSE))) -> 206355.9687 | H30: vba specialist | I30: Specialist | J30: UK | K30: All the 8 hours baby, all the 8! | L30: Data Not Avaliable
B31: ID0527 | C31: 200000 | D31: USD | E31: 200000 | F31: =(tblSalaries[[#This Row],[clean Salary (in local currency)]])*(VLOOKUP(tblSalaries[[#This Row],[Currency]],Sheet3!$A$2:$C$31,3,FALSE))*(VLOOKUP(tblSalaries[[#This Row],[Currency]],Sheet1!$N$4:$Q$186,4,FALSE)) -> 200000 | G31: =IF(Dashboard!$J$5=VLOOKUP(tblSalaries[[#This Row],[Currency]],Sheet3!$A$2:$B$31,2,FALSE),tblSalaries[[#This Row],[clean Salary (in local currency)]],(tblSalaries[[#This Row],[PPP Adjusted USD]]/VLOOKUP(Dashboard!$J$5,Sheet3!$B$2:$C$31,2,FALSE))) -> 200000 | H31: COO | I31: CXO or Top Mgmt. | J31: USA | K31: 2 to 3 hours per day | L31: Data Not Avaliable
B32: ID1394 | C32: 180000 | D32: EUR | E32: 228671.899 | F32: =(tblSalaries[[#This Row],[clean Salary (in local currency)]])*(VLOOKUP(tblSalaries[[#This Row],[Currency]],Sheet3!$A$2:$C$31,3,FALSE))*(VLOOKUP(tblSalaries[[#This Row],[Currency]],Sheet1!$N$4:$Q$186,4,FALSE)) -> 198117.5195 | G32: =IF(Dashboard!$J$5=VLOOKUP(tblSalaries[[#This Row],[Currency]],Sheet3!$A$2:$B$31,2,FALSE),tblSalaries[[#This Row],[clean Salary (in local currency)]],(tblSalaries[[#This Row],[PPP Adjusted USD]]/VLOOKUP(Dashboard!$J$5,Sheet3!$B$2:$C$31,2,FALSE))) -> 198117.5195 | H32: MIS Controller | I32: Controller | J32: Europe | K32: 4 to 6 hours a day | L32: 15
B33: ID0620 | C33: 250000 | D33: CAD | E33: 245840.3808 | F33: =(tblSalaries[[#This Row],[clean Salary (in local currency)]])*(VLOOKUP(tblSalaries[[#This Row],[Currency]],Sheet3!$A$2:$C$31,3,FALSE))*(VLOOKUP(tblSalaries[[#This Row],[Currency]],Sheet1!$N$4:$Q$186,4,FALSE)) -> 197611.5508 | G33: =IF(Dashboard!$J$5=VLOOKUP(tblSalaries[[#This Row],[Currency]],Sheet3!$A$2:$B$31,2,FALSE),tblSalaries[[#This Row],[clean Salary (in local currency)]],(tblSalaries[[#This Row],[PPP Adjusted USD]]/VLOOKUP(Dashboard!$J$5,Sheet3!$B$2:$C$31,2,FALSE))) -> 197611.5508 | H33: Business Analyst | I33: Analyst | J33: Canada | K33: 4 to 6 hours a day | L33: 32
B34: ID0375 | C34: 194000 | D34: USD | E34: 194000 | F34: =(tblSalaries[[#This Row],[clean Salary (in local currency)]])*(VLOOKUP(tblSalaries[[#This Row],[Currency]],Sheet3!$A$2:$C$31,3,FALSE))*(VLOOKUP(tblSalaries[[#This Row],[Currency]],Sheet1!$N$4:$Q$186,4,FALSE)) -> 194000 | G34: =IF(Dashboard!$J$5=VLOOKUP(tblSalaries[[#This Row],[Currency]],Sheet3!$A$2:$B$31,2,FALSE),tblSalaries[[#This Row],[clean Salary (in local currency)]],(tblSalaries[[#This Row],[PPP Adjusted USD]]/VLOOKUP(Dashboard!$J$5,Sheet3!$B$2:$C$31,2,FALSE))) -> 194000 | H34: director | I34: CXO or Top Mgmt. | J34: USA | K34: 2 to 3 hours per day | L34: Data Not Avaliable
B35: ID1286 | C35: 192000 | D35: USD | E35: 192000 | F35: =(tblSalaries[[#This Row],[clean Salary (in local currency)]])*(VLOOKUP(tblSalaries[[#This Row],[Currency]],Sheet3!$A$2:$C$31,3,FALSE))*(VLOOKUP(tblSalaries[[#This Row],[Currency]],Sheet1!$N$4:$Q$186,4,FALSE)) -> 192000 | G35: =IF(Dashboard!$J$5=VLOOKUP(tblSalaries[[#This Row],[Currency]],Sheet3!$A$2:$B$31,2,FALSE),tblSalaries[[#This Row],[clean Salary (in local currency)]],(tblSalaries[[#This Row],[PPP Adjusted USD]]/VLOOKUP(Dashboard!$J$5,Sheet3!$B$2:$C$31,2,FALSE))) -> 192000 | H35: Publisher | I35: CXO or Top Mgmt. | J35: USA | K35: All the 8 hours baby, all the 8! | L35: 27
B36: ID0441 | C36: 4000000 | D36: INR | E36: 71231.66675 | F36: =(tblSalaries[[#This Row],[clean Salary (in local currency)]])*(VLOOKUP(tblSalaries[[#This Row],[Currency]],Sheet3!$A$2:$C$31,3,FALSE))*(VLOOKUP(tblSalaries[[#This Row],[Currency]],Sheet1!$N$4:$Q$186,4,FALSE)) -> 189444.0894 | G36: =IF(Dashboard!$J$5=VLOOKUP(tblSalaries[[#This Row],[Currency]],Sheet3!$A$2:$B$31,2,FALSE),tblSalaries[[#This Row],[clean Salary (in local currency)]],(tblSalaries[[#This Row],[PPP Adjusted USD]]/VLOOKUP(Dashboard!$J$5,Sheet3!$B$2:$C$31,2,FALSE))) -> 189444.0894 | H36: Sr Mgr Finance | I36: Accountant | J36: India | K36: All the 8 hours baby, all the 8! | L36: Data Not Avaliable
B37: ID0640 | C37: 4000000 | D37: INR | E37: 71231.66675 | F37: =(tblSalaries[[#This Row],[clean Salary (in local currency)]])*(VLOOKUP(tblSalaries[[#This Row],[Currency]],Sheet3!$A$2:$C$31,3,FALSE))*(VLOOKUP(tblSalaries[[#This Row],[Currency]],Sheet1!$N$4:$Q$186,4,FALSE)) -> 189444.0894 | G37: =IF(Dashboard!$J$5=VLOOKUP(tblSalaries[[#This Row],[Currency]],Sheet3!$A$2:$B$31,2,FALSE),tblSalaries[[#This Row],[clean Salary (in local currency)]],(tblSalaries[[#This Row],[PPP Adjusted USD]]/VLOOKUP(Dashboard!$J$5,Sheet3!$B$2:$C$31,2,FALSE))) -> 189444.0894 | H37: Senior Executive | I37: Manager | J37: India | K37: 4 to 6 hours a day | L37: 1.5
B38: ID1509 | C38: 4000000 | D38: INR | E38: 71231.66675 | F38: =(tblSalaries[[#This Row],[clean Salary (in local currency)]])*(VLOOKUP(tblSalaries[[#This Row],[Currency]],Sheet3!$A$2:$C$31,3,FALSE))*(VLOOKUP(tblSalaries[[#This Row],[Currency]],Sheet1!$N$4:$Q$186,4,FALSE)) -> 189444.0894 | G38: =IF(Dashboard!$J$5=VLOOKUP(tblSalaries[[#This Row],[Currency]],Sheet3!$A$2:$B$31,2,FALSE),tblSalaries[[#This Row],[clean Salary (in local currency)]],(tblSalaries[[#This Row],[PPP Adjusted USD]]/VLOOKUP(Dashboard!$J$5,Sheet3!$B$2:$C$31,2,FALSE))) -> 189444.0894 | H38: Operational Specialist | I38: Specialist | J38: India | K38: All the 8 hours baby, all the 8! | L38: 5
B39: ID0563 | C39: 188000 | D39: USD | E39: 188000 | F39: =(tblSalaries[[#This Row],[clean Salary (in local currency)]])*(VLOOKUP(tblSalaries[[#This Row],[Currency]],Sheet3!$A$2:$C$31,3,FALSE))*(VLOOKUP(tblSalaries[[#This Row],[Currency]],Sheet1!$N$4:$Q$186,4,FALSE)) -> 188000 | G39: =IF(Dashboard!$J$5=VLOOKUP(tblSalaries[[#This Row],[Currency]],Sheet3!$A$2:$B$31,2,FALSE),tblSalaries[[#This Row],[clean Salary (in local currency)]],(tblSalaries[[#This Row],[PPP Adjusted USD]]/VLOOKUP(Dashboard!$J$5,Sheet3!$B$2:$C$31,2,FALSE))) -> 188000 | H39: Director, Supply Chain Operations | I39: CXO or Top Mgmt. | J39: USA | K39: 1 or 2 hours a day | L39: 20
B40: ID0485 | C40: 1080000 | D40: ZAR | E40: 131675.5223 | F40: =(tblSalaries[[#This Row],[clean Salary (in local currency)]])*(VLOOKUP(tblSalaries[[#This Row],[Currency]],Sheet3!$A$2:$C$31,3,FALSE))*(VLOOKUP(tblSalaries[[#This Row],[Currency]],Sheet1!$N$4:$Q$186,4,FALSE)) -> 179128.1958 | G40: =IF(Dashboard!$J$5=VLOOKUP(tblSalaries[[#This Row],[Currency]],Sheet3!$A$2:$B$31,2,FALSE),tblSalaries[[#This Row],[clean Salary (in local currency)]],(tblSalaries[[#This Row],[PPP Adjusted USD]]/VLOOKUP(Dashboard!$J$5,Sheet3!$B$2:$C$31,2,FALSE))) -> 179128.1958 | H40: Finance manager | I40: Manager | J40: South Africa | K40: 2 to 3 hours per day | L40: Data Not Avaliable
B41: ID1596 | C41: 177600 | D41: USD | E41: 177600 | F41: =(tblSalaries[[#This Row],[clean Salary (in local currency)]])*(VLOOKUP(tblSalaries[[#This Row],[Currency]],Sheet3!$A$2:$C$31,3,FALSE))*(VLOOKUP(tblSalaries[[#This Row],[Currency]],Sheet1!$N$4:$Q$186,4,FALSE)) -> 177600 | G41: =IF(Dashboard!$J$5=VLOOKUP(tblSalaries[[#This Row],[Currency]],Sheet3!$A$2:$B$31,2,FALSE),tblSalaries[[#This Row],[clean Salary (in local currency)]],(tblSalaries[[#This Row],[PPP Adjusted USD]]/VLOOKUP(Dashboard!$J$5,Sheet3!$B$2:$C$31,2,FALSE))) -> 177600 | H41: Accountant | I41: Accountant | J41: Lesotho | K41: 4 to 6 hours a day | L41: 6
B42: ID1636 | C42: 3700000 | D42: INR | E42: 65889.29174 | F42: =(tblSalaries[[#This Row],[clean Salary (in local currency)]])*(VLOOKUP(tblSalaries[[#This Row],[Currency]],Sheet3!$A$2:$C$31,3,FALSE))*(VLOOKUP(tblSalaries[[#This Row],[Currency]],Sheet1!$N$4:$Q$186,4,FALSE)) -> 175235.7827 | G42: =IF(Dashboard!$J$5=VLOOKUP(tblSalaries[[#This Row],[Currency]],Sheet3!$A$2:$B$31,2,FALSE),tblSalaries[[#This Row],[clean Salary (in local currency)]],(tblSalaries[[#This Row],[PPP Adjusted USD]]/VLOOKUP(Dashboard!$J$5,Sheet3!$B$2:$C$31,2,FALSE))) -> 175235.7827 | H42: Senior Officer | I42: Manager | J42: India | K42: All the 8 hours baby, all the 8! | L42: 4
B43: ID0358 | C43: 170000 | D43: USD | E43: 170000 | F43: =(tblSalaries[[#This Row],[clean Salary (in local currency)]])*(VLOOKUP(tblSalaries[[#This Row],[Currency]],Sheet3!$A$2:$C$31,3,FALSE))*(VLOOKUP(tblSalaries[[#This Row],[Currency]],Sheet1!$N$4:$Q$186,4,FALSE)) -> 170000 | G43: =IF(Dashboard!$J$5=VLOOKUP(tblSalaries[[#This Row],[Currency]],Sheet3!$A$2:$B$31,2,FALSE),tblSalaries[[#This Row],[clean Salary (in local currency)]],(tblSalaries[[#This Row],[PPP Adjusted USD]]/VLOOKUP(Dashboard!$J$5,Sheet3!$B$2:$C$31,2,FALSE))) -> 170000 | H43: RS | I43: Analyst | J43: UK | K43: Excel ?!? What Excel? | L43: Data Not Avaliable
B44: ID1523 | C44: 170000 | D44: USD | E44: 170000 | F44: =(tblSalaries[[#This Row],[clean Salary (in local currency)]])*(VLOOKUP(tblSalaries[[#This Row],[Currency]],Sheet3!$A$2:$C$31,3,FALSE))*(VLOOKUP(tblSalaries[[#This Row],[Currency]],Sheet1!$N$4:$Q$186,4,FALSE)) -> 170000 | G44: =IF(Dashboard!$J$5=VLOOKUP(tblSalaries[[#This Row],[Currency]],Sheet3!$A$2:$B$31,2,FALSE),tblSalaries[[#This Row],[clean Salary (in local currency)]],(tblSalaries[[#This Row],[PPP Adjusted USD]]/VLOOKUP(Dashboard!$J$5,Sheet3!$B$2:$C$31,2,FALSE))) -> 170000 | H44: CFO | I44: CXO or Top Mgmt. | J44: USA | K44: 2 to 3 hours per day | L44: 18
B45: ID0482 | C45: 169000 | D45: USD | E45: 169000 | F45: =(tblSalaries[[#This Row],[clean Salary (in local currency)]])*(VLOOKUP(tblSalaries[[#This Row],[Currency]],Sheet3!$A$2:$C$31,3,FALSE))*(VLOOKUP(tblSalaries[[#This Row],[Currency]],Sheet1!$N$4:$Q$186,4,FALSE)) -> 169000 | G45: =IF(Dashboard!$J$5=VLOOKUP(tblSalaries[[#This Row],[Currency]],Sheet3!$A$2:$B$31,2,FALSE),tblSalaries[[#This Row],[clean Salary (in local currency)]],(tblSalaries[[#This Row],[PPP Adjusted USD]]/VLOOKUP(Dashboard!$J$5,Sheet3!$B$2:$C$31,2,FALSE))) -> 169000 | H45: Category Director (Marketing) | I45: CXO or Top Mgmt. | J45: USA | K45: 2 to 3 hours per day | L45: Data Not Avaliable
B46: ID0608 | C46: 160000 | D46: USD | E46: 160000 | F46: =(tblSalaries[[#This Row],[clean Salary (in local currency)]])*(VLOOKUP(tblSalaries[[#This Row],[Currency]],Sheet3!$A$2:$C$31,3,FALSE))*(VLOOKUP(tblSalaries[[#This Row],[Currency]],Sheet1!$N$4:$Q$186,4,FALSE)) -> 160000 | G46: =IF(Dashboard!$J$5=VLOOKUP(tblSalaries[[#This Row],[Currency]],Sheet3!$A$2:$B$31,2,FALSE),tblSalaries[[#This Row],[clean Salary (in local currency)]],(tblSalaries[[#This Row],[PPP Adjusted USD]]/VLOOKUP(Dashboard!$J$5,Sheet3!$B$2:$C$31,2,FALSE))) -> 160000 | H46: Director, Analytics | I46: Analyst | J46: USA | K46: 4 to 6 hours a day | L46: 5
B47: ID0007 | C47: 145000 | D47: EUR | E47: 184207.9187 | F47: =(tblSalaries[[#This Row],[clean Salary (in local currency)]])*(VLOOKUP(tblSalaries[[#This Row],[Currency]],Sheet3!$A$2:$C$31,3,FALSE))*(VLOOKUP(tblSalaries[[#This Row],[Currency]],Sheet1!$N$4:$Q$186,4,FALSE)) -> 159594.6685 | G47: =IF(Dashboard!$J$5=VLOOKUP(tblSalaries[[#This Row],[Currency]],Sheet3!$A$2:$B$31,2,FALSE),tblSalaries[[#This Row],[clean Salary (in local currency)]],(tblSalaries[[#This Row],[PPP Adjusted USD]]/VLOOKUP(Dashboard!$J$5,Sheet3!$B$2:$C$31,2,FALSE))) -> 159594.6685 | H47: senior project manager | I47: Manager | J47: Germany | K47: 1 or 2 hours a day | L47: Data Not Avaliable
B48: ID1655 | C48: 155000 | D48: USD | E48: 155000 | F48: =(tblSalaries[[#This Row],[clean Salary (in local currency)]])*(VLOOKUP(tblSalaries[[#This Row],[Currency]],Sheet3!$A$2:$C$31,3,FALSE))*(VLOOKUP(tblSalaries[[#This Row],[Currency]],Sheet1!$N$4:$Q$186,4,FALSE)) -> 155000 | G48: =IF(Dashboard!$J$5=VLOOKUP(tblSalaries[[#This Row],[Currency]],Sheet3!$A$2:$B$31,2,FALSE),tblSalaries[[#This Row],[clean Salary (in local currency)]],(tblSalaries[[#This Row],[PPP Adjusted USD]]/VLOOKUP(Dashboard!$J$5,Sheet3!$B$2:$C$31,2,FALSE))) -> 155000 | H48: Consulting Practice Manager | I48: Manager | J48: USA | K48: 1 or 2 hours a day | L48: 14
B49: ID1436 | C49: 3250000 | D49: INR | E49: 57875.72923 | F49: =(tblSalaries[[#This Row],[clean Salary (in local currency)]])*(VLOOKUP(tblSalaries[[#This Row],[Currency]],Sheet3!$A$2:$C$31,3,FALSE))*(VLOOKUP(tblSalaries[[#This Row],[Currency]],Sheet1!$N$4:$Q$186,4,FALSE)) -> 153923.3226 | G49: =IF(Dashboard!$J$5=VLOOKUP(tblSalaries[[#This Row],[Currency]],Sheet3!$A$2:$B$31,2,FALSE),tblSalaries[[#This Row],[clean Salary (in local currency)]],(tblSalaries[[#This Row],[PPP Adjusted USD]]/VLOOKUP(Dashboard!$J$5,Sheet3!$B$2:$C$31,2,FALSE))) -> 153923.3226 | H49: ISO TS Documentation | I49: Analyst | J49: India | K49: 4 to 6 hours a day | L49: 5.5
B50: ID1320 | C50: 139000 | D50: EUR | E50: 176585.522 | F50: =(tblSalaries[[#This Row],[clean Salary (in local currency)]])*(VLOOKUP(tblSalaries[[#This Row],[Currency]],Sheet3!$A$2:$C$31,3,FALSE))*(VLOOKUP(tblSalaries[[#This Row],[Currency]],Sheet1!$N$4:$Q$186,4,FALSE)) -> 152990.7512 | G50: =IF(Dashboard!$J$5=VLOOKUP(tblSalaries[[#This Row],[Currency]],Sheet3!$A$2:$B$31,2,FALSE),tblSalaries[[#This Row],[clean Salary (in local currency)]],(tblSalaries[[#This Row],[PPP Adjusted USD]]/VLOOKUP(Dashboard!$J$5,Sheet3!$B$2:$C$31,2,FALSE))) -> 152990.7512 | H50: NAF Support Manager | I50: Manager | J50: Germany | K50: 1 or 2 hours a day | L50: 25
B51: ID0037 | C51: 150000 | D51: USD | E51: 150000 | F51: =(tblSalaries[[#This Row],[clean Salary (in local currency)]])*(VLOOKUP(tblSalaries[[#This Row],[Currency]],Sheet3!$A$2:$C$31,3,FALSE))*(VLOOKUP(tblSalaries[[#This Row],[Currency]],Sheet1!$N$4:$Q$186,4,FALSE)) -> 150000 | G51: =IF(Dashboard!$J$5=VLOOKUP(tblSalaries[[#This Row],[Currency]],Sheet3!$A$2:$B$31,2,FALSE),tblSalaries[[#This Row],[clean Salary (in local currency)]],(tblSalaries[[#This Row],[PPP Adjusted USD]]/VLOOKUP(Dashboard!$J$5,Sheet3!$B$2:$C$31,2,FALSE))) -> 150000 | H51: Portfolio Manager | I51: Manager | J51: USA | K51: 2 to 3 hours per day | L51: Data Not Avaliable
B52: ID0083 | C52: 150000 | D52: USD | E52: 150000 | F52: =(tblSalaries[[#This Row],[clean Salary (in local currency)]])*(VLOOKUP(tblSalaries[[#This Row],[Currency]],Sheet3!$A$2:$C$31,3,FALSE))*(VLOOKUP(tblSalaries[[#This Row],[Currency]],Sheet1!$N$4:$Q$186,4,FALSE)) -> 150000 | G52: =IF(Dashboard!$J$5=VLOOKUP(tblSalaries[[#This Row],[Currency]],Sheet3!$A$2:$B$31,2,FALSE),tblSalaries[[#This Row],[clean Salary (in local currency)]],(tblSalaries[[#This Row],[PPP Adjusted USD]]/VLOOKUP(Dashboard!$J$5,Sheet3!$B$2:$C$31,2,FALSE))) -> 150000 | H52: Director | I52: CXO or Top Mgmt. | J52: USA | K52: All the 8 hours baby, all the 8! | L52: Data Not Avaliable
B53: ID0335 | C53: 150000 | D53: USD | E53: 150000 | F53: =(tblSalaries[[#This Row],[clean Salary (in local currency)]])*(VLOOKUP(tblSalaries[[#This Row],[Currency]],Sheet3!$A$2:$C$31,3,FALSE))*(VLOOKUP(tblSalaries[[#This Row],[Currency]],Sheet1!$N$4:$Q$186,4,FALSE)) -> 150000 | G53: =IF(Dashboard!$J$5=VLOOKUP(tblSalaries[[#This Row],[Currency]],Sheet3!$A$2:$B$31,2,FALSE),tblSalaries[[#This Row],[clean Salary (in local currency)]],(tblSalaries[[#This Row],[PPP Adjusted USD]]/VLOOKUP(Dashboard!$J$5,Sheet3!$B$2:$C$31,2,FALSE))) -> 150000 | H53: financial planning | I53: Accountant | J53: USA | K53: All the 8 hours baby, all the 8! | L53: Data Not Avaliable
B54: ID0337 | C54: 150000 | D54: USD | E54: 150000 | F54: =(tblSalaries[[#This Row],[clean Salary (in local currency)]])*(VLOOKUP(tblSalaries[[#This Row],[Currency]],Sheet3!$A$2:$C$31,3,FALSE))*(VLOOKUP(tblSalaries[[#This Row],[Currency]],Sheet1!$N$4:$Q$186,4,FALSE)) -> 150000 | G54: =IF(Dashboard!$J$5=VLOOKUP(tblSalaries[[#This Row],[Currency]],Sheet3!$A$2:$B$31,2,FALSE),tblSalaries[[#This Row],[clean Salary (in local currency)]],(tblSalaries[[#This Row],[PPP Adjusted USD]]/VLOOKUP(Dashboard!$J$5,Sheet3!$B$2:$C$31,2,FALSE))) -> 150000 | H54: project manager, project finance consultant | I54: Manager | J54: Israel | K54: 4 to 6 hours a day | L54: Data Not Avaliable
B55: ID0470 | C55: 150000 | D55: USD | E55: 150000 | F55: =(tblSalaries[[#This Row],[clean Salary (in local currency)]])*(VLOOKUP(tblSalaries[[#This Row],[Currency]],Sheet3!$A$2:$C$31,3,FALSE))*(VLOOKUP(tblSalaries[[#This Row],[Currency]],Sheet1!$N$4:$Q$186,4,FALSE)) -> 150000 | G55: =IF(Dashboard!$J$5=VLOOKUP(tblSalaries[[#This Row],[Currency]],Sheet3!$A$2:$B$31,2,FALSE),tblSalaries[[#This Row],[clean Salary (in local currency)]],(tblSalaries[[#This Row],[PPP Adjusted USD]]/VLOOKUP(Dashboard!$J$5,Sheet3!$B$2:$C$31,2,FALSE))) -> 150000 | H55: CFO | I55: CXO or Top Mgmt. | J55: USA | K55: 2 to 3 hours per day | L55: Data Not Avaliable
B56: ID0516 | C56: 150000 | D56: USD | E56: 150000 | F56: =(tblSalaries[[#This Row],[clean Salary (in local currency)]])*(VLOOKUP(tblSalaries[[#This Row],[Currency]],Sheet3!$A$2:$C$31,3,FALSE))*(VLOOKUP(tblSalaries[[#This Row],[Currency]],Sheet1!$N$4:$Q$186,4,FALSE)) -> 150000 | G56: =IF(Dashboard!$J$5=VLOOKUP(tblSalaries[[#This Row],[Currency]],Sheet3!$A$2:$B$31,2,FALSE),tblSalaries[[#This Row],[clean Salary (in local currency)]],(tblSalaries[[#This Row],[PPP Adjusted USD]]/VLOOKUP(Dashboard!$J$5,Sheet3!$B$2:$C$31,2,FALSE))) -> 150000 | H56: Consultant | I56: Consultant | J56: USA | K56: All the 8 hours baby, all the 8! | L56: Data Not Avaliable
B57: ID0580 | C57: 150000 | D57: USD | E57: 150000 | F57: =(tblSalaries[[#This Row],[clean Salary (in local currency)]])*(VLOOKUP(tblSalaries[[#This Row],[Currency]],Sheet3!$A$2:$C$31,3,FALSE))*(VLOOKUP(tblSalaries[[#This Row],[Currency]],Sheet1!$N$4:$Q$186,4,FALSE)) -> 150000 | G57: =IF(Dashboard!$J$5=VLOOKUP(tblSalaries[[#This Row],[Currency]],Sheet3!$A$2:$B$31,2,FALSE),tblSalaries[[#This Row],[clean Salary (in local currency)]],(tblSalaries[[#This Row],[PPP Adjusted USD]]/VLOOKUP(Dashboard!$J$5,Sheet3!$B$2:$C$31,2,FALSE))) -> 150000 | H57: CFO | I57: CXO or Top Mgmt. | J57: USA | K57: 4 to 6 hours a day | L57: 22
B58: ID0927 | C58: 150000 | D58: USD | E58: 150000 | F58: =(tblSalaries[[#This Row],[clean Salary (in local currency)]])*(VLOOKUP(tblSalaries[[#This Row],[Currency]],Sheet3!$A$2:$C$31,3,FALSE))*(VLOOKUP(tblSalaries[[#This Row],[Currency]],Sheet1!$N$4:$Q$186,4,FALSE)) -> 150000 | G58: =IF(Dashboard!$J$5=VLOOKUP(tblSalaries[[#This Row],[Currency]],Sheet3!$A$2:$B$31,2,FALSE),tblSalaries[[#This Row],[clean Salary (in local currency)]],(tblSalaries[[#This Row],[PPP Adjusted USD]]/VLOOKUP(Dashboard!$J$5,Sheet3!$B$2:$C$31,2,FALSE))) -> 150000 | H58: Controller | I58: Controller | J58: USA | K58: 4 to 6 hours a day | L58: 25
B59: ID0963 | C59: 150000 | D59: USD | E59: 150000 | F59: =(tblSalaries[[#This Row],[clean Salary (in local currency)]])*(VLOOKUP(tblSalaries[[#This Row],[Currency]],Sheet3!$A$2:$C$31,3,FALSE))*(VLOOKUP(tblSalaries[[#This Row],[Currency]],Sheet1!$N$4:$Q$186,4,FALSE)) -> 150000 | G59: =IF(Dashboard!$J$5=VLOOKUP(tblSalaries[[#This Row],[Currency]],Sheet3!$A$2:$B$31,2,FALSE),tblSalaries[[#This Row],[clean Salary (in local currency)]],(tblSalaries[[#This Row],[PPP Adjusted USD]]/VLOOKUP(Dashboard!$J$5,Sheet3!$B$2:$C$31,2,FALSE))) -> 150000 | H59: Software Tester | I59: Analyst | J59: Switzerland | K59: 1 or 2 hours a day | L59: 20
B60: ID1393 | C60: 150000 | D60: USD | E60: 150000 | F60: =(tblSalaries[[#This Row],[clean Salary (in local currency)]])*(VLOOKUP(tblSalaries[[#This Row],[Currency]],Sheet3!$A$2:$C$31,3,FALSE))*(VLOOKUP(tblSalaries[[#This Row],[Currency]],Sheet1!$N$4:$Q$186,4,FALSE)) -> 150000 | G60: =IF(Dashboard!$J$5=VLOOKUP(tblSalaries[[#This Row],[Currency]],Sheet3!$A$2:$B$31,2,FALSE),tblSalaries[[#This Row],[clean Salary (in local currency)]],(tblSalaries[[#This Row],[PPP Adjusted USD]]/VLOOKUP(Dashboard!$J$5,Sheet3!$B$2:$C$31,2,FALSE))) -> 150000 | H60: VP, Business Management | I60: Manager | J60: USA | K60: 2 to 3 hours per day | L60: 30
B61: ID1412 | C61: 150000 | D61: USD | E61: 150000 | F61: =(tblSalaries[[#This Row],[clean Salary (in local currency)]])*(VLOOKUP(tblSalaries[[#This Row],[Currency]],Sheet3!$A$2:$C$31,3,FALSE))*(VLOOKUP(tblSalaries[[#This Row],[Currency]],Sheet1!$N$4:$Q$186,4,FALSE)) -> 150000 | G61: =IF(Dashboard!$J$5=VLOOKUP(tblSalaries[[#This Row],[Currency]],Sheet3!$A$2:$B$31,2,FALSE),tblSalaries[[#This Row],[clean Salary (in local currency)]],(tblSalaries[[#This Row],[PPP Adjusted USD]]/VLOOKUP(Dashboard!$J$5,Sheet3!$B$2:$C$31,2,FALSE))) -> 150000 | H61: Senior Analyst | I61: Analyst | J61: USA | K61: 2 to 3 hours per day | L61: 30
B62: ID0804 | C62: 900000 | D62: ZAR | E62: 109729.6019 | F62: =(tblSalaries[[#This Row],[clean Salary (in local currency)]])*(VLOOKUP(tblSalaries[[#This Row],[Currency]],Sheet3!$A$2:$C$31,3,FALSE))*(VLOOKUP(tblSalaries[[#This Row],[Currency]],Sheet1!$N$4:$Q$186,4,FALSE)) -> 149273.4965 | G62: =IF(Dashboard!$J$5=VLOOKUP(tblSalaries[[#This Row],[Currency]],Sheet3!$A$2:$B$31,2,FALSE),tblSalaries[[#This Row],[clean Salary (in local currency)]],(tblSalaries[[#This Row],[PPP Adjusted USD]]/VLOOKUP(Dashboard!$J$5,Sheet3!$B$2:$C$31,2,FALSE))) -> 149273.4965 | H62: Business Analyst | I62: Analyst | J62: South Africa | K62: All the 8 hours baby, all the 8! | L62: 40
B63: ID0078 | C63: 100000 | D63: GBP | E63: 157617.8272 | F63: =(tblSalaries[[#This Row],[clean Salary (in local currency)]])*(VLOOKUP(tblSalaries[[#This Row],[Currency]],Sheet3!$A$2:$C$31,3,FALSE))*(VLOOKUP(tblSalaries[[#This Row],[Currency]],Sheet1!$N$4:$Q$186,4,FALSE)) -> 147397.1205 | G63: =IF(Dashboard!$J$5=VLOOKUP(tblSalaries[[#This Row],[Currency]],Sheet3!$A$2:$B$31,2,FALSE),tblSalaries[[#This Row],[clean Salary (in local currency)]],(tblSalaries[[#This Row],[PPP Adjusted USD]]/VLOOKUP(Dashboard!$J$5,Sheet3!$B$2:$C$31,2,FALSE))) -> 147397.1205 | H63: Analyst | I63: Analyst | J63: UK | K63: 2 to 3 hours per day | L63: Data Not Avaliable
B64: ID0844 | C64: 100000 | D64: GBP | E64: 157617.8272 | F64: =(tblSalaries[[#This Row],[clean Salary (in local currency)]])*(VLOOKUP(tblSalaries[[#This Row],[Currency]],Sheet3!$A$2:$C$31,3,FALSE))*(VLOOKUP(tblSalaries[[#This Row],[Currency]],Sheet1!$N$4:$Q$186,4,FALSE)) -> 147397.1205 | G64: =IF(Dashboard!$J$5=VLOOKUP(tblSalaries[[#This Row],[Currency]],Sheet3!$A$2:$B$31,2,FALSE),tblSalaries[[#This Row],[clean Salary (in local currency)]],(tblSalaries[[#This Row],[PPP Adjusted USD]]/VLOOKUP(Dashboard!$J$5,Sheet3!$B$2:$C$31,2,FALSE))) -> 147397.1205 | H64: Financial Controller | I64: Controller | J64: UK | K64: 2 to 3 hours per day | L64: 20
B65: ID0167 | C65: 145000 | D65: USD | E65: 145000 | F65: =(tblSalaries[[#This Row],[clean Salary (in local currency)]])*(VLOOKUP(tblSalaries[[#This Row],[Currency]],Sheet3!$A$2:$C$31,3,FALSE))*(VLOOKUP(tblSalaries[[#This Row],[Currency]],Sheet1!$N$4:$Q$186,4,FALSE)) -> 145000 | G65: =IF(Dashboard!$J$5=VLOOKUP(tblSalaries[[#This Row],[Currency]],Sheet3!$A$2:$B$31,2,FALSE),tblSalaries[[#This Row],[clean Salary (in local currency)]],(tblSalaries[[#This Row],[PPP Adjusted USD]]/VLOOKUP(Dashboard!$J$5,Sheet3!$B$2:$C$31,2,FALSE))) -> 145000 | H65: Financialcontroller | I65: Controller | J65: Switzerland | K65: All the 8 hours baby, all the 8! | L65: Data Not Avaliable
B66: ID1528 | C66: 145000 | D66: USD | E66: 145000 | F66: =(tblSalaries[[#This Row],[clean Salary (in local currency)]])*(VLOOKUP(tblSalaries[[#This Row],[Currency]],Sheet3!$A$2:$C$31,3,FALSE))*(VLOOKUP(tblSalaries[[#This Row],[Currency]],Sheet1!$N$4:$Q$186,4,FALSE)) -> 145000 | G66: =IF(Dashboard!$J$5=VLOOKUP(tblSalaries[[#This Row],[Currency]],Sheet3!$A$2:$B$31,2,FALSE),tblSalaries[[#This Row],[clean Salary (in local currency)]],(tblSalaries[[#This Row],[PPP Adjusted USD]]/VLOOKUP(Dashboard!$J$5,Sheet3!$B$2:$C$31,2,FALSE))) -> 145000 | H66: Associate | I66: Analyst | J66: USA | K66: 4 to 6 hours a day | L66: 6
B67: ID0445 | C67: 3000000 | D67: INR | E67: 53423.75006 | F67: =(tblSalaries[[#This Row],[clean Salary (in local currency)]])*(VLOOKUP(tblSalaries[[#This Row],[Currency]],Sheet3!$A$2:$C$31,3,FALSE))*(VLOOKUP(tblSalaries[[#This Row],[Currency]],Sheet1!$N$4:$Q$186,4,FALSE)) -> 142083.067 | G67: =IF(Dashboard!$J$5=VLOOKUP(tblSalaries[[#This Row],[Currency]],Sheet3!$A$2:$B$31,2,FALSE),tblSalaries[[#This Row],[clean Salary (in local currency)]],(tblSalaries[[#This Row],[PPP Adjusted USD]]/VLOOKUP(Dashboard!$J$5,Sheet3!$B$2:$C$31,2,FALSE))) -> 142083.067 | H67: Management Consultant | I67: Manager | J67: India | K67: 4 to 6 hours a day | L67: Data Not Avaliable
B68: ID0248 | C68: 140000 | D68: USD | E68: 140000 | F68: =(tblSalaries[[#This Row],[clean Salary (in local currency)]])*(VLOOKUP(tblSalaries[[#This Row],[Currency]],Sheet3!$A$2:$C$31,3,FALSE))*(VLOOKUP(tblSalaries[[#This Row],[Currency]],Sheet1!$N$4:$Q$186,4,FALSE)) -> 140000 | G68: =IF(Dashboard!$J$5=VLOOKUP(tblSalaries[[#This Row],[Currency]],Sheet3!$A$2:$B$31,2,FALSE),tblSalaries[[#This Row],[clean Salary (in local currency)]],(tblSalaries[[#This Row],[PPP Adjusted USD]]/VLOOKUP(Dashboard!$J$5,Sheet3!$B$2:$C$31,2,FALSE))) -> 140000 | H68: Manager | I68: Manager | J68: USA | K68: 4 to 6 hours a day | L68: Data Not Avaliable
B69: ID0565 | C69: 140000 | D69: USD | E69: 140000 | F69: =(tblSalaries[[#This Row],[clean Salary (in local currency)]])*(VLOOKUP(tblSalaries[[#This Row],[Currency]],Sheet3!$A$2:$C$31,3,FALSE))*(VLOOKUP(tblSalaries[[#This Row],[Currency]],Sheet1!$N$4:$Q$186,4,FALSE)) -> 140000 | G69: =IF(Dashboard!$J$5=VLOOKUP(tblSalaries[[#This Row],[Currency]],Sheet3!$A$2:$B$31,2,FALSE),tblSalaries[[#This Row],[clean Salary (in local currency)]],(tblSalaries[[#This Row],[PPP Adjusted USD]]/VLOOKUP(Dashboard!$J$5,Sheet3!$B$2:$C$31,2,FALSE))) -> 140000 | H69: controller | I69: Controller | J69: USA | K69: 2 to 3 hours per day | L69: 10
B70: ID1296 | C70: 140000 | D70: USD | E70: 140000 | F70: =(tblSalaries[[#This Row],[clean Salary (in local currency)]])*(VLOOKUP(tblSalaries[[#This Row],[Currency]],Sheet3!$A$2:$C$31,3,FALSE))*(VLOOKUP(tblSalaries[[#This Row],[Currency]],Sheet1!$N$4:$Q$186,4,FALSE)) -> 140000 | G70: =IF(Dashboard!$J$5=VLOOKUP(tblSalaries[[#This Row],[Currency]],Sheet3!$A$2:$B$31,2,FALSE),tblSalaries[[#This Row],[clean Salary (in local currency)]],(tblSalaries[[#This Row],[PPP Adjusted USD]]/VLOOKUP(Dashboard!$J$5,Sheet3!$B$2:$C$31,2,FALSE))) -> 140000 | H70: Senior Accountant | I70: Accountant | J70: USA | K70: 4 to 6 hours a day | L70: 12
B71: ID1626 | C71: 140000 | D71: USD | E71: 140000 | F71: =(tblSalaries[[#This Row],[clean Salary (in local currency)]])*(VLOOKUP(tblSalaries[[#This Row],[Currency]],Sheet3!$A$2:$C$31,3,FALSE))*(VLOOKUP(tblSalaries[[#This Row],[Currency]],Sheet1!$N$4:$Q$186,4,FALSE)) -> 140000 | G71: =IF(Dashboard!$J$5=VLOOKUP(tblSalaries[[#This Row],[Currency]],Sheet3!$A$2:$B$31,2,FALSE),tblSalaries[[#This Row],[clean Salary (in local currency)]],(tblSalaries[[#This Row],[PPP Adjusted USD]]/VLOOKUP(Dashboard!$J$5,Sheet3!$B$2:$C$31,2,FALSE))) -> 140000 | H71: sr manager | I71: Manager | J71: USA | K71: 4 to 6 hours a day | L71: 12
B72: ID0224 | C72: 138000 | D72: USD | E72: 138000 | F72: =(tblSalaries[[#This Row],[clean Salary (in local currency)]])*(VLOOKUP(tblSalaries[[#This Row],[Currency]],Sheet3!$A$2:$C$31,3,FALSE))*(VLOOKUP(tblSalaries[[#This Row],[Currency]],Sheet1!$N$4:$Q$186,4,FALSE)) -> 138000 | G72: =IF(Dashboard!$J$5=VLOOKUP(tblSalaries[[#This Row],[Currency]],Sheet3!$A$2:$B$31,2,FALSE),tblSalaries[[#This Row],[clean Salary (in local currency)]],(tblSalaries[[#This Row],[PPP Adjusted USD]]/VLOOKUP(Dashboard!$J$5,Sheet3!$B$2:$C$31,2,FALSE))) -> 138000 | H72: Project engineer | I72: Engineer | J72: Thailand | K72: 4 to 6 hours a day | L72: Data Not Avaliable
B73: ID0323 | C73: 137500 | D73: USD | E73: 137500 | F73: =(tblSalaries[[#This Row],[clean Salary (in local currency)]])*(VLOOKUP(tblSalaries[[#This Row],[Currency]],Sheet3!$A$2:$C$31,3,FALSE))*(VLOOKUP(tblSalaries[[#This Row],[Currency]],Sheet1!$N$4:$Q$186,4,FALSE)) -> 137500 | G73: =IF(Dashboard!$J$5=VLOOKUP(tblSalaries[[#This Row],[Currency]],Sheet3!$A$2:$B$31,2,FALSE),tblSalaries[[#This Row],[clean Salary (in local currency)]],(tblSalaries[[#This Row],[PPP Adjusted USD]]/VLOOKUP(Dashboard!$J$5,Sheet3!$B$2:$C$31,2,FALSE))) -> 137500 | H73: director of analytics | I73: Analyst | J73: USA | K73: 4 to 6 hours a day | L73: Data Not Avaliable
B74: ID0822 | C74: 300000 | D74: BRL | E74: 148284.3501 | F74: =(tblSalaries[[#This Row],[clean Salary (in local currency)]])*(VLOOKUP(tblSalaries[[#This Row],[Currency]],Sheet3!$A$2:$C$31,3,FALSE))*(VLOOKUP(tblSalaries[[#This Row],[Currency]],Sheet1!$N$4:$Q$186,4,FALSE)) -> 136450.0728 | G74: =IF(Dashboard!$J$5=VLOOKUP(tblSalaries[[#This Row],[Currency]],Sheet3!$A$2:$B$31,2,FALSE),tblSalaries[[#This Row],[clean Salary (in local currency)]],(tblSalaries[[#This Row],[PPP Adjusted USD]]/VLOOKUP(Dashboard!$J$5,Sheet3!$B$2:$C$31,2,FALSE))) -> 136450.0728 | H74: Market Intelligence Analyst | I74: Analyst | J74: Brazil | K74: All the 8 hours baby, all the 8! | L74: 3
B75: ID1398 | C75: 136000 | D75: USD | E75: 136000 | F75: =(tblSalaries[[#This Row],[clean Salary (in local currency)]])*(VLOOKUP(tblSalaries[[#This Row],[Currency]],Sheet3!$A$2:$C$31,3,FALSE))*(VLOOKUP(tblSalaries[[#This Row],[Currency]],Sheet1!$N$4:$Q$186,4,FALSE)) -> 136000 | G75: =IF(Dashboard!$J$5=VLOOKUP(tblSalaries[[#This Row],[Currency]],Sheet3!$A$2:$B$31,2,FALSE),tblSalaries[[#This Row],[clean Salary (in local currency)]],(tblSalaries[[#This Row],[PPP Adjusted USD]]/VLOOKUP(Dashboard!$J$5,Sheet3!$B$2:$C$31,2,FALSE))) -> 136000 | H75: Manager FP and A | I75: Manager | J75: USA | K75: 4 to 6 hours a day | L75: 10
B76: ID0339 | C76: 135000 | D76: USD | E76: 135000 | F76: =(tblSalaries[[#This Row],[clean Salary (in local currency)]])*(VLOOKUP(tblSalaries[[#This Row],[Currency]],Sheet3!$A$2:$C$31,3,FALSE))*(VLOOKUP(tblSalaries[[#This Row],[Currency]],Sheet1!$N$4:$Q$186,4,FALSE)) -> 135000 | G76: =IF(Dashboard!$J$5=VLOOKUP(tblSalaries[[#This Row],[Currency]],Sheet3!$A$2:$B$31,2,FALSE),tblSalaries[[#This Row],[clean Salary (in local currency)]],(tblSalaries[[#This Row],[PPP Adjusted USD]]/VLOOKUP(Dashboard!$J$5,Sheet3!$B$2:$C$31,2,FALSE))) -> 135000 | H76: Manager of Trade Investment & Analysis | I76: Manager | J76: USA | K76: All the 8 hours baby, all the 8! | L76: Data Not Avaliable
B77: ID0870 | C77: 135000 | D77: USD | E77: 135000 | F77: =(tblSalaries[[#This Row],[clean Salary (in local currency)]])*(VLOOKUP(tblSalaries[[#This Row],[Currency]],Sheet3!$A$2:$C$31,3,FALSE))*(VLOOKUP(tblSalaries[[#This Row],[Currency]],Sheet1!$N$4:$Q$186,4,FALSE)) -> 135000 | G77: =IF(Dashboard!$J$5=VLOOKUP(tblSalaries[[#This Row],[Currency]],Sheet3!$A$2:$B$31,2,FALSE),tblSalaries[[#This Row],[clean Salary (in local currency)]],(tblSalaries[[#This Row],[PPP Adjusted USD]]/VLOOKUP(Dashboard!$J$5,Sheet3!$B$2:$C$31,2,FALSE))) -> 135000 | H77: Director, P&A | I77: CXO or Top Mgmt. | J77: USA | K77: 4 to 6 hours a day | L77: 25
B78: ID0954 | C78: 135000 | D78: USD | E78: 135000 | F78: =(tblSalaries[[#This Row],[clean Salary (in local currency)]])*(VLOOKUP(tblSalaries[[#This Row],[Currency]],Sheet3!$A$2:$C$31,3,FALSE))*(VLOOKUP(tblSalaries[[#This Row],[Currency]],Sheet1!$N$4:$Q$186,4,FALSE)) -> 135000 | G78: =IF(Dashboard!$J$5=VLOOKUP(tblSalaries[[#This Row],[Currency]],Sheet3!$A$2:$B$31,2,FALSE),tblSalaries[[#This Row],[clean Salary (in local currency)]],(tblSalaries[[#This Row],[PPP Adjusted USD]]/VLOOKUP(Dashboard!$J$5,Sheet3!$B$2:$C$31,2,FALSE))) -> 135000 | H78: Marketing Insights Manager | I78: Manager | J78: USA | K78: All the 8 hours baby, all the 8! | L78: 15
B79: ID0257 | C79: 130000 | D79: USD | E79: 130000 | F79: =(tblSalaries[[#This Row],[clean Salary (in local currency)]])*(VLOOKUP(tblSalaries[[#This Row],[Currency]],Sheet3!$A$2:$C$31,3,FALSE))*(VLOOKUP(tblSalaries[[#This Row],[Currency]],Sheet1!$N$4:$Q$186,4,FALSE)) -> 130000 | G79: =IF(Dashboard!$J$5=VLOOKUP(tblSalaries[[#This Row],[Currency]],Sheet3!$A$2:$B$31,2,FALSE),tblSalaries[[#This Row],[clean Salary (in local currency)]],(tblSalaries[[#This Row],[PPP Adjusted USD]]/VLOOKUP(Dashboard!$J$5,Sheet3!$B$2:$C$31,2,FALSE))) -> 130000 | H79: Senior Project Manager | I79: Manager | J79: USA | K79: 4 to 6 hours a day | L79: Data Not Avaliable
B80: ID0351 | C80: 130000 | D80: USD | E80: 130000 | F80: =(tblSalaries[[#This Row],[clean Salary (in local currency)]])*(VLOOKUP(tblSalaries[[#This Row],[Currency]],Sheet3!$A$2:$C$31,3,FALSE))*(VLOOKUP(tblSalaries[[#This Row],[Currency]],Sheet1!$N$4:$Q$186,4,FALSE)) -> 130000 | G80: =IF(Dashboard!$J$5=VLOOKUP(tblSalaries[[#This Row],[Currency]],Sheet3!$A$2:$B$31,2,FALSE),tblSalaries[[#This Row],[clean Salary (in local currency)]],(tblSalaries[[#This Row],[PPP Adjusted USD]]/VLOOKUP(Dashboard!$J$5,Sheet3!$B$2:$C$31,2,FALSE))) -> 130000 | H80: Sr Staff Engineer | I80: Engineer | J80: USA | K80: 4 to 6 hours a day | L80: Data Not Avaliable
B81: ID0370 | C81: 130000 | D81: USD | E81: 130000 | F81: =(tblSalaries[[#This Row],[clean Salary (in local currency)]])*(VLOOKUP(tblSalaries[[#This Row],[Currency]],Sheet3!$A$2:$C$31,3,FALSE))*(VLOOKUP(tblSalaries[[#This Row],[Currency]],Sheet1!$N$4:$Q$186,4,FALSE)) -> 130000 | G81: =IF(Dashboard!$J$5=VLOOKUP(tblSalaries[[#This Row],[Currency]],Sheet3!$A$2:$B$31,2,FALSE),tblSalaries[[#This Row],[clean Salary (in local currency)]],(tblSalaries[[#This Row],[PPP Adjusted USD]]/VLOOKUP(Dashboard!$J$5,Sheet3!$B$2:$C$31,2,FALSE))) -> 130000 | H81: Project Manager | I81: Manager | J81: USA | K81: 2 to 3 hours per day | L81: Data Not Avaliable
B82: ID0725 | C82: 130000 | D82: USD | E82: 130000 | F82: =(tblSalaries[[#This Row],[clean Salary (in local currency)]])*(VLOOKUP(tblSalaries[[#This Row],[Currency]],Sheet3!$A$2:$C$31,3,FALSE))*(VLOOKUP(tblSalaries[[#This Row],[Currency]],Sheet1!$N$4:$Q$186,4,FALSE)) -> 130000 | G82: =IF(Dashboard!$J$5=VLOOKUP(tblSalaries[[#This Row],[Currency]],Sheet3!$A$2:$B$31,2,FALSE),tblSalaries[[#This Row],[clean Salary (in local currency)]],(tblSalaries[[#This Row],[PPP Adjusted USD]]/VLOOKUP(Dashboard!$J$5,Sheet3!$B$2:$C$31,2,FALSE))) -> 130000 | H82: Modeller | I82: Manager | J82: Australia | K82: 4 to 6 hours a day | L82: 3
B83: ID1401 | C83: 130000 | D83: USD | E83: 130000 | F83: =(tblSalaries[[#This Row],[clean Salary (in local currency)]])*(VLOOKUP(tblSalaries[[#This Row],[Currency]],Sheet3!$A$2:$C$31,3,FALSE))*(VLOOKUP(tblSalaries[[#This Row],[Currency]],Sheet1!$N$4:$Q$186,4,FALSE)) -> 130000 | G83: =IF(Dashboard!$J$5=VLOOKUP(tblSalaries[[#This Row],[Currency]],Sheet3!$A$2:$B$31,2,FALSE),tblSalaries[[#This Row],[clean Salary (in local currency)]],(tblSalaries[[#This Row],[PPP Adjusted USD]]/VLOOKUP(Dashboard!$J$5,Sheet3!$B$2:$C$31,2,FALSE))) -> 130000 | H83: Manager | I83: Manager | J83: USA | K83: 1 or 2 hours a day | L83: 25
B84: ID1473 | C84: 118000 | D84: EUR | E84: 149907.1338 | F84: =(tblSalaries[[#This Row],[clean Salary (in local currency)]])*(VLOOKUP(tblSalaries[[#This Row],[Currency]],Sheet3!$A$2:$C$31,3,FALSE))*(VLOOKUP(tblSalaries[[#This Row],[Currency]],Sheet1!$N$4:$Q$186,4,FALSE)) -> 129877.0405 | G84: =IF(Dashboard!$J$5=VLOOKUP(tblSalaries[[#This Row],[Currency]],Sheet3!$A$2:$B$31,2,FALSE),tblSalaries[[#This Row],[clean Salary (in local currency)]],(tblSalaries[[#This Row],[PPP Adjusted USD]]/VLOOKUP(Dashboard!$J$5,Sheet3!$B$2:$C$31,2,FALSE))) -> 129877.0405 | H84: Support | I84: Analyst | J84: Europe | K84: 4 to 6 hours a day | L84: 7
B85: ID0126 | C85: 128000 | D85: USD | E85: 128000 | F85: =(tblSalaries[[#This Row],[clean Salary (in local currency)]])*(VLOOKUP(tblSalaries[[#This Row],[Currency]],Sheet3!$A$2:$C$31,3,FALSE))*(VLOOKUP(tblSalaries[[#This Row],[Currency]],Sheet1!$N$4:$Q$186,4,FALSE)) -> 128000 | G85: =IF(Dashboard!$J$5=VLOOKUP(tblSalaries[[#This Row],[Currency]],Sheet3!$A$2:$B$31,2,FALSE),tblSalaries[[#This Row],[clean Salary (in local currency)]],(tblSalaries[[#This Row],[PPP Adjusted USD]]/VLOOKUP(Dashboard!$J$5,Sheet3!$B$2:$C$31,2,FALSE))) -> 128000 | H85: Actuary | I85: Manager | J85: USA | K85: All the 8 hours baby, all the 8! | L85: Data Not Avaliable
B86: ID1522 | C86: 127500 | D86: USD | E86: 127500 | F86: =(tblSalaries[[#This Row],[clean Salary (in local currency)]])*(VLOOKUP(tblSalaries[[#This Row],[Currency]],Sheet3!$A$2:$C$31,3,FALSE))*(VLOOKUP(tblSalaries[[#This Row],[Currency]],Sheet1!$N$4:$Q$186,4,FALSE)) -> 127500 | G86: =IF(Dashboard!$J$5=VLOOKUP(tblSalaries[[#This Row],[Currency]],Sheet3!$A$2:$B$31,2,FALSE),tblSalaries[[#This Row],[clean Salary (in local currency)]],(tblSalaries[[#This Row],[PPP Adjusted USD]]/VLOOKUP(Dashboard!$J$5,Sheet3!$B$2:$C$31,2,FALSE))) -> 127500 | H86: SVP | I86: CXO or Top Mgmt. | J86: USA | K86: All the 8 hours baby, all the 8! | L86: 22
B87: ID0353 | C87: 160000 | D87: CAD | E87: 157337.8437 | F87: =(tblSalaries[[#This Row],[clean Salary (in local currency)]])*(VLOOKUP(tblSalaries[[#This Row],[Currency]],Sheet3!$A$2:$C$31,3,FALSE))*(VLOOKUP(tblSalaries[[#This Row],[Currency]],Sheet1!$N$4:$Q$186,4,FALSE)) -> 126471.3925 | G87: =IF(Dashboard!$J$5=VLOOKUP(tblSalaries[[#This Row],[Currency]],Sheet3!$A$2:$B$31,2,FALSE),tblSalaries[[#This Row],[clean Salary (in local currency)]],(tblSalaries[[#This Row],[PPP Adjusted USD]]/VLOOKUP(Dashboard!$J$5,Sheet3!$B$2:$C$31,2,FALSE))) -> 126471.3925 | H87: Consultant | I87: Consultant | J87: Canada | K87: 2 to 3 hours per day | L87: Data Not Avaliable
B88: ID0976 | C88: 200000 | D88: AUD | E88: 203981.9313 | F88: =(tblSalaries[[#This Row],[clean Salary (in local currency)]])*(VLOOKUP(tblSalaries[[#This Row],[Currency]],Sheet3!$A$2:$C$31,3,FALSE))*(VLOOKUP(tblSalaries[[#This Row],[Currency]],Sheet1!$N$4:$Q$186,4,FALSE)) -> 125342.8116 | G88: =IF(Dashboard!$J$5=VLOOKUP(tblSalaries[[#This Row],[Currency]],Sheet3!$A$2:$B$31,2,FALSE),tblSalaries[[#This Row],[clean Salary (in local currency)]],(tblSalaries[[#This Row],[PPP Adjusted USD]]/VLOOKUP(Dashboard!$J$5,Sheet3!$B$2:$C$31,2,FALSE))) -> 125342.8116 | H88: Corporate Finance Manager | I88: Manager | J88: Australia | K88: 4 to 6 hours a day | L88: 15
B89: ID0091 | C89: 125000 | D89: USD | E89: 125000 | F89: =(tblSalaries[[#This Row],[clean Salary (in local currency)]])*(VLOOKUP(tblSalaries[[#This Row],[Currency]],Sheet3!$A$2:$C$31,3,FALSE))*(VLOOKUP(tblSalaries[[#This Row],[Currency]],Sheet1!$N$4:$Q$186,4,FALSE)) -> 125000 | G89: =IF(Dashboard!$J$5=VLOOKUP(tblSalaries[[#This Row],[Currency]],Sheet3!$A$2:$B$31,2,FALSE),tblSalaries[[#This Row],[clean Salary (in local currency)]],(tblSalaries[[#This Row],[PPP Adjusted USD]]/VLOOKUP(Dashboard!$J$5,Sheet3!$B$2:$C$31,2,FALSE))) -> 125000 | H89: Director of Marketing | I89: CXO or Top Mgmt. | J89: USA | K89: 4 to 6 hours a day | L89: Data Not Avaliable
B90: ID0314 | C90: 125000 | D90: USD | E90: 125000 | F90: =(tblSalaries[[#This Row],[clean Salary (in local currency)]])*(VLOOKUP(tblSalaries[[#This Row],[Currency]],Sheet3!$A$2:$C$31,3,FALSE))*(VLOOKUP(tblSalaries[[#This Row],[Currency]],Sheet1!$N$4:$Q$186,4,FALSE)) -> 125000 | G90: =IF(Dashboard!$J$5=VLOOKUP(tblSalaries[[#This Row],[Currency]],Sheet3!$A$2:$B$31,2,FALSE),tblSalaries[[#This Row],[clean Salary (in local currency)]],(tblSalaries[[#This Row],[PPP Adjusted USD]]/VLOOKUP(Dashboard!$J$5,Sheet3!$B$2:$C$31,2,FALSE))) -> 125000 | H90: Finance, Manager | I90: Manager | J90: USA | K90: 4 to 6 hours a day | L90: Data Not Avaliable
B91: ID0461 | C91: 125000 | D91: USD | E91: 125000 | F91: =(tblSalaries[[#This Row],[clean Salary (in local currency)]])*(VLOOKUP(tblSalaries[[#This Row],[Currency]],Sheet3!$A$2:$C$31,3,FALSE))*(VLOOKUP(tblSalaries[[#This Row],[Currency]],Sheet1!$N$4:$Q$186,4,FALSE)) -> 125000 | G91: =IF(Dashboard!$J$5=VLOOKUP(tblSalaries[[#This Row],[Currency]],Sheet3!$A$2:$B$31,2,FALSE),tblSalaries[[#This Row],[clean Salary (in local currency)]],(tblSalaries[[#This Row],[PPP Adjusted USD]]/VLOOKUP(Dashboard!$J$5,Sheet3!$B$2:$C$31,2,FALSE))) -> 125000 | H91: Prod Mgr | I91: Manager | J91: USA | K91: 2 to 3 hours per day | L91: Data Not Avaliable
B92: ID0634 | C92: 125000 | D92: USD | E92: 125000 | F92: =(tblSalaries[[#This Row],[clean Salary (in local currency)]])*(VLOOKUP(tblSalaries[[#This Row],[Currency]],Sheet3!$A$2:$C$31,3,FALSE))*(VLOOKUP(tblSalaries[[#This Row],[Currency]],Sheet1!$N$4:$Q$186,4,FALSE)) -> 125000 | G92: =IF(Dashboard!$J$5=VLOOKUP(tblSalaries[[#This Row],[Currency]],Sheet3!$A$2:$B$31,2,FALSE),tblSalaries[[#This Row],[clean Salary (in local currency)]],(tblSalaries[[#This Row],[PPP Adjusted USD]]/VLOOKUP(Dashboard!$J$5,Sheet3!$B$2:$C$31,2,FALSE))) -> 125000 | H92: Analyst | I92: Analyst | J92: USA | K92: 2 to 3 hours per day | L92: 20
B93: ID0871 | C93: 125000 | D93: USD | E93: 125000 | F93: =(tblSalaries[[#This Row],[clean Salary (in local currency)]])*(VLOOKUP(tblSalaries[[#This Row],[Currency]],Sheet3!$A$2:$C$31,3,FALSE))*(VLOOKUP(tblSalaries[[#This Row],[Currency]],Sheet1!$N$4:$Q$186,4,FALSE)) -> 125000 | G93: =IF(Dashboard!$J$5=VLOOKUP(tblSalaries[[#This Row],[Currency]],Sheet3!$A$2:$B$31,2,FALSE),tblSalaries[[#This Row],[clean Salary (in local currency)]],(tblSalaries[[#This Row],[PPP Adjusted USD]]/VLOOKUP(Dashboard!$J$5,Sheet3!$B$2:$C$31,2,FALSE))) -> 125000 | H93: Project controls manager | I93: Manager | J93: Norway | K93: 4 to 6 hours a day | L93: 6
B94: ID0887 | C94: 125000 | D94: USD | E94: 125000 | F94: =(tblSalaries[[#This Row],[clean Salary (in local currency)]])*(VLOOKUP(tblSalaries[[#This Row],[Currency]],Sheet3!$A$2:$C$31,3,FALSE))*(VLOOKUP(tblSalaries[[#This Row],[Currency]],Sheet1!$N$4:$Q$186,4,FALSE)) -> 125000 | G94: =IF(Dashboard!$J$5=VLOOKUP(tblSalaries[[#This Row],[Currency]],Sheet3!$A$2:$B$31,2,FALSE),tblSalaries[[#This Row],[clean Salary (in local currency)]],(tblSalaries[[#This Row],[PPP Adjusted USD]]/VLOOKUP(Dashboard!$J$5,Sheet3!$B$2:$C$31,2,FALSE))) -> 125000 | H94: Commercial Director | I94: CXO or Top Mgmt. | J94: South Africa | K94: 4 to 6 hours a day | L94: 20
B95: ID0991 | C95: 125000 | D95: USD | E95: 125000 | F95: =(tblSalaries[[#This Row],[clean Salary (in local currency)]])*(VLOOKUP(tblSalaries[[#This Row],[Currency]],Sheet3!$A$2:$C$31,3,FALSE))*(VLOOKUP(tblSalaries[[#This Row],[Currency]],Sheet1!$N$4:$Q$186,4,FALSE)) -> 125000 | G95: =IF(Dashboard!$J$5=VLOOKUP(tblSalaries[[#This Row],[Currency]],Sheet3!$A$2:$B$31,2,FALSE),tblSalaries[[#This Row],[clean Salary (in local currency)]],(tblSalaries[[#This Row],[PPP Adjusted USD]]/VLOOKUP(Dashboard!$J$5,Sheet3!$B$2:$C$31,2,FALSE))) -> 125000 | H95: VP, Operational Analytics | I95: CXO or Top Mgmt. | J95: USA | K95: 4 to 6 hours a day | L95: 10
B96: ID1355 | C96: 125000 | D96: USD | E96: 125000 | F96: =(tblSalaries[[#This Row],[clean Salary (in local currency)]])*(VLOOKUP(tblSalaries[[#This Row],[Currency]],Sheet3!$A$2:$C$31,3,FALSE))*(VLOOKUP(tblSalaries[[#This Row],[Currency]],Sheet1!$N$4:$Q$186,4,FALSE)) -> 125000 | G96: =IF(Dashboard!$J$5=VLOOKUP(tblSalaries[[#This Row],[Currency]],Sheet3!$A$2:$B$31,2,FALSE),tblSalaries[[#This Row],[clean Salary (in local currency)]],(tblSalaries[[#This Row],[PPP Adjusted USD]]/VLOOKUP(Dashboard!$J$5,Sheet3!$B$2:$C$31,2,FALSE))) -> 125000 | H96: Vice President of Performance Management | I96: Manager | J96: USA | K96: 4 to 6 hours a day | L96: 2
B97: ID1364 | C97: 125000 | D97: USD | E97: 125000 | F97: =(tblSalaries[[#This Row],[clean Salary (in local currency)]])*(VLOOKUP(tblSalaries[[#This Row],[Currency]],Sheet3!$A$2:$C$31,3,FALSE))*(VLOOKUP(tblSalaries[[#This Row],[Currency]],Sheet1!$N$4:$Q$186,4,FALSE)) -> 125000 | G97: =IF(Dashboard!$J$5=VLOOKUP(tblSalaries[[#This Row],[Currency]],Sheet3!$A$2:$B$31,2,FALSE),tblSalaries[[#This Row],[clean Salary (in local currency)]],(tblSalaries[[#This Row],[PPP Adjusted USD]]/VLOOKUP(Dashboard!$J$5,Sheet3!$B$2:$C$31,2,FALSE))) -> 125000 | H97: Finance Manager | I97: Manager | J97: USA | K97: 4 to 6 hours a day | L97: 25
B98: ID1558 | C98: 125000 | D98: USD | E98: 125000 | F98: =(tblSalaries[[#This Row],[clean Salary (in local currency)]])*(VLOOKUP(tblSalaries[[#This Row],[Currency]],Sheet3!$A$2:$C$31,3,FALSE))*(VLOOKUP(tblSalaries[[#This Row],[Currency]],Sheet1!$N$4:$Q$186,4,FALSE)) -> 125000 | G98: =IF(Dashboard!$J$5=VLOOKUP(tblSalaries[[#This Row],[Currency]],Sheet3!$A$2:$B$31,2,FALSE),tblSalaries[[#This Row],[clean Salary (in local currency)]],(tblSalaries[[#This Row],[PPP Adjusted USD]]/VLOOKUP(Dashboard!$J$5,Sheet3!$B$2:$C$31,2,FALSE))) -> 125000 | H98: Consultant | I98: Consultant | J98: USA | K98: All the 8 hours baby, all the 8! | L98: 8
B99: ID1778 | C99: 125000 | D99: USD | E99: 125000 | F99: =(tblSalaries[[#This Row],[clean Salary (in local currency)]])*(VLOOKUP(tblSalaries[[#This Row],[Currency]],Sheet3!$A$2:$C$31,3,FALSE))*(VLOOKUP(tblSalaries[[#This Row],[Currency]],Sheet1!$N$4:$Q$186,4,FALSE)) -> 125000 | G99: =IF(Dashboard!$J$5=VLOOKUP(tblSalaries[[#This Row],[Currency]],Sheet3!$A$2:$B$31,2,FALSE),tblSalaries[[#This Row],[clean Salary (in local currency)]],(tblSalaries[[#This Row],[PPP Adjusted USD]]/VLOOKUP(Dashboard!$J$5,Sheet3!$B$2:$C$31,2,FALSE))) -> 125000 | H99: project manager | I99: Manager | J99: USA | K99: All the 8 hours baby, all the 8! | L99: 10
B100: ID1216 | C100: 2600000 | D100: INR | E100: 46300.58339 | F100: =(tblSalaries[[#This Row],[clean Salary (in local currency)]])*(VLOOKUP(tblSalaries[[#This Row],[Currency]],Sheet3!$A$2:$C$31,3,FALSE))*(VLOOKUP(tblSalaries[[#This Row],[Currency]],Sheet1!$N$4:$Q$186,4,FALSE)) -> 123138.6581 | G100: =IF(Dashboard!$J$5=VLOOKUP(tblSalaries[[#This Row],[Currency]],Sheet3!$A$2:$B$31,2,FALSE),tblSalaries[[#This Row],[clean Salary (in local currency)]],(tblSalaries[[#This Row],[PPP Adjusted USD]]/VLOOKUP(Dashboard!$J$5,Sheet3!$B$2:$C$31,2,FALSE))) -> 123138.6581 | H100: Practice Manager | I100: Manager | J100: India | K100: 4 to 6 hours a day | L100: 4
B101: ID0084 | C101: 120000 | D101: USD | E101: 120000 | F101: =(tblSalaries[[#This Row],[clean Salary (in local currency)]])*(VLOOKUP(tblSalaries[[#This Row],[Currency]],Sheet3!$A$2:$C$31,3,FALSE))*(VLOOKUP(tblSalaries[[#This Row],[Currency]],Sheet1!$N$4:$Q$186,4,FALSE)) -> 120000 | G101: =IF(Dashboard!$J$5=VLOOKUP(tblSalaries[[#This Row],[Currency]],Sheet3!$A$2:$B$31,2,FALSE),tblSalaries[[#This Row],[clean Salary (in local currency)]],(tblSalaries[[#This Row],[PPP Adjusted USD]]/VLOOKUP(Dashboard!$J$5,Sheet3!$B$2:$C$31,2,FALSE))) -> 120000 | H101: Manager, Forecasts & Budgets | I101: Manager | J101: USA | K101: 4 to 6 hours a day | L101: Data Not Avaliable
B102: ID0440 | C102: 120000 | D102: USD | E102: 120000 | F102: =(tblSalaries[[#This Row],[clean Salary (in local currency)]])*(VLOOKUP(tblSalaries[[#This Row],[Currency]],Sheet3!$A$2:$C$31,3,FALSE))*(VLOOKUP(tblSalaries[[#This Row],[Currency]],Sheet1!$N$4:$Q$186,4,FALSE)) -> 120000 | G102: =IF(Dashboard!$J$5=VLOOKUP(tblSalaries[[#This Row],[Currency]],Sheet3!$A$2:$B$31,2,FALSE),tblSalaries[[#This Row],[clean Salary (in local currency)]],(tblSalaries[[#This Row],[PPP Adjusted USD]]/VLOOKUP(Dashboard!$J$5,Sheet3!$B$2:$C$31,2,FALSE))) -> 120000 | H102: Director | I102: CXO or Top Mgmt. | J102: USA | K102: 1 or 2 hours a day | L102: Data Not Avaliable
B103: ID0535 | C103: 120000 | D103: USD | E103: 120000 | F103: =(tblSalaries[[#This Row],[clean Salary (in local currency)]])*(VLOOKUP(tblSalaries[[#This Row],[Currency]],Sheet3!$A$2:$C$31,3,FALSE))*(VLOOKUP(tblSalaries[[#This Row],[Currency]],Sheet1!$N$4:$Q$186,4,FALSE)) -> 120000 | G103: =IF(Dashboard!$J$5=VLOOKUP(tblSalaries[[#This Row],[Currency]],Sheet3!$A$2:$B$31,2,FALSE),tblSalaries[[#This Row],[clean Salary (in local currency)]],(tblSalaries[[#This Row],[PPP Adjusted USD]]/VLOOKUP(Dashboard!$J$5,Sheet3!$B$2:$C$31,2,FALSE))) -> 120000 | H103: manager | I103: Manager | J103: New Zealand | K103: 2 to 3 hours per day | L103: Data Not Avaliable
B104: ID0554 | C104: 120000 | D104: USD | E104: 120000 | F104: =(tblSalaries[[#This Row],[clean Salary (in local currency)]])*(VLOOKUP(tblSalaries[[#This Row],[Currency]],Sheet3!$A$2:$C$31,3,FALSE))*(VLOOKUP(tblSalaries[[#This Row],[Currency]],Sheet1!$N$4:$Q$186,4,FALSE)) -> 120000 | G104: =IF(Dashboard!$J$5=VLOOKUP(tblSalaries[[#This Row],[Currency]],Sheet3!$A$2:$B$31,2,FALSE),tblSalaries[[#This Row],[clean Salary (in local currency)]],(tblSalaries[[#This Row],[PPP Adjusted USD]]/VLOOKUP(Dashboard!$J$5,Sheet3!$B$2:$C$31,2,FALSE))) -> 120000 | H104: Director | I104: CXO or Top Mgmt. | J104: USA | K104: 4 to 6 hours a day | L104: Data Not Avaliable
B105: ID0592 | C105: 120000 | D105: USD | E105: 120000 | F105: =(tblSalaries[[#This Row],[clean Salary (in local currency)]])*(VLOOKUP(tblSalaries[[#This Row],[Currency]],Sheet3!$A$2:$C$31,3,FALSE))*(VLOOKUP(tblSalaries[[#This Row],[Currency]],Sheet1!$N$4:$Q$186,4,FALSE)) -> 120000 | G105: =IF(Dashboard!$J$5=VLOOKUP(tblSalaries[[#This Row],[Currency]],Sheet3!$A$2:$B$31,2,FALSE),tblSalaries[[#This Row],[clean Salary (in local currency)]],(tblSalaries[[#This Row],[PPP Adjusted USD]]/VLOOKUP(Dashboard!$J$5,Sheet3!$B$2:$C$31,2,FALSE))) -> 120000 | H105: Sr. Analyst | I105: Analyst | J105: USA | K105: All the 8 hours baby, all the 8! | L105: 7
B106: ID1262 | C106: 120000 | D106: USD | E106: 120000 | F106: =(tblSalaries[[#This Row],[clean Salary (in local currency)]])*(VLOOKUP(tblSalaries[[#This Row],[Currency]],Sheet3!$A$2:$C$31,3,FALSE))*(VLOOKUP(tblSalaries[[#This Row],[Currency]],Sheet1!$N$4:$Q$186,4,FALSE)) -> 120000 | G106: =IF(Dashboard!$J$5=VLOOKUP(tblSalaries[[#This Row],[Currency]],Sheet3!$A$2:$B$31,2,FALSE),tblSalaries[[#This Row],[clean Salary (in local currency)]],(tblSalaries[[#This Row],[PPP Adjusted USD]]/VLOOKUP(Dashboard!$J$5,Sheet3!$B$2:$C$31,2,FALSE))) -> 120000 | H106: Consultant - Process Improvement | I106: Consultant | J106: Singapore | K106: 1 or 2 hours a day | L106: 5
B107: ID1385 | C107: 120000 | D107: USD | E107: 120000 | F107: =(tblSalaries[[#This Row],[clean Salary (in local currency)]])*(VLOOKUP(tblSalaries[[#This Row],[Currency]],Sheet3!$A$2:$C$31,3,FALSE))*(VLOOKUP(tblSalaries[[#This Row],[Currency]],Sheet1!$N$4:$Q$186,4,FALSE)) -> 120000 | G107: =IF(Dashboard!$J$5=VLOOKUP(tblSalaries[[#This Row],[Currency]],Sheet3!$A$2:$B$31,2,FALSE),tblSalaries[[#This Row],[clean Salary (in local currency)]],(tblSalaries[[#This Row],[PPP Adjusted USD]]/VLOOKUP(Dashboard!$J$5,Sheet3!$B$2:$C$31,2,FALSE))) -> 120000 | H107: Finance Manager | I107: Manager | J107: USA | K107: 2 to 3 hours per day | L107: 5
B108: ID1417 | C108: 120000 | D108: USD | E108: 120000 | F108: =(tblSalaries[[#This Row],[clean Salary (in local currency)]])*(VLOOKUP(tblSalaries[[#This Row],[Currency]],Sheet3!$A$2:$C$31,3,FALSE))*(VLOOKUP(tblSalaries[[#This Row],[Currency]],Sheet1!$N$4:$Q$186,4,FALSE)) -> 120000 | G108: =IF(Dashboard!$J$5=VLOOKUP(tblSalaries[[#This Row],[Currency]],Sheet3!$A$2:$B$31,2,FALSE),tblSalaries[[#This Row],[clean Salary (in local currency)]],(tblSalaries[[#This Row],[PPP Adjusted USD]]/VLOOKUP(Dashboard!$J$5,Sheet3!$B$2:$C$31,2,FALSE))) -> 120000 | H108: Finance Manager | I108: Manager | J108: USA | K108: 2 to 3 hours per day | L108: 10
B109: ID1830 | C109: 120000 | D109: USD | E109: 120000 | F109: =(tblSalaries[[#This Row],[clean Salary (in local currency)]])*(VLOOKUP(tblSalaries[[#This Row],[Currency]],Sheet3!$A$2:$C$31,3,FALSE))*(VLOOKUP(tblSalaries[[#This Row],[Currency]],Sheet1!$N$4:$Q$186,4,FALSE)) -> 120000 | G109: =IF(Dashboard!$J$5=VLOOKUP(tblSalaries[[#This Row],[Currency]],Sheet3!$A$2:$B$31,2,FALSE),tblSalaries[[#This Row],[clean Salary (in local currency)]],(tblSalaries[[#This Row],[PPP Adjusted USD]]/VLOOKUP(Dashboard!$J$5,Sheet3!$B$2:$C$31,2,FALSE))) -> 120000 | H109: Financial Modeler | I109: Accountant | J109: USA | K109: 4 to 6 hours a day | L109: 20
B110: ID1081 | C110: 2500000 | D110: INR | E110: 44519.79172 | F110: =(tblSalaries[[#This Row],[clean Salary (in local currency)]])*(VLOOKUP(tblSalaries[[#This Row],[Currency]],Sheet3!$A$2:$C$31,3,FALSE))*(VLOOKUP(tblSalaries[[#This Row],[Currency]],Sheet1!$N$4:$Q$186,4,FALSE)) -> 118402.5559 | G110: =IF(Dashboard!$J$5=VLOOKUP(tblSalaries[[#This Row],[Currency]],Sheet3!$A$2:$B$31,2,FALSE),tblSalaries[[#This Row],[clean Salary (in local currency)]],(tblSalaries[[#This Row],[PPP Adjusted USD]]/VLOOKUP(Dashboard!$J$5,Sheet3!$B$2:$C$31,2,FALSE))) -> 118402.5559 | H110: Vice President | I110: CXO or Top Mgmt. | J110: India | K110: 4 to 6 hours a day | L110: 9
B111: ID1843 | C111: 118000 | D111: USD | E111: 118000 | F111: =(tblSalaries[[#This Row],[clean Salary (in local currency)]])*(VLOOKUP(tblSalaries[[#This Row],[Currency]],Sheet3!$A$2:$C$31,3,FALSE))*(VLOOKUP(tblSalaries[[#This Row],[Currency]],Sheet1!$N$4:$Q$186,4,FALSE)) -> 118000 | G111: =IF(Dashboard!$J$5=VLOOKUP(tblSalaries[[#This Row],[Currency]],Sheet3!$A$2:$B$31,2,FALSE),tblSalaries[[#This Row],[clean Salary (in local currency)]],(tblSalaries[[#This Row],[PPP Adjusted USD]]/VLOOKUP(Dashboard!$J$5,Sheet3!$B$2:$C$31,2,FALSE))) -> 118000 | H111: AVP | I111: CXO or Top Mgmt. | J111: USA | K111: 4 to 6 hours a day | L111: 6
B112: ID0909 | C112: 80000 | D112: GBP | E112: 126094.2618 | F112: =(tblSalaries[[#This Row],[clean Salary (in local currency)]])*(VLOOKUP(tblSalaries[[#This Row],[Currency]],Sheet3!$A$2:$C$31,3,FALSE))*(VLOOKUP(tblSalaries[[#This Row],[Currency]],Sheet1!$N$4:$Q$186,4,FALSE)) -> 117917.6964 | G112: =IF(Dashboard!$J$5=VLOOKUP(tblSalaries[[#This Row],[Currency]],Sheet3!$A$2:$B$31,2,FALSE),tblSalaries[[#This Row],[clean Salary (in local currency)]],(tblSalaries[[#This Row],[PPP Adjusted USD]]/VLOOKUP(Dashboard!$J$5,Sheet3!$B$2:$C$31,2,FALSE))) -> 117917.6964 | H112: Financial Modeller | I112: Accountant | J112: UK | K112: 4 to 6 hours a day | L112: 10
B113: ID1085 | C113: 80000 | D113: GBP | E113: 126094.2618 | F113: =(tblSalaries[[#This Row],[clean Salary (in local currency)]])*(VLOOKUP(tblSalaries[[#This Row],[Currency]],Sheet3!$A$2:$C$31,3,FALSE))*(VLOOKUP(tblSalaries[[#This Row],[Currency]],Sheet1!$N$4:$Q$186,4,FALSE)) -> 117917.6964 | G113: =IF(Dashboard!$J$5=VLOOKUP(tblSalaries[[#This Row],[Currency]],Sheet3!$A$2:$B$31,2,FALSE),tblSalaries[[#This Row],[clean Salary (in local currency)]],(tblSalaries[[#This Row],[PPP Adjusted USD]]/VLOOKUP(Dashboard!$J$5,Sheet3!$B$2:$C$31,2,FALSE))) -> 117917.6964 | H113: Manufacturing consultant | I113: Consultant | J113: UK | K113: 4 to 6 hours a day | L113: 10
B114: ID1170 | C114: 80000 | D114: GBP | E114: 126094.2618 | F114: =(tblSalaries[[#This Row],[clean Salary (in local currency)]])*(VLOOKUP(tblSalaries[[#This Row],[Currency]],Sheet3!$A$2:$C$31,3,FALSE))*(VLOOKUP(tblSalaries[[#This Row],[Currency]],Sheet1!$N$4:$Q$186,4,FALSE)) -> 117917.6964 | G114: =IF(Dashboard!$J$5=VLOOKUP(tblSalaries[[#This Row],[Currency]],Sheet3!$A$2:$B$31,2,FALSE),tblSalaries[[#This Row],[clean Salary (in local currency)]],(tblSalaries[[#This Row],[PPP Adjusted USD]]/VLOOKUP(Dashboard!$J$5,Sheet3!$B$2:$C$31,2,FALSE))) -> 117917.6964 | H114: Financial Controller | I114: Controller | J114: UK | K114: 4 to 6 hours a day | L114: 15
B115: ID1600 | C115: 80000 | D115: GBP | E115: 126094.2618 | F115: =(tblSalaries[[#This Row],[clean Salary (in local currency)]])*(VLOOKUP(tblSalaries[[#This Row],[Currency]],Sheet3!$A$2:$C$31,3,FALSE))*(VLOOKUP(tblSalaries[[#This Row],[Currency]],Sheet1!$N$4:$Q$186,4,FALSE)) -> 117917.6964 | G115: =IF(Dashboard!$J$5=VLOOKUP(tblSalaries[[#This Row],[Currency]],Sheet3!$A$2:$B$31,2,FALSE),tblSalaries[[#This Row],[clean Salary (in local currency)]],(tblSalaries[[#This Row],[PPP Adjusted USD]]/VLOOKUP(Dashboard!$J$5,Sheet3!$B$2:$C$31,2,FALSE))) -> 117917.6964 | H115: Owner of Business Improvement Consultancy | I115: Consultant | J115: UK | K115: 4 to 6 hours a day | L115: 12
B116: ID1103 | C116: 79000 | D116: GBP | E116: 124518.0835 | F116: =(tblSalaries[[#This Row],[clean Salary (in local currency)]])*(VLOOKUP(tblSalaries[[#This Row],[Currency]],Sheet3!$A$2:$C$31,3,FALSE))*(VLOOKUP(tblSalaries[[#This Row],[Currency]],Sheet1!$N$4:$Q$186,4,FALSE)) -> 116443.7252 | G116: =IF(Dashboard!$J$5=VLOOKUP(tblSalaries[[#This Row],[Currency]],Sheet3!$A$2:$B$31,2,FALSE),tblSalaries[[#This Row],[clean Salary (in local currency)]],(tblSalaries[[#This Row],[PPP Adjusted USD]]/VLOOKUP(Dashboard!$J$5,Sheet3!$B$2:$C$31,2,FALSE))) -> 116443.7252 | H116: Market Analyst | I116: Analyst | J116: UK | K116: 2 to 3 hours per day | L116: 14
B117: ID0418 | C117: 115000 | D117: USD | E117: 115000 | F117: =(tblSalaries[[#This Row],[clean Salary (in local currency)]])*(VLOOKUP(tblSalaries[[#This Row],[Currency]],Sheet3!$A$2:$C$31,3,FALSE))*(VLOOKUP(tblSalaries[[#This Row],[Currency]],Sheet1!$N$4:$Q$186,4,FALSE)) -> 115000 | G117: =IF(Dashboard!$J$5=VLOOKUP(tblSalaries[[#This Row],[Currency]],Sheet3!$A$2:$B$31,2,FALSE),tblSalaries[[#This Row],[clean Salary (in local currency)]],(tblSalaries[[#This Row],[PPP Adjusted USD]]/VLOOKUP(Dashboard!$J$5,Sheet3!$B$2:$C$31,2,FALSE))) -> 115000 | H117: Consultant | I117: Consultant | J117: USA | K117: 2 to 3 hours per day | L117: Data Not Avaliable
B118: ID0586 | C118: 115000 | D118: USD | E118: 115000 | F118: =(tblSalaries[[#This Row],[clean Salary (in local currency)]])*(VLOOKUP(tblSalaries[[#This Row],[Currency]],Sheet3!$A$2:$C$31,3,FALSE))*(VLOOKUP(tblSalaries[[#This Row],[Currency]],Sheet1!$N$4:$Q$186,4,FALSE)) -> 115000 | G118: =IF(Dashboard!$J$5=VLOOKUP(tblSalaries[[#This Row],[Currency]],Sheet3!$A$2:$B$31,2,FALSE),tblSalaries[[#This Row],[clean Salary (in local currency)]],(tblSalaries[[#This Row],[PPP Adjusted USD]]/VLOOKUP(Dashboard!$J$5,Sheet3!$B$2:$C$31,2,FALSE))) -> 115000 | H118: Mgr Op Excellence | I118: Manager | J118: USA | K118: 4 to 6 hours a day | L118: 15
B119: ID0873 | C119: 115000 | D119: USD | E119: 115000 | F119: =(tblSalaries[[#This Row],[clean Salary (in local currency)]])*(VLOOKUP(tblSalaries[[#This Row],[Currency]],Sheet3!$A$2:$C$31,3,FALSE))*(VLOOKUP(tblSalaries[[#This Row],[Currency]],Sheet1!$N$4:$Q$186,4,FALSE)) -> 115000 | G119: =IF(Dashboard!$J$5=VLOOKUP(tblSalaries[[#This Row],[Currency]],Sheet3!$A$2:$B$31,2,FALSE),tblSalaries[[#This Row],[clean Salary (in local currency)]],(tblSalaries[[#This Row],[PPP Adjusted USD]]/VLOOKUP(Dashboard!$J$5,Sheet3!$B$2:$C$31,2,FALSE))) -> 115000 | H119: Principal Financial Analyst | I119: Analyst | J119: USA | K119: 4 to 6 hours a day | L119: 10
B120: ID1922 | C120: 115000 | D120: USD | E120: 115000 | F120: =(tblSalaries[[#This Row],[clean Salary (in local currency)]])*(VLOOKUP(tblSalaries[[#This Row],[Currency]],Sheet3!$A$2:$C$31,3,FALSE))*(VLOOKUP(tblSalaries[[#This Row],[Currency]],Sheet1!$N$4:$Q$186,4,FALSE)) -> 115000 | G120: =IF(Dashboard!$J$5=VLOOKUP(tblSalaries[[#This Row],[Currency]],Sheet3!$A$2:$B$31,2,FALSE),tblSalaries[[#This Row],[clean Salary (in local currency)]],(tblSalaries[[#This Row],[PPP Adjusted USD]]/VLOOKUP(Dashboard!$J$5,Sheet3!$B$2:$C$31,2,FALSE))) -> 115000 | H120: Business Analyst | I120: Analyst | J120: USA | K120: All the 8 hours baby, all the 8! | L120: 15
B121: ID0514 | C121: 78000 | D121: GBP | E121: 122941.9052 | F121: =(tblSalaries[[#This Row],[clean Salary (in local currency)]])*(VLOOKUP(tblSalaries[[#This Row],[Currency]],Sheet3!$A$2:$C$31,3,FALSE))*(VLOOKUP(tblSalaries[[#This Row],[Currency]],Sheet1!$N$4:$Q$186,4,FALSE)) -> 114969.754 | G121: =IF(Dashboard!$J$5=VLOOKUP(tblSalaries[[#This Row],[Currency]],Sheet3!$A$2:$B$31,2,FALSE),tblSalaries[[#This Row],[clean Salary (in local currency)]],(tblSalaries[[#This Row],[PPP Adjusted USD]]/VLOOKUP(Dashboard!$J$5,Sheet3!$B$2:$C$31,2,FALSE))) -> 114969.754 | H121: Associate | I121: Analyst | J121: UK | K121: 1 or 2 hours a day | L121: Data Not Avaliable
B122: ID0232 | C122: 114000 | D122: USD | E122: 114000 | F122: =(tblSalaries[[#This Row],[clean Salary (in local currency)]])*(VLOOKUP(tblSalaries[[#This Row],[Currency]],Sheet3!$A$2:$C$31,3,FALSE))*(VLOOKUP(tblSalaries[[#This Row],[Currency]],Sheet1!$N$4:$Q$186,4,FALSE)) -> 114000 | G122: =IF(Dashboard!$J$5=VLOOKUP(tblSalaries[[#This Row],[Currency]],Sheet3!$A$2:$B$31,2,FALSE),tblSalaries[[#This Row],[clean Salary (in local currency)]],(tblSalaries[[#This Row],[PPP Adjusted USD]]/VLOOKUP(Dashboard!$J$5,Sheet3!$B$2:$C$31,2,FALSE))) -> 114000 | H122: Director | I122: CXO or Top Mgmt. | J122: USA | K122: 2 to 3 hours per day | L122: Data Not Avaliable
B123: ID1135 | C123: 2400000 | D123: INR | E123: 42739.00005 | F123: =(tblSalaries[[#This Row],[clean Salary (in local currency)]])*(VLOOKUP(tblSalaries[[#This Row],[Currency]],Sheet3!$A$2:$C$31,3,FALSE))*(VLOOKUP(tblSalaries[[#This Row],[Currency]],Sheet1!$N$4:$Q$186,4,FALSE)) -> 113666.4536 | G123: =IF(Dashboard!$J$5=VLOOKUP(tblSalaries[[#This Row],[Currency]],Sheet3!$A$2:$B$31,2,FALSE),tblSalaries[[#This Row],[clean Salary (in local currency)]],(tblSalaries[[#This Row],[PPP Adjusted USD]]/VLOOKUP(Dashboard!$J$5,Sheet3!$B$2:$C$31,2,FALSE))) -> 113666.4536 | H123: GM Finance | I123: Manager | J123: India | K123: All the 8 hours baby, all the 8! | L123: 10
B124: ID1865 | C124: 112000 | D124: USD | E124: 112000 | F124: =(tblSalaries[[#This Row],[clean Salary (in local currency)]])*(VLOOKUP(tblSalaries[[#This Row],[Currency]],Sheet3!$A$2:$C$31,3,FALSE))*(VLOOKUP(tblSalaries[[#This Row],[Currency]],Sheet1!$N$4:$Q$186,4,FALSE)) -> 112000 | G124: =IF(Dashboard!$J$5=VLOOKUP(tblSalaries[[#This Row],[Currency]],Sheet3!$A$2:$B$31,2,FALSE),tblSalaries[[#This Row],[clean Salary (in local currency)]],(tblSalaries[[#This Row],[PPP Adjusted USD]]/VLOOKUP(Dashboard!$J$5,Sheet3!$B$2:$C$31,2,FALSE))) -> 112000 | H124: manager | I124: Manager | J124: USA | K124: 2 to 3 hours per day | L124: 8
B125: ID0181 | C125: 111680 | D125: USD | E125: 111680 | F125: =(tblSalaries[[#This Row],[clean Salary (in local currency)]])*(VLOOKUP(tblSalaries[[#This Row],[Currency]],Sheet3!$A$2:$C$31,3,FALSE))*(VLOOKUP(tblSalaries[[#This Row],[Currency]],Sheet1!$N$4:$Q$186,4,FALSE)) -> 111680 | G125: =IF(Dashboard!$J$5=VLOOKUP(tblSalaries[[#This Row],[Currency]],Sheet3!$A$2:$B$31,2,FALSE),tblSalaries[[#This Row],[clean Salary (in local currency)]],(tblSalaries[[#This Row],[PPP Adjusted USD]]/VLOOKUP(Dashboard!$J$5,Sheet3!$B$2:$C$31,2,FALSE))) -> 111680 | H125: Director of Analytics | I125: Analyst | J125: USA | K125: 2 to 3 hours per day | L125: Data Not Avaliable
B126: ID0553 | C126: 111000 | D126: USD | E126: 111000 | F126: =(tblSalaries[[#This Row],[clean Salary (in local currency)]])*(VLOOKUP(tblSalaries[[#This Row],[Currency]],Sheet3!$A$2:$C$31,3,FALSE))*(VLOOKUP(tblSalaries[[#This Row],[Currency]],Sheet1!$N$4:$Q$186,4,FALSE)) -> 111000 | G126: =IF(Dashboard!$J$5=VLOOKUP(tblSalaries[[#This Row],[Currency]],Sheet3!$A$2:$B$31,2,FALSE),tblSalaries[[#This Row],[clean Salary (in local currency)]],(tblSalaries[[#This Row],[PPP Adjusted USD]]/VLOOKUP(Dashboard!$J$5,Sheet3!$B$2:$C$31,2,FALSE))) -> 111000 | H126: Senior Financial Analyst | I126: Analyst | J126: Japan | K126: All the 8 hours baby, all the 8! | L126: Data Not Avaliable
B127: ID1434 | C127: 111000 | D127: USD | E127: 111000 | F127: =(tblSalaries[[#This Row],[clean Salary (in local currency)]])*(VLOOKUP(tblSalaries[[#This Row],[Currency]],Sheet3!$A$2:$C$31,3,FALSE))*(VLOOKUP(tblSalaries[[#This Row],[Currency]],Sheet1!$N$4:$Q$186,4,FALSE)) -> 111000 | G127: =IF(Dashboard!$J$5=VLOOKUP(tblSalaries[[#This Row],[Currency]],Sheet3!$A$2:$B$31,2,FALSE),tblSalaries[[#This Row],[clean Salary (in local currency)]],(tblSalaries[[#This Row],[PPP Adjusted USD]]/VLOOKUP(Dashboard!$J$5,Sheet3!$B$2:$C$31,2,FALSE))) -> 111000 | H127: Project Manager - Finance | I127: Manager | J127: USA | K127: 2 to 3 hours per day | L127: 10
B128: ID1880 | C128: 2342342 | D128: INR | E128: 41712.23119 | F128: =(tblSalaries[[#This Row],[clean Salary (in local currency)]])*(VLOOKUP(tblSalaries[[#This Row],[Currency]],Sheet3!$A$2:$C$31,3,FALSE))*(VLOOKUP(tblSalaries[[#This Row],[Currency]],Sheet1!$N$4:$Q$186,4,FALSE)) -> 110935.7118 | G128: =IF(Dashboard!$J$5=VLOOKUP(tblSalaries[[#This Row],[Currency]],Sheet3!$A$2:$B$31,2,FALSE),tblSalaries[[#This Row],[clean Salary (in local currency)]],(tblSalaries[[#This Row],[PPP Adjusted USD]]/VLOOKUP(Dashboard!$J$5,Sheet3!$B$2:$C$31,2,FALSE))) -> 110935.7118 | H128: 3r23regedf | I128: Misc. | J128: India | K128: 2 to 3 hours per day | L128: 12
B129: ID1115 | C129: 75000 | D129: GBP | E129: 118213.3704 | F129: =(tblSalaries[[#This Row],[clean Salary (in local currency)]])*(VLOOKUP(tblSalaries[[#This Row],[Currency]],Sheet3!$A$2:$C$31,3,FALSE))*(VLOOKUP(tblSalaries[[#This Row],[Currency]],Sheet1!$N$4:$Q$186,4,FALSE)) -> 110547.8404 | G129: =IF(Dashboard!$J$5=VLOOKUP(tblSalaries[[#This Row],[Currency]],Sheet3!$A$2:$B$31,2,FALSE),tblSalaries[[#This Row],[clean Salary (in local currency)]],(tblSalaries[[#This Row],[PPP Adjusted USD]]/VLOOKUP(Dashboard!$J$5,Sheet3!$B$2:$C$31,2,FALSE))) -> 110547.8404 | H129: Management Consultant | I129: Manager | J129: UK | K129: 2 to 3 hours per day | L129: 10
B130: ID1240 | C130: 75000 | D130: GBP | E130: 118213.3704 | F130: =(tblSalaries[[#This Row],[clean Salary (in local currency)]])*(VLOOKUP(tblSalaries[[#This Row],[Currency]],Sheet3!$A$2:$C$31,3,FALSE))*(VLOOKUP(tblSalaries[[#This Row],[Currency]],Sheet1!$N$4:$Q$186,4,FALSE)) -> 110547.8404 | G130: =IF(Dashboard!$J$5=VLOOKUP(tblSalaries[[#This Row],[Currency]],Sheet3!$A$2:$B$31,2,FALSE),tblSalaries[[#This Row],[clean Salary (in local currency)]],(tblSalaries[[#This Row],[PPP Adjusted USD]]/VLOOKUP(Dashboard!$J$5,Sheet3!$B$2:$C$31,2,FALSE))) -> 110547.8404 | H130: Finance Manager | I130: Manager | J130: UK | K130: 4 to 6 hours a day | L130: 20
B131: ID1137 | C131: 100000 | D131: EUR | E131: 127039.9439 | F131: =(tblSalaries[[#This Row],[clean Salary (in local currency)]])*(VLOOKUP(tblSalaries[[#This Row],[Currency]],Sheet3!$A$2:$C$31,3,FALSE))*(VLOOKUP(tblSalaries[[#This Row],[Currency]],Sheet1!$N$4:$Q$186,4,FALSE)) -> 110065.2886 | G131: =IF(Dashboard!$J$5=VLOOKUP(tblSalaries[[#This Row],[Currency]],Sheet3!$A$2:$B$31,2,FALSE),tblSalaries[[#This Row],[clean Salary (in local currency)]],(tblSalaries[[#This Row],[PPP Adjusted USD]]/VLOOKUP(Dashboard!$J$5,Sheet3!$B$2:$C$31,2,FALSE))) -> 110065.2886 | H131: Finance Director | I131: CXO or Top Mgmt. | J131: Spain | K131: 1 or 2 hours a day | L131: 20
B132: ID0087 | C132: 110000 | D132: USD | E132: 110000 | F132: =(tblSalaries[[#This Row],[clean Salary (in local currency)]])*(VLOOKUP(tblSalaries[[#This Row],[Currency]],Sheet3!$A$2:$C$31,3,FALSE))*(VLOOKUP(tblSalaries[[#This Row],[Currency]],Sheet1!$N$4:$Q$186,4,FALSE)) -> 110000 | G132: =IF(Dashboard!$J$5=VLOOKUP(tblSalaries[[#This Row],[Currency]],Sheet3!$A$2:$B$31,2,FALSE),tblSalaries[[#This Row],[clean Salary (in local currency)]],(tblSalaries[[#This Row],[PPP Adjusted USD]]/VLOOKUP(Dashboard!$J$5,Sheet3!$B$2:$C$31,2,FALSE))) -> 110000 | H132: Senior Scheduling Engineer | I132: Engineer | J132: USA | K132: 2 to 3 hours per day | L132: Data Not Avaliable
B133: ID0484 | C133: 110000 | D133: USD | E133: 110000 | F133: =(tblSalaries[[#This Row],[clean Salary (in local currency)]])*(VLOOKUP(tblSalaries[[#This Row],[Currency]],Sheet3!$A$2:$C$31,3,FALSE))*(VLOOKUP(tblSalaries[[#This Row],[Currency]],Sheet1!$N$4:$Q$186,4,FALSE)) -> 110000 | G133: =IF(Dashboard!$J$5=VLOOKUP(tblSalaries[[#This Row],[Currency]],Sheet3!$A$2:$B$31,2,FALSE),tblSalaries[[#This Row],[clean Salary (in local currency)]],(tblSalaries[[#This Row],[PPP Adjusted USD]]/VLOOKUP(Dashboard!$J$5,Sheet3!$B$2:$C$31,2,FALSE))) -> 110000 | H133: Senior consultant accounting | I133: Accountant | J133: Norway | K133: 2 to 3 hours per day | L133: Data Not Avaliable
B134: ID1361 | C134: 110000 | D134: USD | E134: 110000 | F134: =(tblSalaries[[#This Row],[clean Salary (in local currency)]])*(VLOOKUP(tblSalaries[[#This Row],[Currency]],Sheet3!$A$2:$C$31,3,FALSE))*(VLOOKUP(tblSalaries[[#This Row],[Currency]],Sheet1!$N$4:$Q$186,4,FALSE)) -> 110000 | G134: =IF(Dashboard!$J$5=VLOOKUP(tblSalaries[[#This Row],[Currency]],Sheet3!$A$2:$B$31,2,FALSE),tblSalaries[[#This Row],[clean Salary (in local currency)]],(tblSalaries[[#This Row],[PPP Adjusted USD]]/VLOOKUP(Dashboard!$J$5,Sheet3!$B$2:$C$31,2,FALSE))) -> 110000 | H134: Business Analytics Associate | I134: Analyst | J134: USA | K134: 1 or 2 hours a day | L134: 10
B135: ID1556 | C135: 110000 | D135: USD | E135: 110000 | F135: =(tblSalaries[[#This Row],[clean Salary (in local currency)]])*(VLOOKUP(tblSalaries[[#This Row],[Currency]],Sheet3!$A$2:$C$31,3,FALSE))*(VLOOKUP(tblSalaries[[#This Row],[Currency]],Sheet1!$N$4:$Q$186,4,FALSE)) -> 110000 | G135: =IF(Dashboard!$J$5=VLOOKUP(tblSalaries[[#This Row],[Currency]],Sheet3!$A$2:$B$31,2,FALSE),tblSalaries[[#This Row],[clean Salary (in local currency)]],(tblSalaries[[#This Row],[PPP Adjusted USD]]/VLOOKUP(Dashboard!$J$5,Sheet3!$B$2:$C$31,2,FALSE))) -> 110000 | H135: Business Controller | I135: Controller | J135: Norway | K135: All the 8 hours baby, all the 8! | L135: 5
B136: ID1919 | C136: 110000 | D136: USD | E136: 110000 | F136: =(tblSalaries[[#This Row],[clean Salary (in local currency)]])*(VLOOKUP(tblSalaries[[#This Row],[Currency]],Sheet3!$A$2:$C$31,3,FALSE))*(VLOOKUP(tblSalaries[[#This Row],[Currency]],Sheet1!$N$4:$Q$186,4,FALSE)) -> 110000 | G136: =IF(Dashboard!$J$5=VLOOKUP(tblSalaries[[#This Row],[Currency]],Sheet3!$A$2:$B$31,2,FALSE),tblSalaries[[#This Row],[clean Salary (in local currency)]],(tblSalaries[[#This Row],[PPP Adjusted USD]]/VLOOKUP(Dashboard!$J$5,Sheet3!$B$2:$C$31,2,FALSE))) -> 110000 | H136: Vice President - Finance | I136: CXO or Top Mgmt. | J136: USA | K136: 4 to 6 hours a day | L136: 10
B137: ID0746 | C137: 74000 | D137: GBP | E137: 116637.1921 | F137: =(tblSalaries[[#This Row],[clean Salary (in local currency)]])*(VLOOKUP(tblSalaries[[#This Row],[Currency]],Sheet3!$A$2:$C$31,3,FALSE))*(VLOOKUP(tblSalaries[[#This Row],[Currency]],Sheet1!$N$4:$Q$186,4,FALSE)) -> 109073.8692 | G137: =IF(Dashboard!$J$5=VLOOKUP(tblSalaries[[#This Row],[Currency]],Sheet3!$A$2:$B$31,2,FALSE),tblSalaries[[#This Row],[clean Salary (in local currency)]],(tblSalaries[[#This Row],[PPP Adjusted USD]]/VLOOKUP(Dashboard!$J$5,Sheet3!$B$2:$C$31,2,FALSE))) -> 109073.8692 | H137: Corporate Finance Manager | I137: Manager | J137: UK | K137: 4 to 6 hours a day | L137: 5
B138: ID1484 | C138: 109000 | D138: USD | E138: 109000 | F138: =(tblSalaries[[#This Row],[clean Salary (in local currency)]])*(VLOOKUP(tblSalaries[[#This Row],[Currency]],Sheet3!$A$2:$C$31,3,FALSE))*(VLOOKUP(tblSalaries[[#This Row],[Currency]],Sheet1!$N$4:$Q$186,4,FALSE)) -> 109000 | G138: =IF(Dashboard!$J$5=VLOOKUP(tblSalaries[[#This Row],[Currency]],Sheet3!$A$2:$B$31,2,FALSE),tblSalaries[[#This Row],[clean Salary (in local currency)]],(tblSalaries[[#This Row],[PPP Adjusted USD]]/VLOOKUP(Dashboard!$J$5,Sheet3!$B$2:$C$31,2,FALSE))) -> 109000 | H138: Mgr Technology | I138: Manager | J138: USA | K138: 4 to 6 hours a day | L138: 15
B139: ID0124 | C139: 2300000 | D139: INR | E139: 40958.20838 | F139: =(tblSalaries[[#This Row],[clean Salary (in local currency)]])*(VLOOKUP(tblSalaries[[#This Row],[Currency]],Sheet3!$A$2:$C$31,3,FALSE))*(VLOOKUP(tblSalaries[[#This Row],[Currency]],Sheet1!$N$4:$Q$186,4,FALSE)) -> 108930.3514 | G139: =IF(Dashboard!$J$5=VLOOKUP(tblSalaries[[#This Row],[Currency]],Sheet3!$A$2:$B$31,2,FALSE),tblSalaries[[#This Row],[clean Salary (in local currency)]],(tblSalaries[[#This Row],[PPP Adjusted USD]]/VLOOKUP(Dashboard!$J$5,Sheet3!$B$2:$C$31,2,FALSE))) -> 108930.3514 | H139: Analytics lead | I139: Analyst | J139: India | K139: 1 or 2 hours a day | L139: Data Not Avaliable
B140: ID0712 | C140: 2300000 | D140: INR | E140: 40958.20838 | F140: =(tblSalaries[[#This Row],[clean Salary (in local currency)]])*(VLOOKUP(tblSalaries[[#This Row],[Currency]],Sheet3!$A$2:$C$31,3,FALSE))*(VLOOKUP(tblSalaries[[#This Row],[Currency]],Sheet1!$N$4:$Q$186,4,FALSE)) -> 108930.3514 | G140: =IF(Dashboard!$J$5=VLOOKUP(tblSalaries[[#This Row],[Currency]],Sheet3!$A$2:$B$31,2,FALSE),tblSalaries[[#This Row],[clean Salary (in local currency)]],(tblSalaries[[#This Row],[PPP Adjusted USD]]/VLOOKUP(Dashboard!$J$5,Sheet3!$B$2:$C$31,2,FALSE))) -> 108930.3514 | H140: analyst | I140: Analyst | J140: India | K140: All the 8 hours baby, all the 8! | L140: 5
B141: ID0895 | C141: 2300000 | D141: INR | E141: 40958.20838 | F141: =(tblSalaries[[#This Row],[clean Salary (in local currency)]])*(VLOOKUP(tblSalaries[[#This Row],[Currency]],Sheet3!$A$2:$C$31,3,FALSE))*(VLOOKUP(tblSalaries[[#This Row],[Currency]],Sheet1!$N$4:$Q$186,4,FALSE)) -> 108930.3514 | G141: =IF(Dashboard!$J$5=VLOOKUP(tblSalaries[[#This Row],[Currency]],Sheet3!$A$2:$B$31,2,FALSE),tblSalaries[[#This Row],[clean Salary (in local currency)]],(tblSalaries[[#This Row],[PPP Adjusted USD]]/VLOOKUP(Dashboard!$J$5,Sheet3!$B$2:$C$31,2,FALSE))) -> 108930.3514 | H141: Manager - Business Planning & Reporting | I141: Manager | J141: India | K141: 2 to 3 hours per day | L141: 8
B142: ID1002 | C142: 180000 | D142: NZD | E142: 143565.8568 | F142: =(tblSalaries[[#This Row],[clean Salary (in local currency)]])*(VLOOKUP(tblSalaries[[#This Row],[Currency]],Sheet3!$A$2:$C$31,3,FALSE))*(VLOOKUP(tblSalaries[[#This Row],[Currency]],Sheet1!$N$4:$Q$186,4,FALSE)) -> 108388.2259 | G142: =IF(Dashboard!$J$5=VLOOKUP(tblSalaries[[#This Row],[Currency]],Sheet3!$A$2:$B$31,2,FALSE),tblSalaries[[#This Row],[clean Salary (in local currency)]],(tblSalaries[[#This Row],[PPP Adjusted USD]]/VLOOKUP(Dashboard!$J$5,Sheet3!$B$2:$C$31,2,FALSE))) -> 108388.2259 | H142: Commercial Manager | I142: Manager | J142: New Zealand | K142: 4 to 6 hours a day | L142: 25
B143: ID0209 | C143: 108160 | D143: USD | E143: 108160 | F143: =(tblSalaries[[#This Row],[clean Salary (in local currency)]])*(VLOOKUP(tblSalaries[[#This Row],[Currency]],Sheet3!$A$2:$C$31,3,FALSE))*(VLOOKUP(tblSalaries[[#This Row],[Currency]],Sheet1!$N$4:$Q$186,4,FALSE)) -> 108160 | G143: =IF(Dashboard!$J$5=VLOOKUP(tblSalaries[[#This Row],[Currency]],Sheet3!$A$2:$B$31,2,FALSE),tblSalaries[[#This Row],[clean Salary (in local currency)]],(tblSalaries[[#This Row],[PPP Adjusted USD]]/VLOOKUP(Dashboard!$J$5,Sheet3!$B$2:$C$31,2,FALSE))) -> 108160 | H143: Sr. Financial Analyst | I143: Analyst | J143: USA | K143: 4 to 6 hours a day | L143: Data Not Avaliable
B144: ID0331 | C144: 108000 | D144: USD | E144: 108000 | F144: =(tblSalaries[[#This Row],[clean Salary (in local currency)]])*(VLOOKUP(tblSalaries[[#This Row],[Currency]],Sheet3!$A$2:$C$31,3,FALSE))*(VLOOKUP(tblSalaries[[#This Row],[Currency]],Sheet1!$N$4:$Q$186,4,FALSE)) -> 108000 | G144: =IF(Dashboard!$J$5=VLOOKUP(tblSalaries[[#This Row],[Currency]],Sheet3!$A$2:$B$31,2,FALSE),tblSalaries[[#This Row],[clean Salary (in local currency)]],(tblSalaries[[#This Row],[PPP Adjusted USD]]/VLOOKUP(Dashboard!$J$5,Sheet3!$B$2:$C$31,2,FALSE))) -> 108000 | H144: Database Architect | I144: Manager | J144: USA | K144: 2 to 3 hours per day | L144: Data Not Avaliable
B145: ID0496 | C145: 108000 | D145: USD | E145: 108000 | F145: =(tblSalaries[[#This Row],[clean Salary (in local currency)]])*(VLOOKUP(tblSalaries[[#This Row],[Currency]],Sheet3!$A$2:$C$31,3,FALSE))*(VLOOKUP(tblSalaries[[#This Row],[Currency]],Sheet1!$N$4:$Q$186,4,FALSE)) -> 108000 | G145: =IF(Dashboard!$J$5=VLOOKUP(tblSalaries[[#This Row],[Currency]],Sheet3!$A$2:$B$31,2,FALSE),tblSalaries[[#This Row],[clean Salary (in local currency)]],(tblSalaries[[#This Row],[PPP Adjusted USD]]/VLOOKUP(Dashboard!$J$5,Sheet3!$B$2:$C$31,2,FALSE))) -> 108000 | H145: Manager | I145: Manager | J145: Norway | K145: 4 to 6 hours a day | L145: Data Not Avaliable
B146: ID0596 | C146: 108000 | D146: USD | E146: 108000 | F146: =(tblSalaries[[#This Row],[clean Salary (in local currency)]])*(VLOOKUP(tblSalaries[[#This Row],[Currency]],Sheet3!$A$2:$C$31,3,FALSE))*(VLOOKUP(tblSalaries[[#This Row],[Currency]],Sheet1!$N$4:$Q$186,4,FALSE)) -> 108000 | G146: =IF(Dashboard!$J$5=VLOOKUP(tblSalaries[[#This Row],[Currency]],Sheet3!$A$2:$B$31,2,FALSE),tblSalaries[[#This Row],[clean Salary (in local currency)]],(tblSalaries[[#This Row],[PPP Adjusted USD]]/VLOOKUP(Dashboard!$J$5,Sheet3!$B$2:$C$31,2,FALSE))) -> 108000 | H146: Technology consultant | I146: Consultant | J146: USA | K146: 2 to 3 hours per day | L146: 7
B147: ID0538 | C147: 73000 | D147: GBP | E147: 115061.0139 | F147: =(tblSalaries[[#This Row],[clean Salary (in local currency)]])*(VLOOKUP(tblSalaries[[#This Row],[Currency]],Sheet3!$A$2:$C$31,3,FALSE))*(VLOOKUP(tblSalaries[[#This Row],[Currency]],Sheet1!$N$4:$Q$186,4,FALSE)) -> 107599.898 | G147: =IF(Dashboard!$J$5=VLOOKUP(tblSalaries[[#This Row],[Currency]],Sheet3!$A$2:$B$31,2,FALSE),tblSalaries[[#This Row],[clean Salary (in local currency)]],(tblSalaries[[#This Row],[PPP Adjusted USD]]/VLOOKUP(Dashboard!$J$5,Sheet3!$B$2:$C$31,2,FALSE))) -> 107599.898 | H147: Finance Manager | I147: Manager | J147: UK | K147: 4 to 6 hours a day | L147: Data Not Avaliable
B148: ID1739 | C148: 73000 | D148: GBP | E148: 115061.0139 | F148: =(tblSalaries[[#This Row],[clean Salary (in local currency)]])*(VLOOKUP(tblSalaries[[#This Row],[Currency]],Sheet3!$A$2:$C$31,3,FALSE))*(VLOOKUP(tblSalaries[[#This Row],[Currency]],Sheet1!$N$4:$Q$186,4,FALSE)) -> 107599.898 | G148: =IF(Dashboard!$J$5=VLOOKUP(tblSalaries[[#This Row],[Currency]],Sheet3!$A$2:$B$31,2,FALSE),tblSalaries[[#This Row],[clean Salary (in local currency)]],(tblSalaries[[#This Row],[PPP Adjusted USD]]/VLOOKUP(Dashboard!$J$5,Sheet3!$B$2:$C$31,2,FALSE))) -> 107599.898 | H148: Financial Controller | I148: Controller | J148: UK | K148: 4 to 6 hours a day | L148: 8
B149: ID0017 | C149: 107000 | D149: USD | E149: 107000 | F149: =(tblSalaries[[#This Row],[clean Salary (in local currency)]])*(VLOOKUP(tblSalaries[[#This Row],[Currency]],Sheet3!$A$2:$C$31,3,FALSE))*(VLOOKUP(tblSalaries[[#This Row],[Currency]],Sheet1!$N$4:$Q$186,4,FALSE)) -> 107000 | G149: =IF(Dashboard!$J$5=VLOOKUP(tblSalaries[[#This Row],[Currency]],Sheet3!$A$2:$B$31,2,FALSE),tblSalaries[[#This Row],[clean Salary (in local currency)]],(tblSalaries[[#This Row],[PPP Adjusted USD]]/VLOOKUP(Dashboard!$J$5,Sheet3!$B$2:$C$31,2,FALSE))) -> 107000 | H149: Business Development | I149: Manager | J149: Switzerland | K149: 4 to 6 hours a day | L149: Data Not Avaliable
B150: ID1266 | C150: 107000 | D150: USD | E150: 107000 | F150: =(tblSalaries[[#This Row],[clean Salary (in local currency)]])*(VLOOKUP(tblSalaries[[#This Row],[Currency]],Sheet3!$A$2:$C$31,3,FALSE))*(VLOOKUP(tblSalaries[[#This Row],[Currency]],Sheet1!$N$4:$Q$186,4,FALSE)) -> 107000 | G150: =IF(Dashboard!$J$5=VLOOKUP(tblSalaries[[#This Row],[Currency]],Sheet3!$A$2:$B$31,2,FALSE),tblSalaries[[#This Row],[clean Salary (in local currency)]],(tblSalaries[[#This Row],[PPP Adjusted USD]]/VLOOKUP(Dashboard!$J$5,Sheet3!$B$2:$C$31,2,FALSE))) -> 107000 | H150: Certified Public Accountant | I150: Accountant | J150: USA | K150: 4 to 6 hours a day | L150: 12
B151: ID1418 | C151: 107000 | D151: USD | E151: 107000 | F151: =(tblSalaries[[#This Row],[clean Salary (in local currency)]])*(VLOOKUP(tblSalaries[[#This Row],[Currency]],Sheet3!$A$2:$C$31,3,FALSE))*(VLOOKUP(tblSalaries[[#This Row],[Currency]],Sheet1!$N$4:$Q$186,4,FALSE)) -> 107000 | G151: =IF(Dashboard!$J$5=VLOOKUP(tblSalaries[[#This Row],[Currency]],Sheet3!$A$2:$B$31,2,FALSE),tblSalaries[[#This Row],[clean Salary (in local currency)]],(tblSalaries[[#This Row],[PPP Adjusted USD]]/VLOOKUP(Dashboard!$J$5,Sheet3!$B$2:$C$31,2,FALSE))) -> 107000 | H151: Tax Manager | I151: Manager | J151: USA | K151: All the 8 hours baby, all the 8! | L151: 29
B152: ID0785 | C152: 2250000 | D152: INR | E152: 40067.81255 | F152: =(tblSalaries[[#This Row],[clean Salary (in local currency)]])*(VLOOKUP(tblSalaries[[#This Row],[Currency]],Sheet3!$A$2:$C$31,3,FALSE))*(VLOOKUP(tblSalaries[[#This Row],[Currency]],Sheet1!$N$4:$Q$186,4,FALSE)) -> 106562.3003 | G152: =IF(Dashboard!$J$5=VLOOKUP(tblSalaries[[#This Row],[Currency]],Sheet3!$A$2:$B$31,2,FALSE),tblSalaries[[#This Row],[clean Salary (in local currency)]],(tblSalaries[[#This Row],[PPP Adjusted USD]]/VLOOKUP(Dashboard!$J$5,Sheet3!$B$2:$C$31,2,FALSE))) -> 106562.3003 | H152: company secretary | I152: Accountant | J152: India | K152: 1 or 2 hours a day | L152: 5
B153: ID0633 | C153: 170000 | D153: AUD | E153: 173384.6416 | F153: =(tblSalaries[[#This Row],[clean Salary (in local currency)]])*(VLOOKUP(tblSalaries[[#This Row],[Currency]],Sheet3!$A$2:$C$31,3,FALSE))*(VLOOKUP(tblSalaries[[#This Row],[Currency]],Sheet1!$N$4:$Q$186,4,FALSE)) -> 106541.3899 | G153: =IF(Dashboard!$J$5=VLOOKUP(tblSalaries[[#This Row],[Currency]],Sheet3!$A$2:$B$31,2,FALSE),tblSalaries[[#This Row],[clean Salary (in local currency)]],(tblSalaries[[#This Row],[PPP Adjusted USD]]/VLOOKUP(Dashboard!$J$5,Sheet3!$B$2:$C$31,2,FALSE))) -> 106541.3899 | H153: senior business analyst | I153: Analyst | J153: Australia | K153: All the 8 hours baby, all the 8! | L153: 10
B154: ID1009 | C154: 170000 | D154: AUD | E154: 173384.6416 | F154: =(tblSalaries[[#This Row],[clean Salary (in local currency)]])*(VLOOKUP(tblSalaries[[#This Row],[Currency]],Sheet3!$A$2:$C$31,3,FALSE))*(VLOOKUP(tblSalaries[[#This Row],[Currency]],Sheet1!$N$4:$Q$186,4,FALSE)) -> 106541.3899 | G154: =IF(Dashboard!$J$5=VLOOKUP(tblSalaries[[#This Row],[Currency]],Sheet3!$A$2:$B$31,2,FALSE),tblSalaries[[#This Row],[clean Salary (in local currency)]],(tblSalaries[[#This Row],[PPP Adjusted USD]]/VLOOKUP(Dashboard!$J$5,Sheet3!$B$2:$C$31,2,FALSE))) -> 106541.3899 | H154: Business Consultant | I154: Consultant | J154: Australia | K154: 2 to 3 hours per day | L154: 8
B155: ID1637 | C155: 106000 | D155: USD | E155: 106000 | F155: =(tblSalaries[[#This Row],[clean Salary (in local currency)]])*(VLOOKUP(tblSalaries[[#This Row],[Currency]],Sheet3!$A$2:$C$31,3,FALSE))*(VLOOKUP(tblSalaries[[#This Row],[Currency]],Sheet1!$N$4:$Q$186,4,FALSE)) -> 106000 | G155: =IF(Dashboard!$J$5=VLOOKUP(tblSalaries[[#This Row],[Currency]],Sheet3!$A$2:$B$31,2,FALSE),tblSalaries[[#This Row],[clean Salary (in local currency)]],(tblSalaries[[#This Row],[PPP Adjusted USD]]/VLOOKUP(Dashboard!$J$5,Sheet3!$B$2:$C$31,2,FALSE))) -> 106000 | H155: IT Developer | I155: Analyst | J155: Denmark | K155: 1 or 2 hours a day | L155: 7
B156: ID1730 | C156: 134000 | D156: CAD | E156: 131770.4441 | F156: =(tblSalaries[[#This Row],[clean Salary (in local currency)]])*(VLOOKUP(tblSalaries[[#This Row],[Currency]],Sheet3!$A$2:$C$31,3,FALSE))*(VLOOKUP(tblSalaries[[#This Row],[Currency]],Sheet1!$N$4:$Q$186,4,FALSE)) -> 105919.7912 | G156: =IF(Dashboard!$J$5=VLOOKUP(tblSalaries[[#This Row],[Currency]],Sheet3!$A$2:$B$31,2,FALSE),tblSalaries[[#This Row],[clean Salary (in local currency)]],(tblSalaries[[#This Row],[PPP Adjusted USD]]/VLOOKUP(Dashboard!$J$5,Sheet3!$B$2:$C$31,2,FALSE))) -> 105919.7912 | H156: Senior Production Accountant | I156: Accountant | J156: Canada | K156: All the 8 hours baby, all the 8! | L156: 20
B157: ID0677 | C157: 105000 | D157: USD | E157: 105000 | F157: =(tblSalaries[[#This Row],[clean Salary (in local currency)]])*(VLOOKUP(tblSalaries[[#This Row],[Currency]],Sheet3!$A$2:$C$31,3,FALSE))*(VLOOKUP(tblSalaries[[#This Row],[Currency]],Sheet1!$N$4:$Q$186,4,FALSE)) -> 105000 | G157: =IF(Dashboard!$J$5=VLOOKUP(tblSalaries[[#This Row],[Currency]],Sheet3!$A$2:$B$31,2,FALSE),tblSalaries[[#This Row],[clean Salary (in local currency)]],(tblSalaries[[#This Row],[PPP Adjusted USD]]/VLOOKUP(Dashboard!$J$5,Sheet3!$B$2:$C$31,2,FALSE))) -> 105000 | H157: Senior Consultant | I157: Consultant | J157: USA | K157: 2 to 3 hours per day | L157: 15
B158: ID0930 | C158: 105000 | D158: USD | E158: 105000 | F158: =(tblSalaries[[#This Row],[clean Salary (in local currency)]])*(VLOOKUP(tblSalaries[[#This Row],[Currency]],Sheet3!$A$2:$C$31,3,FALSE))*(VLOOKUP(tblSalaries[[#This Row],[Currency]],Sheet1!$N$4:$Q$186,4,FALSE)) -> 105000 | G158: =IF(Dashboard!$J$5=VLOOKUP(tblSalaries[[#This Row],[Currency]],Sheet3!$A$2:$B$31,2,FALSE),tblSalaries[[#This Row],[clean Salary (in local currency)]],(tblSalaries[[#This Row],[PPP Adjusted USD]]/VLOOKUP(Dashboard!$J$5,Sheet3!$B$2:$C$31,2,FALSE))) -> 105000 | H158: business analyst | I158: Analyst | J158: USA | K158: 4 to 6 hours a day | L158: 20
B159: ID1357 | C159: 105000 | D159: USD | E159: 105000 | F159: =(tblSalaries[[#This Row],[clean Salary (in local currency)]])*(VLOOKUP(tblSalaries[[#This Row],[Currency]],Sheet3!$A$2:$C$31,3,FALSE))*(VLOOKUP(tblSalaries[[#This Row],[Currency]],Sheet1!$N$4:$Q$186,4,FALSE)) -> 105000 | G159: =IF(Dashboard!$J$5=VLOOKUP(tblSalaries[[#This Row],[Currency]],Sheet3!$A$2:$B$31,2,FALSE),tblSalaries[[#This Row],[clean Salary (in local currency)]],(tblSalaries[[#This Row],[PPP Adjusted USD]]/VLOOKUP(Dashboard!$J$5,Sheet3!$B$2:$C$31,2,FALSE))) -> 105000 | H159: Director of Technology | I159: CXO or Top Mgmt. | J159: USA | K159: 1 or 2 hours a day | L159: 15
B160: ID1534 | C160: 105000 | D160: USD | E160: 105000 | F160: =(tblSalaries[[#This Row],[clean Salary (in local currency)]])*(VLOOKUP(tblSalaries[[#This Row],[Currency]],Sheet3!$A$2:$C$31,3,FALSE))*(VLOOKUP(tblSalaries[[#This Row],[Currency]],Sheet1!$N$4:$Q$186,4,FALSE)) -> 105000 | G160: =IF(Dashboard!$J$5=VLOOKUP(tblSalaries[[#This Row],[Currency]],Sheet3!$A$2:$B$31,2,FALSE),tblSalaries[[#This Row],[clean Salary (in local currency)]],(tblSalaries[[#This Row],[PPP Adjusted USD]]/VLOOKUP(Dashboard!$J$5,Sheet3!$B$2:$C$31,2,FALSE))) -> 105000 | H160: Business Banker | I160: Manager | J160: USA | K160: 1 or 2 hours a day | L160: 30
B161: ID1366 | C161: 2210000 | D161: INR | E161: 39355.49588 | F161: =(tblSalaries[[#This Row],[clean Salary (in local currency)]])*(VLOOKUP(tblSalaries[[#This Row],[Currency]],Sheet3!$A$2:$C$31,3,FALSE))*(VLOOKUP(tblSalaries[[#This Row],[Currency]],Sheet1!$N$4:$Q$186,4,FALSE)) -> 104667.8594 | G161: =IF(Dashboard!$J$5=VLOOKUP(tblSalaries[[#This Row],[Currency]],Sheet3!$A$2:$B$31,2,FALSE),tblSalaries[[#This Row],[clean Salary (in local currency)]],(tblSalaries[[#This Row],[PPP Adjusted USD]]/VLOOKUP(Dashboard!$J$5,Sheet3!$B$2:$C$31,2,FALSE))) -> 104667.8594 | H161: Marketing | I161: Analyst | J161: India | K161: 1 or 2 hours a day | L161: 5.6
B162: ID0143 | C162: 104000 | D162: USD | E162: 104000 | F162: =(tblSalaries[[#This Row],[clean Salary (in local currency)]])*(VLOOKUP(tblSalaries[[#This Row],[Currency]],Sheet3!$A$2:$C$31,3,FALSE))*(VLOOKUP(tblSalaries[[#This Row],[Currency]],Sheet1!$N$4:$Q$186,4,FALSE)) -> 104000 | G162: =IF(Dashboard!$J$5=VLOOKUP(tblSalaries[[#This Row],[Currency]],Sheet3!$A$2:$B$31,2,FALSE),tblSalaries[[#This Row],[clean Salary (in local currency)]],(tblSalaries[[#This Row],[PPP Adjusted USD]]/VLOOKUP(Dashboard!$J$5,Sheet3!$B$2:$C$31,2,FALSE))) -> 104000 | H162: Finance Director | I162: CXO or Top Mgmt. | J162: USA | K162: 2 to 3 hours per day | L162: Data Not Avaliable
B163: ID0525 | C163: 104000 | D163: USD | E163: 104000 | F163: =(tblSalaries[[#This Row],[clean Salary (in local currency)]])*(VLOOKUP(tblSalaries[[#This Row],[Currency]],Sheet3!$A$2:$C$31,3,FALSE))*(VLOOKUP(tblSalaries[[#This Row],[Currency]],Sheet1!$N$4:$Q$186,4,FALSE)) -> 104000 | G163: =IF(Dashboard!$J$5=VLOOKUP(tblSalaries[[#This Row],[Currency]],Sheet3!$A$2:$B$31,2,FALSE),tblSalaries[[#This Row],[clean Salary (in local currency)]],(tblSalaries[[#This Row],[PPP Adjusted USD]]/VLOOKUP(Dashboard!$J$5,Sheet3!$B$2:$C$31,2,FALSE))) -> 104000 | H163: Vice President, Analyst | I163: Analyst | J163: USA | K163: 4 to 6 hours a day | L163: Data Not Avaliable
B164: ID1492 | C164: 165000 | D164: AUD | E164: 168285.0933 | F164: =(tblSalaries[[#This Row],[clean Salary (in local currency)]])*(VLOOKUP(tblSalaries[[#This Row],[Currency]],Sheet3!$A$2:$C$31,3,FALSE))*(VLOOKUP(tblSalaries[[#This Row],[Currency]],Sheet1!$N$4:$Q$186,4,FALSE)) -> 103407.8196 | G164: =IF(Dashboard!$J$5=VLOOKUP(tblSalaries[[#This Row],[Currency]],Sheet3!$A$2:$B$31,2,FALSE),tblSalaries[[#This Row],[clean Salary (in local currency)]],(tblSalaries[[#This Row],[PPP Adjusted USD]]/VLOOKUP(Dashboard!$J$5,Sheet3!$B$2:$C$31,2,FALSE))) -> 103407.8196 | H164: Engineer | I164: Engineer | J164: Australia | K164: 2 to 3 hours per day | L164: 17
B165: ID0134 | C165: 70000 | D165: GBP | E165: 110332.479 | F165: =(tblSalaries[[#This Row],[clean Salary (in local currency)]])*(VLOOKUP(tblSalaries[[#This Row],[Currency]],Sheet3!$A$2:$C$31,3,FALSE))*(VLOOKUP(tblSalaries[[#This Row],[Currency]],Sheet1!$N$4:$Q$186,4,FALSE)) -> 103177.9843 | G165: =IF(Dashboard!$J$5=VLOOKUP(tblSalaries[[#This Row],[Currency]],Sheet3!$A$2:$B$31,2,FALSE),tblSalaries[[#This Row],[clean Salary (in local currency)]],(tblSalaries[[#This Row],[PPP Adjusted USD]]/VLOOKUP(Dashboard!$J$5,Sheet3!$B$2:$C$31,2,FALSE))) -> 103177.9843 | H165: Project Manager | I165: Manager | J165: UK | K165: 2 to 3 hours per day | L165: Data Not Avaliable
B166: ID1348 | C166: 70000 | D166: GBP | E166: 110332.479 | F166: =(tblSalaries[[#This Row],[clean Salary (in local currency)]])*(VLOOKUP(tblSalaries[[#This Row],[Currency]],Sheet3!$A$2:$C$31,3,FALSE))*(VLOOKUP(tblSalaries[[#This Row],[Currency]],Sheet1!$N$4:$Q$186,4,FALSE)) -> 103177.9843 | G166: =IF(Dashboard!$J$5=VLOOKUP(tblSalaries[[#This Row],[Currency]],Sheet3!$A$2:$B$31,2,FALSE),tblSalaries[[#This Row],[clean Salary (in local currency)]],(tblSalaries[[#This Row],[PPP Adjusted USD]]/VLOOKUP(Dashboard!$J$5,Sheet3!$B$2:$C$31,2,FALSE))) -> 103177.9843 | H166: Consultant | I166: Consultant | J166: UK | K166: 4 to 6 hours a day | L166: 15
B167: ID0270 | C167: 103000 | D167: USD | E167: 103000 | F167: =(tblSalaries[[#This Row],[clean Salary (in local currency)]])*(VLOOKUP(tblSalaries[[#This Row],[Currency]],Sheet3!$A$2:$C$31,3,FALSE))*(VLOOKUP(tblSalaries[[#This Row],[Currency]],Sheet1!$N$4:$Q$186,4,FALSE)) -> 103000 | G167: =IF(Dashboard!$J$5=VLOOKUP(tblSalaries[[#This Row],[Currency]],Sheet3!$A$2:$B$31,2,FALSE),tblSalaries[[#This Row],[clean Salary (in local currency)]],(tblSalaries[[#This Row],[PPP Adjusted USD]]/VLOOKUP(Dashboard!$J$5,Sheet3!$B$2:$C$31,2,FALSE))) -> 103000 | H167: VP / Credit Administrator | I167: CXO or Top Mgmt. | J167: USA | K167: 2 to 3 hours per day | L167: Data Not Avaliable
B168: ID1379 | C168: 103000 | D168: USD | E168: 103000 | F168: =(tblSalaries[[#This Row],[clean Salary (in local currency)]])*(VLOOKUP(tblSalaries[[#This Row],[Currency]],Sheet3!$A$2:$C$31,3,FALSE))*(VLOOKUP(tblSalaries[[#This Row],[Currency]],Sheet1!$N$4:$Q$186,4,FALSE)) -> 103000 | G168: =IF(Dashboard!$J$5=VLOOKUP(tblSalaries[[#This Row],[Currency]],Sheet3!$A$2:$B$31,2,FALSE),tblSalaries[[#This Row],[clean Salary (in local currency)]],(tblSalaries[[#This Row],[PPP Adjusted USD]]/VLOOKUP(Dashboard!$J$5,Sheet3!$B$2:$C$31,2,FALSE))) -> 103000 | H168: Controller | I168: Controller | J168: USA | K168: 4 to 6 hours a day | L168: 22
B169: ID1445 | C169: 102000 | D169: USD | E169: 102000 | F169: =(tblSalaries[[#This Row],[clean Salary (in local currency)]])*(VLOOKUP(tblSalaries[[#This Row],[Currency]],Sheet3!$A$2:$C$31,3,FALSE))*(VLOOKUP(tblSalaries[[#This Row],[Currency]],Sheet1!$N$4:$Q$186,4,FALSE)) -> 102000 | G169: =IF(Dashboard!$J$5=VLOOKUP(tblSalaries[[#This Row],[Currency]],Sheet3!$A$2:$B$31,2,FALSE),tblSalaries[[#This Row],[clean Salary (in local currency)]],(tblSalaries[[#This Row],[PPP Adjusted USD]]/VLOOKUP(Dashboard!$J$5,Sheet3!$B$2:$C$31,2,FALSE))) -> 102000 | H169: Sales Analyst | I169: Analyst | J169: USA | K169: 4 to 6 hours a day | L169: 5
B170: ID1543 | C170: 320000 | D170: SAR | E170: 85333.33333 | F170: =(tblSalaries[[#This Row],[clean Salary (in local currency)]])*(VLOOKUP(tblSalaries[[#This Row],[Currency]],Sheet3!$A$2:$C$31,3,FALSE))*(VLOOKUP(tblSalaries[[#This Row],[Currency]],Sheet1!$N$4:$Q$186,4,FALSE)) -> 100869.2758 | G170: =IF(Dashboard!$J$5=VLOOKUP(tblSalaries[[#This Row],[Currency]],Sheet3!$A$2:$B$31,2,FALSE),tblSalaries[[#This Row],[clean Salary (in local currency)]],(tblSalaries[[#This Row],[PPP Adjusted USD]]/VLOOKUP(Dashboard!$J$5,Sheet3!$B$2:$C$31,2,FALSE))) -> 100869.2758 | H170: Merchandise Planning Manager | I170: Manager | J170: Saudi Arabia | K170: 2 to 3 hours per day | L170: 15
B171: ID1928 | C171: 100800 | D171: USD | E171: 100800 | F171: =(tblSalaries[[#This Row],[clean Salary (in local currency)]])*(VLOOKUP(tblSalaries[[#This Row],[Currency]],Sheet3!$A$2:$C$31,3,FALSE))*(VLOOKUP(tblSalaries[[#This Row],[Currency]],Sheet1!$N$4:$Q$186,4,FALSE)) -> 100800 | G171: =IF(Dashboard!$J$5=VLOOKUP(tblSalaries[[#This Row],[Currency]],Sheet3!$A$2:$B$31,2,FALSE),tblSalaries[[#This Row],[clean Salary (in local currency)]],(tblSalaries[[#This Row],[PPP Adjusted USD]]/VLOOKUP(Dashboard!$J$5,Sheet3!$B$2:$C$31,2,FALSE))) -> 100800 | H171: AVP | I171: CXO or Top Mgmt. | J171: Oman | K171: 4 to 6 hours a day | L171: 4
B172: ID0050 | C172: 100000 | D172: USD | E172: 100000 | F172: =(tblSalaries[[#This Row],[clean Salary (in local currency)]])*(VLOOKUP(tblSalaries[[#This Row],[Currency]],Sheet3!$A$2:$C$31,3,FALSE))*(VLOOKUP(tblSalaries[[#This Row],[Currency]],Sheet1!$N$4:$Q$186,4,FALSE)) -> 100000 | G172: =IF(Dashboard!$J$5=VLOOKUP(tblSalaries[[#This Row],[Currency]],Sheet3!$A$2:$B$31,2,FALSE),tblSalaries[[#This Row],[clean Salary (in local currency)]],(tblSalaries[[#This Row],[PPP Adjusted USD]]/VLOOKUP(Dashboard!$J$5,Sheet3!$B$2:$C$31,2,FALSE))) -> 100000 | H172: Seinor Financial Analyst | I172: Analyst | J172: Germany | K172: All the 8 hours baby, all the 8! | L172: Data Not Avaliable
B173: ID0070 | C173: 100000 | D173: USD | E173: 100000 | F173: =(tblSalaries[[#This Row],[clean Salary (in local currency)]])*(VLOOKUP(tblSalaries[[#This Row],[Currency]],Sheet3!$A$2:$C$31,3,FALSE))*(VLOOKUP(tblSalaries[[#This Row],[Currency]],Sheet1!$N$4:$Q$186,4,FALSE)) -> 100000 | G173: =IF(Dashboard!$J$5=VLOOKUP(tblSalaries[[#This Row],[Currency]],Sheet3!$A$2:$B$31,2,FALSE),tblSalaries[[#This Row],[clean Salary (in local currency)]],(tblSalaries[[#This Row],[PPP Adjusted USD]]/VLOOKUP(Dashboard!$J$5,Sheet3!$B$2:$C$31,2,FALSE))) -> 100000 | H173: Mngr MI | I173: Manager | J173: South Africa | K173: 4 to 6 hours a day | L173: Data Not Avaliable
B174: ID0158 | C174: 100000 | D174: USD | E174: 100000 | F174: =(tblSalaries[[#This Row],[clean Salary (in local currency)]])*(VLOOKUP(tblSalaries[[#This Row],[Currency]],Sheet3!$A$2:$C$31,3,FALSE))*(VLOOKUP(tblSalaries[[#This Row],[Currency]],Sheet1!$N$4:$Q$186,4,FALSE)) -> 100000 | G174: =IF(Dashboard!$J$5=VLOOKUP(tblSalaries[[#This Row],[Currency]],Sheet3!$A$2:$B$31,2,FALSE),tblSalaries[[#This Row],[clean Salary (in local currency)]],(tblSalaries[[#This Row],[PPP Adjusted USD]]/VLOOKUP(Dashboard!$J$5,Sheet3!$B$2:$C$31,2,FALSE))) -> 100000 | H174: COST ACCOUNTANT | I174: Accountant | J174: USA | K174: All the 8 hours baby, all the 8! | L174: Data Not Avaliable
B175: ID0204 | C175: 100000 | D175: USD | E175: 100000 | F175: =(tblSalaries[[#This Row],[clean Salary (in local currency)]])*(VLOOKUP(tblSalaries[[#This Row],[Currency]],Sheet3!$A$2:$C$31,3,FALSE))*(VLOOKUP(tblSalaries[[#This Row],[Currency]],Sheet1!$N$4:$Q$186,4,FALSE)) -> 100000 | G175: =IF(Dashboard!$J$5=VLOOKUP(tblSalaries[[#This Row],[Currency]],Sheet3!$A$2:$B$31,2,FALSE),tblSalaries[[#This Row],[clean Salary (in local currency)]],(tblSalaries[[#This Row],[PPP Adjusted USD]]/VLOOKUP(Dashboard!$J$5,Sheet3!$B$2:$C$31,2,FALSE))) -> 100000 | H175: Strategic Sourcing Manager | I175: Manager | J175: USA | K175: All the 8 hours baby, all the 8! | L175: Data Not Avaliable
B176: ID0215 | C176: 100000 | D176: USD | E176: 100000 | F176: =(tblSalaries[[#This Row],[clean Salary (in local currency)]])*(VLOOKUP(tblSalaries[[#This Row],[Currency]],Sheet3!$A$2:$C$31,3,FALSE))*(VLOOKUP(tblSalaries[[#This Row],[Currency]],Sheet1!$N$4:$Q$186,4,FALSE)) -> 100000 | G176: =IF(Dashboard!$J$5=VLOOKUP(tblSalaries[[#This Row],[Currency]],Sheet3!$A$2:$B$31,2,FALSE),tblSalaries[[#This Row],[clean Salary (in local currency)]],(tblSalaries[[#This Row],[PPP Adjusted USD]]/VLOOKUP(Dashboard!$J$5,Sheet3!$B$2:$C$31,2,FALSE))) -> 100000 | H176: Director of Finance | I176: CXO or Top Mgmt. | J176: USA | K176: 4 to 6 hours a day | L176: Data Not Avaliable
B177: ID0346 | C177: 100000 | D177: USD | E177: 100000 | F177: =(tblSalaries[[#This Row],[clean Salary (in local currency)]])*(VLOOKUP(tblSalaries[[#This Row],[Currency]],Sheet3!$A$2:$C$31,3,FALSE))*(VLOOKUP(tblSalaries[[#This Row],[Currency]],Sheet1!$N$4:$Q$186,4,FALSE)) -> 100000 | G177: =IF(Dashboard!$J$5=VLOOKUP(tblSalaries[[#This Row],[Currency]],Sheet3!$A$2:$B$31,2,FALSE),tblSalaries[[#This Row],[clean Salary (in local currency)]],(tblSalaries[[#This Row],[PPP Adjusted USD]]/VLOOKUP(Dashboard!$J$5,Sheet3!$B$2:$C$31,2,FALSE))) -> 100000 | H177: Senior Data Analyst | I177: Analyst | J177: UK | K177: 4 to 6 hours a day | L177: Data Not Avaliable
B178: ID0397 | C178: 100000 | D178: USD | E178: 100000 | F178: =(tblSalaries[[#This Row],[clean Salary (in local currency)]])*(VLOOKUP(tblSalaries[[#This Row],[Currency]],Sheet3!$A$2:$C$31,3,FALSE))*(VLOOKUP(tblSalaries[[#This Row],[Currency]],Sheet1!$N$4:$Q$186,4,FALSE)) -> 100000 | G178: =IF(Dashboard!$J$5=VLOOKUP(tblSalaries[[#This Row],[Currency]],Sheet3!$A$2:$B$31,2,FALSE),tblSalaries[[#This Row],[clean Salary (in local currency)]],(tblSalaries[[#This Row],[PPP Adjusted USD]]/VLOOKUP(Dashboard!$J$5,Sheet3!$B$2:$C$31,2,FALSE))) -> 100000 | H178: Sales Operations Analyst | I178: Analyst | J178: USA | K178: All the 8 hours baby, all the 8! | L178: Data Not Avaliable
B179: ID0505 | C179: 100000 | D179: USD | E179: 100000 | F179: =(tblSalaries[[#This Row],[clean Salary (in local currency)]])*(VLOOKUP(tblSalaries[[#This Row],[Currency]],Sheet3!$A$2:$C$31,3,FALSE))*(VLOOKUP(tblSalaries[[#This Row],[Currency]],Sheet1!$N$4:$Q$186,4,FALSE)) -> 100000 | G179: =IF(Dashboard!$J$5=VLOOKUP(tblSalaries[[#This Row],[Currency]],Sheet3!$A$2:$B$31,2,FALSE),tblSalaries[[#This Row],[clean Salary (in local currency)]],(tblSalaries[[#This Row],[PPP Adjusted USD]]/VLOOKUP(Dashboard!$J$5,Sheet3!$B$2:$C$31,2,FALSE))) -> 100000 | H179: Analyst | I179: Analyst | J179: USA | K179: 4 to 6 hours a day | L179: Data Not Avaliable
B180: ID0524 | C180: 100000 | D180: USD | E180: 100000 | F180: =(tblSalaries[[#This Row],[clean Salary (in local currency)]])*(VLOOKUP(tblSalaries[[#This Row],[Currency]],Sheet3!$A$2:$C$31,3,FALSE))*(VLOOKUP(tblSalaries[[#This Row],[Currency]],Sheet1!$N$4:$Q$186,4,FALSE)) -> 100000 | G180: =IF(Dashboard!$J$5=VLOOKUP(tblSalaries[[#This Row],[Currency]],Sheet3!$A$2:$B$31,2,FALSE),tblSalaries[[#This Row],[clean Salary (in local currency)]],(tblSalaries[[#This Row],[PPP Adjusted USD]]/VLOOKUP(Dashboard!$J$5,Sheet3!$B$2:$C$31,2,FALSE))) -> 100000 | H180: Director | I180: CXO or Top Mgmt. | J180: USA | K180: 2 to 3 hours per day | L180: Data Not Avaliable
B181: ID0829 | C181: 100000 | D181: USD | E181: 100000 | F181: =(tblSalaries[[#This Row],[clean Salary (in local currency)]])*(VLOOKUP(tblSalaries[[#This Row],[Currency]],Sheet3!$A$2:$C$31,3,FALSE))*(VLOOKUP(tblSalaries[[#This Row],[Currency]],Sheet1!$N$4:$Q$186,4,FALSE)) -> 100000 | G181: =IF(Dashboard!$J$5=VLOOKUP(tblSalaries[[#This Row],[Currency]],Sheet3!$A$2:$B$31,2,FALSE),tblSalaries[[#This Row],[clean Salary (in local currency)]],(tblSalaries[[#This Row],[PPP Adjusted USD]]/VLOOKUP(Dashboard!$J$5,Sheet3!$B$2:$C$31,2,FALSE))) -> 100000 | H181: director | I181: CXO or Top Mgmt. | J181: USA | K181: 4 to 6 hours a day | L181: 10
B182: ID0893 | C182: 100000 | D182: USD | E182: 100000 | F182: =(tblSalaries[[#This Row],[clean Salary (in local currency)]])*(VLOOKUP(tblSalaries[[#This Row],[Currency]],Sheet3!$A$2:$C$31,3,FALSE))*(VLOOKUP(tblSalaries[[#This Row],[Currency]],Sheet1!$N$4:$Q$186,4,FALSE)) -> 100000 | G182: =IF(Dashboard!$J$5=VLOOKUP(tblSalaries[[#This Row],[Currency]],Sheet3!$A$2:$B$31,2,FALSE),tblSalaries[[#This Row],[clean Salary (in local currency)]],(tblSalaries[[#This Row],[PPP Adjusted USD]]/VLOOKUP(Dashboard!$J$5,Sheet3!$B$2:$C$31,2,FALSE))) -> 100000 | H182: Director | I182: CXO or Top Mgmt. | J182: Mexico | K182: All the 8 hours baby, all the 8! | L182: 10
B183: ID1227 | C183: 100000 | D183: USD | E183: 100000 | F183: =(tblSalaries[[#This Row],[clean Salary (in local currency)]])*(VLOOKUP(tblSalaries[[#This Row],[Currency]],Sheet3!$A$2:$C$31,3,FALSE))*(VLOOKUP(tblSalaries[[#This Row],[Currency]],Sheet1!$N$4:$Q$186,4,FALSE)) -> 100000 | G183: =IF(Dashboard!$J$5=VLOOKUP(tblSalaries[[#This Row],[Currency]],Sheet3!$A$2:$B$31,2,FALSE),tblSalaries[[#This Row],[clean Salary (in local currency)]],(tblSalaries[[#This Row],[PPP Adjusted USD]]/VLOOKUP(Dashboard!$J$5,Sheet3!$B$2:$C$31,2,FALSE))) -> 100000 | H183: Finance Manager | I183: Manager | J183: USA | K183: 4 to 6 hours a day | L183: 11
B184: ID1235 | C184: 100000 | D184: USD | E184: 100000 | F184: =(tblSalaries[[#This Row],[clean Salary (in local currency)]])*(VLOOKUP(tblSalaries[[#This Row],[Currency]],Sheet3!$A$2:$C$31,3,FALSE))*(VLOOKUP(tblSalaries[[#This Row],[Currency]],Sheet1!$N$4:$Q$186,4,FALSE)) -> 100000 | G184: =IF(Dashboard!$J$5=VLOOKUP(tblSalaries[[#This Row],[Currency]],Sheet3!$A$2:$B$31,2,FALSE),tblSalaries[[#This Row],[clean Salary (in local currency)]],(tblSalaries[[#This Row],[PPP Adjusted USD]]/VLOOKUP(Dashboard!$J$5,Sheet3!$B$2:$C$31,2,FALSE))) -> 100000 | H184: Controller | I184: Controller | J184: Norway | K184: 4 to 6 hours a day | L184: 12
B185: ID1305 | C185: 100000 | D185: USD | E185: 100000 | F185: =(tblSalaries[[#This Row],[clean Salary (in local currency)]])*(VLOOKUP(tblSalaries[[#This Row],[Currency]],Sheet3!$A$2:$C$31,3,FALSE))*(VLOOKUP(tblSalaries[[#This Row],[Currency]],Sheet1!$N$4:$Q$186,4,FALSE)) -> 100000 | G185: =IF(Dashboard!$J$5=VLOOKUP(tblSalaries[[#This Row],[Currency]],Sheet3!$A$2:$B$31,2,FALSE),tblSalaries[[#This Row],[clean Salary (in local currency)]],(tblSalaries[[#This Row],[PPP Adjusted USD]]/VLOOKUP(Dashboard!$J$5,Sheet3!$B$2:$C$31,2,FALSE))) -> 100000 | H185: Business Analyst | I185: Analyst | J185: Uganda | K185: 4 to 6 hours a day | L185: 17
B186: ID1374 | C186: 100000 | D186: USD | E186: 100000 | F186: =(tblSalaries[[#This Row],[clean Salary (in local currency)]])*(VLOOKUP(tblSalaries[[#This Row],[Currency]],Sheet3!$A$2:$C$31,3,FALSE))*(VLOOKUP(tblSalaries[[#This Row],[Currency]],Sheet1!$N$4:$Q$186,4,FALSE)) -> 100000 | G186: =IF(Dashboard!$J$5=VLOOKUP(tblSalaries[[#This Row],[Currency]],Sheet3!$A$2:$B$31,2,FALSE),tblSalaries[[#This Row],[clean Salary (in local currency)]],(tblSalaries[[#This Row],[PPP Adjusted USD]]/VLOOKUP(Dashboard!$J$5,Sheet3!$B$2:$C$31,2,FALSE))) -> 100000 | H186: Senior Financial Analyst | I186: Analyst | J186: USA | K186: 4 to 6 hours a day | L186: 1
B187: ID1382 | C187: 100000 | D187: USD | E187: 100000 | F187: =(tblSalaries[[#This Row],[clean Salary (in local currency)]])*(VLOOKUP(tblSalaries[[#This Row],[Currency]],Sheet3!$A$2:$C$31,3,FALSE))*(VLOOKUP(tblSalaries[[#This Row],[Currency]],Sheet1!$N$4:$Q$186,4,FALSE)) -> 100000 | G187: =IF(Dashboard!$J$5=VLOOKUP(tblSalaries[[#This Row],[Currency]],Sheet3!$A$2:$B$31,2,FALSE),tblSalaries[[#This Row],[clean Salary (in local currency)]],(tblSalaries[[#This Row],[PPP Adjusted USD]]/VLOOKUP(Dashboard!$J$5,Sheet3!$B$2:$C$31,2,FALSE))) -> 100000 | H187: Vice Head of Dpt in Education | I187: CXO or Top Mgmt. | J187: Sweden | K187: 2 to 3 hours per day | L187: 20
B188: ID1643 | C188: 100000 | D188: USD | E188: 100000 | F188: =(tblSalaries[[#This Row],[clean Salary (in local currency)]])*(VLOOKUP(tblSalaries[[#This Row],[Currency]],Sheet3!$A$2:$C$31,3,FALSE))*(VLOOKUP(tblSalaries[[#This Row],[Currency]],Sheet1!$N$4:$Q$186,4,FALSE)) -> 100000 | G188: =IF(Dashboard!$J$5=VLOOKUP(tblSalaries[[#This Row],[Currency]],Sheet3!$A$2:$B$31,2,FALSE),tblSalaries[[#This Row],[clean Salary (in local currency)]],(tblSalaries[[#This Row],[PPP Adjusted USD]]/VLOOKUP(Dashboard!$J$5,Sheet3!$B$2:$C$31,2,FALSE))) -> 100000 | H188: Consultant | I188: Consultant | J188: USA | K188: 2 to 3 hours per day | L188: 4
B189: ID1723 | C189: 100000 | D189: USD | E189: 100000 | F189: =(tblSalaries[[#This Row],[clean Salary (in local currency)]])*(VLOOKUP(tblSalaries[[#This Row],[Currency]],Sheet3!$A$2:$C$31,3,FALSE))*(VLOOKUP(tblSalaries[[#This Row],[Currency]],Sheet1!$N$4:$Q$186,4,FALSE)) -> 100000 | G189: =IF(Dashboard!$J$5=VLOOKUP(tblSalaries[[#This Row],[Currency]],Sheet3!$A$2:$B$31,2,FALSE),tblSalaries[[#This Row],[clean Salary (in local currency)]],(tblSalaries[[#This Row],[PPP Adjusted USD]]/VLOOKUP(Dashboard!$J$5,Sheet3!$B$2:$C$31,2,FALSE))) -> 100000 | H189: financial analyst (real estate) | I189: Analyst | J189: Russia | K189: All the 8 hours baby, all the 8! | L189: 6
B190: ID1799 | C190: 100000 | D190: USD | E190: 100000 | F190: =(tblSalaries[[#This Row],[clean Salary (in local currency)]])*(VLOOKUP(tblSalaries[[#This Row],[Currency]],Sheet3!$A$2:$C$31,3,FALSE))*(VLOOKUP(tblSalaries[[#This Row],[Currency]],Sheet1!$N$4:$Q$186,4,FALSE)) -> 100000 | G190: =IF(Dashboard!$J$5=VLOOKUP(tblSalaries[[#This Row],[Currency]],Sheet3!$A$2:$B$31,2,FALSE),tblSalaries[[#This Row],[clean Salary (in local currency)]],(tblSalaries[[#This Row],[PPP Adjusted USD]]/VLOOKUP(Dashboard!$J$5,Sheet3!$B$2:$C$31,2,FALSE))) -> 100000 | H190: analyst | I190: Analyst | J190: USA | K190: All the 8 hours baby, all the 8! | L190: 12
B191: ID1884 | C191: 100000 | D191: USD | E191: 100000 | F191: =(tblSalaries[[#This Row],[clean Salary (in local currency)]])*(VLOOKUP(tblSalaries[[#This Row],[Currency]],Sheet3!$A$2:$C$31,3,FALSE))*(VLOOKUP(tblSalaries[[#This Row],[Currency]],Sheet1!$N$4:$Q$186,4,FALSE)) -> 100000 | G191: =IF(Dashboard!$J$5=VLOOKUP(tblSalaries[[#This Row],[Currency]],Sheet3!$A$2:$B$31,2,FALSE),tblSalaries[[#This Row],[clean Salary (in local currency)]],(tblSalaries[[#This Row],[PPP Adjusted USD]]/VLOOKUP(Dashboard!$J$5,Sheet3!$B$2:$C$31,2,FALSE))) -> 100000 | H191: Senior Manager MIS | I191: Manager | J191: UAE | K191: All the 8 hours baby, all the 8! | L191: 15
B192: ID0394 | C192: 99147 | D192: USD | E192: 99147 | F192: =(tblSalaries[[#This Row],[clean Salary (in local currency)]])*(VLOOKUP(tblSalaries[[#This Row],[Currency]],Sheet3!$A$2:$C$31,3,FALSE))*(VLOOKUP(tblSalaries[[#This Row],[Currency]],Sheet1!$N$4:$Q$186,4,FALSE)) -> 99147 | G192: =IF(Dashboard!$J$5=VLOOKUP(tblSalaries[[#This Row],[Currency]],Sheet3!$A$2:$B$31,2,FALSE),tblSalaries[[#This Row],[clean Salary (in local currency)]],(tblSalaries[[#This Row],[PPP Adjusted USD]]/VLOOKUP(Dashboard!$J$5,Sheet3!$B$2:$C$31,2,FALSE))) -> 99147 | H192: Chief Specialist of Economics & Planning | I192: Specialist | J192: Russia | K192: 4 to 6 hours a day | L192: Data Not Avaliable
B193: ID1147 | C193: 90000 | D193: EUR | E193: 114335.9495 | F193: =(tblSalaries[[#This Row],[clean Salary (in local currency)]])*(VLOOKUP(tblSalaries[[#This Row],[Currency]],Sheet3!$A$2:$C$31,3,FALSE))*(VLOOKUP(tblSalaries[[#This Row],[Currency]],Sheet1!$N$4:$Q$186,4,FALSE)) -> 99058.75974 | G193: =IF(Dashboard!$J$5=VLOOKUP(tblSalaries[[#This Row],[Currency]],Sheet3!$A$2:$B$31,2,FALSE),tblSalaries[[#This Row],[clean Salary (in local currency)]],(tblSalaries[[#This Row],[PPP Adjusted USD]]/VLOOKUP(Dashboard!$J$5,Sheet3!$B$2:$C$31,2,FALSE))) -> 99058.75974 | H193: Management Information Manager | I193: Manager | J193: CEE | K193: 2 to 3 hours per day | L193: 20
B194: ID1867 | C194: 90000 | D194: EUR | E194: 114335.9495 | F194: =(tblSalaries[[#This Row],[clean Salary (in local currency)]])*(VLOOKUP(tblSalaries[[#This Row],[Currency]],Sheet3!$A$2:$C$31,3,FALSE))*(VLOOKUP(tblSalaries[[#This Row],[Currency]],Sheet1!$N$4:$Q$186,4,FALSE)) -> 99058.75974 | G194: =IF(Dashboard!$J$5=VLOOKUP(tblSalaries[[#This Row],[Currency]],Sheet3!$A$2:$B$31,2,FALSE),tblSalaries[[#This Row],[clean Salary (in local currency)]],(tblSalaries[[#This Row],[PPP Adjusted USD]]/VLOOKUP(Dashboard!$J$5,Sheet3!$B$2:$C$31,2,FALSE))) -> 99058.75974 | H194: Controller | I194: Controller | J194: Europe | K194: 2 to 3 hours per day | L194: 20
B195: ID0198 | C195: 99000 | D195: USD | E195: 99000 | F195: =(tblSalaries[[#This Row],[clean Salary (in local currency)]])*(VLOOKUP(tblSalaries[[#This Row],[Currency]],Sheet3!$A$2:$C$31,3,FALSE))*(VLOOKUP(tblSalaries[[#This Row],[Currency]],Sheet1!$N$4:$Q$186,4,FALSE)) -> 99000 | G195: =IF(Dashboard!$J$5=VLOOKUP(tblSalaries[[#This Row],[Currency]],Sheet3!$A$2:$B$31,2,FALSE),tblSalaries[[#This Row],[clean Salary (in local currency)]],(tblSalaries[[#This Row],[PPP Adjusted USD]]/VLOOKUP(Dashboard!$J$5,Sheet3!$B$2:$C$31,2,FALSE))) -> 99000 | H195: Business Controller | I195: Controller | J195: USA | K195: 4 to 6 hours a day | L195: Data Not Avaliable
B196: ID0275 | C196: 99000 | D196: USD | E196: 99000 | F196: =(tblSalaries[[#This Row],[clean Salary (in local currency)]])*(VLOOKUP(tblSalaries[[#This Row],[Currency]],Sheet3!$A$2:$C$31,3,FALSE))*(VLOOKUP(tblSalaries[[#This Row],[Currency]],Sheet1!$N$4:$Q$186,4,FALSE)) -> 99000 | G196: =IF(Dashboard!$J$5=VLOOKUP(tblSalaries[[#This Row],[Currency]],Sheet3!$A$2:$B$31,2,FALSE),tblSalaries[[#This Row],[clean Salary (in local currency)]],(tblSalaries[[#This Row],[PPP Adjusted USD]]/VLOOKUP(Dashboard!$J$5,Sheet3!$B$2:$C$31,2,FALSE))) -> 99000 | H196: Business Analyst | I196: Analyst | J196: USA | K196: 2 to 3 hours per day | L196: Data Not Avaliable
B197: ID0868 | C197: 98000 | D197: USD | E197: 98000 | F197: =(tblSalaries[[#This Row],[clean Salary (in local currency)]])*(VLOOKUP(tblSalaries[[#This Row],[Currency]],Sheet3!$A$2:$C$31,3,FALSE))*(VLOOKUP(tblSalaries[[#This Row],[Currency]],Sheet1!$N$4:$Q$186,4,FALSE)) -> 98000 | G197: =IF(Dashboard!$J$5=VLOOKUP(tblSalaries[[#This Row],[Currency]],Sheet3!$A$2:$B$31,2,FALSE),tblSalaries[[#This Row],[clean Salary (in local currency)]],(tblSalaries[[#This Row],[PPP Adjusted USD]]/VLOOKUP(Dashboard!$J$5,Sheet3!$B$2:$C$31,2,FALSE))) -> 98000 | H197: supply chain manager | I197: Manager | J197: Indonesia | K197: 2 to 3 hours per day | L197: 14
B198: ID1810 | C198: 156000 | D198: AUD | E198: 159105.9064 | F198: =(tblSalaries[[#This Row],[clean Salary (in local currency)]])*(VLOOKUP(tblSalaries[[#This Row],[Currency]],Sheet3!$A$2:$C$31,3,FALSE))*(VLOOKUP(tblSalaries[[#This Row],[Currency]],Sheet1!$N$4:$Q$186,4,FALSE)) -> 97767.39308 | G198: =IF(Dashboard!$J$5=VLOOKUP(tblSalaries[[#This Row],[Currency]],Sheet3!$A$2:$B$31,2,FALSE),tblSalaries[[#This Row],[clean Salary (in local currency)]],(tblSalaries[[#This Row],[PPP Adjusted USD]]/VLOOKUP(Dashboard!$J$5,Sheet3!$B$2:$C$31,2,FALSE))) -> 97767.39308 | H198: Senior Associate Engineer | I198: Engineer | J198: Australia | K198: 2 to 3 hours per day | L198: 12
B199: ID0419 | C199: 66000 | D199: GBP | E199: 104027.766 | F199: =(tblSalaries[[#This Row],[clean Salary (in local currency)]])*(VLOOKUP(tblSalaries[[#This Row],[Currency]],Sheet3!$A$2:$C$31,3,FALSE))*(VLOOKUP(tblSalaries[[#This Row],[Currency]],Sheet1!$N$4:$Q$186,4,FALSE)) -> 97282.09953 | G199: =IF(Dashboard!$J$5=VLOOKUP(tblSalaries[[#This Row],[Currency]],Sheet3!$A$2:$B$31,2,FALSE),tblSalaries[[#This Row],[clean Salary (in local currency)]],(tblSalaries[[#This Row],[PPP Adjusted USD]]/VLOOKUP(Dashboard!$J$5,Sheet3!$B$2:$C$31,2,FALSE))) -> 97282.09953 | H199: IT Project Manager, EMEA | I199: Manager | J199: UK | K199: 1 or 2 hours a day | L199: Data Not Avaliable
B200: ID0569 | C200: 155000 | D200: AUD | E200: 158085.9967 | F200: =(tblSalaries[[#This Row],[clean Salary (in local currency)]])*(VLOOKUP(tblSalaries[[#This Row],[Currency]],Sheet3!$A$2:$C$31,3,FALSE))*(VLOOKUP(tblSalaries[[#This Row],[Currency]],Sheet1!$N$4:$Q$186,4,FALSE)) -> 97140.67902 | G200: =IF(Dashboard!$J$5=VLOOKUP(tblSalaries[[#This Row],[Currency]],Sheet3!$A$2:$B$31,2,FALSE),tblSalaries[[#This Row],[clean Salary (in local currency)]],(tblSalaries[[#This Row],[PPP Adjusted USD]]/VLOOKUP(Dashboard!$J$5,Sheet3!$B$2:$C$31,2,FALSE))) -> 97140.67902 | H200: Finance Manager Business Services | I200: Manager | J200: Australia | K200: 4 to 6 hours a day | L200: 20
B201: ID0290 | C201: 97000 | D201: USD | E201: 97000 | F201: =(tblSalaries[[#This Row],[clean Salary (in local currency)]])*(VLOOKUP(tblSalaries[[#This Row],[Currency]],Sheet3!$A$2:$C$31,3,FALSE))*(VLOOKUP(tblSalaries[[#This Row],[Currency]],Sheet1!$N$4:$Q$186,4,FALSE)) -> 97000 | G201: =IF(Dashboard!$J$5=VLOOKUP(tblSalaries[[#This Row],[Currency]],Sheet3!$A$2:$B$31,2,FALSE),tblSalaries[[#This Row],[clean Salary (in local currency)]],(tblSalaries[[#This Row],[PPP Adjusted USD]]/VLOOKUP(Dashboard!$J$5,Sheet3!$B$2:$C$31,2,FALSE))) -> 97000 | H201: business analyst | I201: Analyst | J201: USA | K201: All the 8 hours baby, all the 8! | L201: Data Not Avaliable
... 1796 more rows
